date,department/service,beneficiary,amount,summary of purpose,category,transaction number,SAP vendor number
01.02.2018,ADULT SOCIAL CARE,HEALTHCARE HOMES (LSC) LTD,"-1,857.92",DIR OF ASC,NURSING PLACEMENTS FEES,2102777182,1000077752
01.02.2018,ADULT SOCIAL CARE,HEALTHCARE HOMES (LSC) LTD,384.36,DIR OF ASC,"MAND STATUTORY CHARGES, NURSING",2102777183,1000077752
01.02.2018,ADULT SOCIAL CARE,HEALTHCARE HOMES (LSC) LTD,"-1,857.92",DIR OF ASC,NURSING PLACEMENTS FEES,2102777184,1000077752
01.02.2018,ADULT SOCIAL CARE,HEALTHCARE HOMES (LSC) LTD,384.36,DIR OF ASC,"MAND STATUTORY CHARGES, NURSING",2102777185,1000077752
01.02.2018,ADULT SOCIAL CARE,HEALTHCARE HOMES (LSC) LTD,"3,715.84",DIR OF ASC,NURSING PLACEMENTS FEES,2102777186,1000077752
01.02.2018,ADULT SOCIAL CARE,HEALTHCARE HOMES (LSC) LTD,-768.72,DIR OF ASC,"MAND STATUTORY CHARGES, NURSING",2102777187,1000077752
01.02.2018,ADULT SOCIAL CARE,ALZHEIMER'S SOCIETY,"40,586.00",LOCAL COMMUNITY OFFER,EXTERNAL AGENCIES AND BODIES,5902286666,1000005179
01.02.2018,ADULT SOCIAL CARE,HEALTHCARE HOMES (LSC) LTD,"1,857.92",OP - NURSING,NURSING PLACEMENTS FEES,2102647241,1000077752
01.02.2018,ADULT SOCIAL CARE,HEALTHCARE HOMES (LSC) LTD,-384.36,OP - NURSING,"MAND STATUTORY CHARGES, NURSING",2102647242,1000077752
01.02.2018,ADULT SOCIAL CARE,HEALTHCARE HOMES (LSC) LTD,"1,857.92",OP - NURSING,NURSING PLACEMENTS FEES,2102647243,1000077752
01.02.2018,ADULT SOCIAL CARE,HEALTHCARE HOMES (LSC) LTD,-384.36,OP - NURSING,"MAND STATUTORY CHARGES, NURSING",2102647244,1000077752
01.02.2018,ADULT SOCIAL CARE,HEALTHCARE HOMES (LSC) LTD,"-3,715.84",OP - NURSING,NURSING PLACEMENTS FEES,2102647245,1000077752
01.02.2018,ADULT SOCIAL CARE,HEALTHCARE HOMES (LSC) LTD,768.72,OP - NURSING,"MAND STATUTORY CHARGES, NURSING",2102647246,1000077752
01.02.2018,ADULT SOCIAL CARE,HEALTHCARE HOMES (LSC) LTD,-384.36,PHY LTS 18-64,"MAND STATUTORY CHARGES, NURSING",2102598311,1000077752
01.02.2018,ADULT SOCIAL CARE,HEALTHCARE HOMES (LSC) LTD,"1,857.92",PHY LTS 18-64,NURSING PLACEMENTS FEES,2102598386,1000077752
01.02.2018,ADULT SOCIAL CARE,HEALTHCARE HOMES (LSC) LTD,"1,857.92",PHY LTS 18-64,NURSING PLACEMENTS FEES,2102611500,1000077752
01.02.2018,ADULT SOCIAL CARE,HEALTHCARE HOMES (LSC) LTD,-384.36,PHY LTS 18-64,"MAND STATUTORY CHARGES, NURSING",2102611969,1000077752
01.02.2018,ADULT SOCIAL CARE,HEALTHCARE HOMES (LSC) LTD,"1,857.92",PHY LTS 18-64,NURSING PLACEMENTS FEES,2102620682,1000077752
01.02.2018,ADULT SOCIAL CARE,HEALTHCARE HOMES (LSC) LTD,-384.36,PHY LTS 18-64,"MAND STATUTORY CHARGES, NURSING",2102621002,1000077752
01.02.2018,ADULT SOCIAL CARE,HEALTHCARE HOMES (LSC) LTD,-384.36,PHY LTS 18-64,"MAND STATUTORY CHARGES, NURSING",2102632777,1000077752
01.02.2018,ADULT SOCIAL CARE,HEALTHCARE HOMES (LSC) LTD,"1,857.92",PHY LTS 18-64,NURSING PLACEMENTS FEES,2102633017,1000077752
01.02.2018,ADULT SOCIAL CARE,HEALTHCARE HOMES (LSC) LTD,-384.36,PHY LTS 18-64,"MAND STATUTORY CHARGES, NURSING",2102645197,1000077752
01.02.2018,ADULT SOCIAL CARE,HEALTHCARE HOMES (LSC) LTD,"1,857.92",PHY LTS 18-64,NURSING PLACEMENTS FEES,2102645646,1000077752
01.02.2018,ADULT SOCIAL CARE,HEALTHCARE HOMES (LSC) LTD,928.96,PHY LTS 18-64,NURSING PLACEMENTS FEES,2102659310,1000077752
01.02.2018,ADULT SOCIAL CARE,HEALTHCARE HOMES (LSC) LTD,-384.36,PHY LTS 18-64,"MAND STATUTORY CHARGES, NURSING",2102670925,1000077752
01.02.2018,ADULT SOCIAL CARE,HEALTHCARE HOMES (LSC) LTD,"1,857.92",PHY LTS 18-64,NURSING PLACEMENTS FEES,2102671046,1000077752
01.02.2018,ADULT SOCIAL CARE,HEALTHCARE HOMES (LSC) LTD,-384.36,PHY LTS 18-64,"MAND STATUTORY CHARGES, NURSING",2102680699,1000077752
01.02.2018,ADULT SOCIAL CARE,HEALTHCARE HOMES (LSC) LTD,"1,857.92",PHY LTS 18-64,NURSING PLACEMENTS FEES,2102681308,1000077752
01.02.2018,ADULT SOCIAL CARE,HEALTHCARE HOMES (LSC) LTD,"3,445.51",PHY LTS 18-64,"MAND STATUTORY CHARGES, NURSING",2102693510,1000077752
01.02.2018,ADULT SOCIAL CARE,HEALTHCARE HOMES (LSC) LTD,"-3,445.51",PHY LTS 18-64,"MAND STATUTORY CHARGES, NURSING",2102777164,1000077752
01.02.2018,ADULT SOCIAL CARE,HEALTHCARE HOMES (LSC) LTD,384.36,PHY LTS 18-64,"MAND STATUTORY CHARGES, NURSING",2102777165,1000077752
01.02.2018,ADULT SOCIAL CARE,HEALTHCARE HOMES (LSC) LTD,"-1,857.92",PHY LTS 18-64,NURSING PLACEMENTS FEES,2102777166,1000077752
01.02.2018,ADULT SOCIAL CARE,HEALTHCARE HOMES (LSC) LTD,384.36,PHY LTS 18-64,"MAND STATUTORY CHARGES, NURSING",2102777167,1000077752
01.02.2018,ADULT SOCIAL CARE,HEALTHCARE HOMES (LSC) LTD,"-1,857.92",PHY LTS 18-64,NURSING PLACEMENTS FEES,2102777168,1000077752
01.02.2018,ADULT SOCIAL CARE,HEALTHCARE HOMES (LSC) LTD,-928.96,PHY LTS 18-64,NURSING PLACEMENTS FEES,2102777169,1000077752
01.02.2018,ADULT SOCIAL CARE,HEALTHCARE HOMES (LSC) LTD,384.36,PHY LTS 18-64,"MAND STATUTORY CHARGES, NURSING",2102777170,1000077752
01.02.2018,ADULT SOCIAL CARE,HEALTHCARE HOMES (LSC) LTD,-928.96,PHY LTS 18-64,NURSING PLACEMENTS FEES,2102777171,1000077752
01.02.2018,ADULT SOCIAL CARE,HEALTHCARE HOMES (LSC) LTD,384.36,PHY LTS 18-64,"MAND STATUTORY CHARGES, NURSING",2102777172,1000077752
01.02.2018,ADULT SOCIAL CARE,HEALTHCARE HOMES (LSC) LTD,"-1,857.92",PHY LTS 18-64,NURSING PLACEMENTS FEES,2102777173,1000077752
01.02.2018,ADULT SOCIAL CARE,HEALTHCARE HOMES (LSC) LTD,384.36,PHY LTS 18-64,"MAND STATUTORY CHARGES, NURSING",2102777174,1000077752
01.02.2018,ADULT SOCIAL CARE,HEALTHCARE HOMES (LSC) LTD,"-1,857.92",PHY LTS 18-64,NURSING PLACEMENTS FEES,2102777175,1000077752
01.02.2018,ADULT SOCIAL CARE,HEALTHCARE HOMES (LSC) LTD,"-1,857.92",PHY LTS 18-64,NURSING PLACEMENTS FEES,2102777176,1000077752
01.02.2018,ADULT SOCIAL CARE,HEALTHCARE HOMES (LSC) LTD,384.36,PHY LTS 18-64,"MAND STATUTORY CHARGES, NURSING",2102777177,1000077752
01.02.2018,ADULT SOCIAL CARE,HEALTHCARE HOMES (LSC) LTD,"-1,857.92",PHY LTS 18-64,NURSING PLACEMENTS FEES,2102777178,1000077752
01.02.2018,ADULT SOCIAL CARE,HEALTHCARE HOMES (LSC) LTD,384.36,PHY LTS 18-64,"MAND STATUTORY CHARGES, NURSING",2102777179,1000077752
01.02.2018,ADULT SOCIAL CARE,HEALTHCARE HOMES (LSC) LTD,384.36,PHY LTS 18-64,"MAND STATUTORY CHARGES, NURSING",2102777180,1000077752
01.02.2018,ADULT SOCIAL CARE,HEALTHCARE HOMES (LSC) LTD,"-1,857.92",PHY LTS 18-64,NURSING PLACEMENTS FEES,2102777181,1000077752
01.02.2018,BERMONDSEY AND ROTHERHITHE COMMUNITY COUNCIL,TIME AND TALENTS,"5,000.00",CRAFTY BEASTS,GRANT,-,CHEQUE PAYMENT
01.02.2018,CHILDREN'S SERVICES,REDACTED PERSONAL DATA,300,S24 CLA,PAYMENTS TO CARERS,REDACTED,REDACTED
01.02.2018,CHILDREN'S SERVICES,PULSE HEALTHCARE LTD,538.2,SEN TRANSPORT,STATEMENTED FEES,5902287317,1000035063
01.02.2018,ENVIRONMENT AND LEISURE,ADAPTAINER LTD,500,CAPITAL PS (LEISURE),CONST'N MAIN CONTRACT - NON CERTIFICATED,5902288017,1000074474
01.02.2018,HOUSING HRA,BCS (ELECTRICAL & BUILDING) LTD,"53,480.90",BCS,MANUAL CREDITORS,5902287153,1000062321
01.02.2018,HOUSING HRA,POTTER RAPER AND PARTNERS,"18,167.26",CAPITAL PS (HRA),CONSTRUCTION FEES  - EXTERNAL,5902287695,1009369
01.02.2018,HOUSING HRA,LOCKESLEYS LTD,"47,479.86",LOCKESLEYS,MANUAL CREDITORS,5902287157,1000066272
01.02.2018,HOUSING HRA,SPOKEMEAD MAINTENANCE LTD,"273,851.21",PAYMENTS CONTROL ACCOUNT - SPOKEMEAD,MANUAL CREDITORS,5902287239,1000059211
01.02.2018,LEISURE DIRECTORATE,ASKEWS & HOLTS LIBRARY SERVICES LTD,260.95,STOCK SERVICES,BOOKS & PUBLICATIONS,5902286939,1494168
01.02.2018,LEISURE DIRECTORATE,ASKEWS & HOLTS LIBRARY SERVICES LTD,"6,371.83",STOCK SERVICES,BOOKS & PUBLICATIONS,5902286940,1494168
01.02.2018,MODERNISATION HGF,TALKING LIFE LTD,695,CHILDREN'S MULTI-AGENCY SAFEGUARDING TRA,TRAINING,5902287087,1000071049
01.02.2018,MODERNISATION HGF,INTERSERVE (FACILITIES MANAGEMENT),"50,996.71",FM SERVICES BY INTERSERVE,BUILDING R&M,5902287686,1000070792
01.02.2018,MODERNISATION HGF,INTERSERVE (FACILITIES MANAGEMENT),"7,293.46",FM SERVICES BY INTERSERVE,BUILDING R&M,5902287690,1000070792
01.02.2018,MODERNISATION HGF,ROSEMARY POTTS,"1,250.00",OCCUPATIONAL ASSESSMENT,CONSULTANTS SERVICES,5902287393,1738708
01.02.2018,REGENERATION,HOMEM DIAGONAL PRODUCAO ARTISTICA EIRELLI-ME,"3,000.00",TOWER BRIDGE ROAD,CONSTRUCTION FEES - ARCHITECT,6101817228,INTERNATIONAL PAYMENT
01.02.2018,REGENERATION,STUDIO ANNE HOLTROP,"3,030.98",TOWER BRIDGE ROAD,CONSTRUCTION FEES - ARCHITECT,6101817226,INTERNATIONAL PAYMENT
02.02.2018,ADULT SOCIAL CARE,LONDON CARE LTD,323.72,MEM LTS 65+,HOMECARE - C&V,2102776861,1000003398
02.02.2018,ADULT SOCIAL CARE,LONDON CARE LTD,311.09,MEM LTS 65+,HOMECARE - C&V,2102776891,1000003398
02.02.2018,ADULT SOCIAL CARE,LONDON CARE LTD,588.56,MEM LTS 65+,HOMECARE - C&V,2102776894,1000003398
02.02.2018,ADULT SOCIAL CARE,PEOPLEPLUS ILS,673.14,MEM LTS 65+,PAYMENTS TO CLIENTS (DIRECT PAYMENTS),2102774727,1000061886
02.02.2018,ADULT SOCIAL CARE,HEXAGON HOUSING ASSOCIATION LTD,"2,102.14",MH LTS 18-64,HOMECARE - SPOT,2102697555,1000014698
02.02.2018,ADULT SOCIAL CARE,HEXAGON HOUSING ASSOCIATION LTD,-411.43,MH LTS 18-64,SUPPORTED LIVING,2102697573,1000014698
02.02.2018,ADULT SOCIAL CARE,LONDON CARE LTD,294.28,MH LTS 65+,HOMECARE - C&V,2102776910,1000003398
02.02.2018,ADULT SOCIAL CARE,LONDON CARE LTD,281.69,PHY LTS 18-64,HOMECARE - C&V,2102776688,1000003398
02.02.2018,ADULT SOCIAL CARE,LONDON CARE LTD,327.9,PHY LTS 18-64,HOMECARE - C&V,2102776710,1000003398
02.02.2018,ADULT SOCIAL CARE,LONDON CARE LTD,374.06,PHY LTS 18-64,HOMECARE - C&V,2102776832,1000003398
02.02.2018,ADULT SOCIAL CARE,LONDON CARE LTD,340.49,PHY LTS 18-64,HOMECARE - C&V,2102776847,1000003398
02.02.2018,ADULT SOCIAL CARE,LONDON CARE LTD,790.13,PHY LTS 18-64,HOMECARE - C&V,2102776857,1000003398
02.02.2018,ADULT SOCIAL CARE,LONDON CARE LTD,588.56,PHY LTS 18-64,HOMECARE - C&V,2102776873,1000003398
02.02.2018,ADULT SOCIAL CARE,CARE DIRECT UK LTD,317.17,PHY LTS 18-64,HOMECARE - SPOT,2102777007,1000066322
02.02.2018,ADULT SOCIAL CARE,CARE DIRECT UK LTD,641.24,PHY LTS 18-64,HOMECARE - C&V,2102777013,1000066322
02.02.2018,ADULT SOCIAL CARE,HUMBLE HEALTH CARE LTD,459,PHY LTS 18-64,HOMECARE - SPOT,2102776962,1000079270
02.02.2018,ADULT SOCIAL CARE,LONDON CARE LTD,306.82,PHY LTS 65+,HOMECARE - C&V,2102776589,1000003398
02.02.2018,ADULT SOCIAL CARE,LONDON CARE LTD,412.02,PHY LTS 65+,HOMECARE - C&V,2102776591,1000003398
02.02.2018,ADULT SOCIAL CARE,LONDON CARE LTD,475.02,PHY LTS 65+,HOMECARE - C&V,2102776631,1000003398
02.02.2018,ADULT SOCIAL CARE,LONDON CARE LTD,298.5,PHY LTS 65+,HOMECARE - C&V,2102776635,1000003398
02.02.2018,ADULT SOCIAL CARE,LONDON CARE LTD,275.94,PHY LTS 65+,HOMECARE - C&V,2102776637,1000003398
02.02.2018,ADULT SOCIAL CARE,LONDON CARE LTD,252.22,PHY LTS 65+,HOMECARE - C&V,2102776639,1000003398
02.02.2018,ADULT SOCIAL CARE,LONDON CARE LTD,403.56,PHY LTS 65+,HOMECARE - C&V,2102776649,1000003398
02.02.2018,ADULT SOCIAL CARE,LONDON CARE LTD,647.36,PHY LTS 65+,HOMECARE - C&V,2102776653,1000003398
02.02.2018,ADULT SOCIAL CARE,LONDON CARE LTD,588.56,PHY LTS 65+,HOMECARE - C&V,2102776661,1000003398
02.02.2018,ADULT SOCIAL CARE,LONDON CARE LTD,319.49,PHY LTS 65+,HOMECARE - C&V,2102776665,1000003398
02.02.2018,ADULT SOCIAL CARE,LONDON CARE LTD,542.38,PHY LTS 65+,HOMECARE - C&V,2102776680,1000003398
02.02.2018,ADULT SOCIAL CARE,LONDON CARE LTD,348.9,PHY LTS 65+,HOMECARE - C&V,2102776690,1000003398
02.02.2018,ADULT SOCIAL CARE,LONDON CARE LTD,340.49,PHY LTS 65+,HOMECARE - C&V,2102776694,1000003398
02.02.2018,ADULT SOCIAL CARE,LONDON CARE LTD,668.37,PHY LTS 65+,HOMECARE - C&V,2102776712,1000003398
02.02.2018,ADULT SOCIAL CARE,LONDON CARE LTD,332.08,PHY LTS 65+,HOMECARE - C&V,2102776735,1000003398
02.02.2018,ADULT SOCIAL CARE,LONDON CARE LTD,315.25,PHY LTS 65+,HOMECARE - C&V,2102776739,1000003398
02.02.2018,ADULT SOCIAL CARE,LONDON CARE LTD,344.71,PHY LTS 65+,HOMECARE - C&V,2102776778,1000003398
02.02.2018,ADULT SOCIAL CARE,LONDON CARE LTD,496.05,PHY LTS 65+,HOMECARE - C&V,2102776791,1000003398
02.02.2018,ADULT SOCIAL CARE,LONDON CARE LTD,512.81,PHY LTS 65+,HOMECARE - C&V,2102776794,1000003398
02.02.2018,ADULT SOCIAL CARE,LONDON CARE LTD,581.02,PHY LTS 65+,HOMECARE - C&V,2102776798,1000003398
02.02.2018,ADULT SOCIAL CARE,LONDON CARE LTD,840.5,PHY LTS 65+,HOMECARE - C&V,2102776809,1000003398
02.02.2018,ADULT SOCIAL CARE,LONDON CARE LTD,294.21,PHY LTS 65+,HOMECARE - C&V,2102776814,1000003398
02.02.2018,ADULT SOCIAL CARE,LONDON CARE LTD,764.96,PHY LTS 65+,HOMECARE - C&V,2102776815,1000003398
02.02.2018,ADULT SOCIAL CARE,LONDON CARE LTD,701.92,PHY LTS 65+,HOMECARE - C&V,2102776823,1000003398
02.02.2018,ADULT SOCIAL CARE,LONDON CARE LTD,525.88,PHY LTS 65+,HOMECARE - C&V,2102776828,1000003398
02.02.2018,ADULT SOCIAL CARE,LONDON CARE LTD,609.58,PHY LTS 65+,HOMECARE - C&V,2102776836,1000003398
02.02.2018,ADULT SOCIAL CARE,LONDON CARE LTD,529.62,PHY LTS 65+,HOMECARE - C&V,2102776839,1000003398
02.02.2018,ADULT SOCIAL CARE,LONDON CARE LTD,340.49,PHY LTS 65+,HOMECARE - C&V,2102776843,1000003398
02.02.2018,ADULT SOCIAL CARE,LONDON CARE LTD,714.66,PHY LTS 65+,HOMECARE - C&V,2102776846,1000003398
02.02.2018,ADULT SOCIAL CARE,LONDON CARE LTD,840.57,PHY LTS 65+,HOMECARE - C&V,2102776848,1000003398
02.02.2018,ADULT SOCIAL CARE,LONDON CARE LTD,302.69,PHY LTS 65+,HOMECARE - C&V,2102776850,1000003398
02.02.2018,ADULT SOCIAL CARE,LONDON CARE LTD,277.44,PHY LTS 65+,HOMECARE - C&V,2102776860,1000003398
02.02.2018,ADULT SOCIAL CARE,LONDON CARE LTD,277.44,PHY LTS 65+,HOMECARE - C&V,2102776864,1000003398
02.02.2018,ADULT SOCIAL CARE,LONDON CARE LTD,253.06,PHY LTS 65+,HOMECARE - C&V,2102776870,1000003398
02.02.2018,ADULT SOCIAL CARE,LONDON CARE LTD,588.56,PHY LTS 65+,HOMECARE - C&V,2102776880,1000003398
02.02.2018,ADULT SOCIAL CARE,LONDON CARE LTD,617.96,PHY LTS 65+,HOMECARE - C&V,2102776881,1000003398
02.02.2018,ADULT SOCIAL CARE,LONDON CARE LTD,264.88,PHY LTS 65+,HOMECARE - C&V,2102776885,1000003398
02.02.2018,ADULT SOCIAL CARE,LONDON CARE LTD,710.38,PHY LTS 65+,HOMECARE - C&V,2102776887,1000003398
02.02.2018,ADULT SOCIAL CARE,LONDON CARE LTD,353.08,PHY LTS 65+,HOMECARE - C&V,2102776889,1000003398
02.02.2018,ADULT SOCIAL CARE,LONDON CARE LTD,332.04,PHY LTS 65+,HOMECARE - C&V,2102776898,1000003398
02.02.2018,ADULT SOCIAL CARE,LONDON CARE LTD,802.75,PHY LTS 65+,HOMECARE - C&V,2102776912,1000003398
02.02.2018,ADULT SOCIAL CARE,LONDON CARE LTD,319.5,PHY LTS 65+,HOMECARE - C&V,2102776914,1000003398
02.02.2018,ADULT SOCIAL CARE,LONDON CARE LTD,264.88,PHY LTS 65+,HOMECARE - C&V,2102776918,1000003398
02.02.2018,ADULT SOCIAL CARE,LONDON CARE LTD,323.68,PHY LTS 65+,HOMECARE - C&V,2102776930,1000003398
02.02.2018,ADULT SOCIAL CARE,LONDON CARE LTD,285.85,PHY LTS 65+,HOMECARE - C&V,2102776937,1000003398
02.02.2018,ADULT SOCIAL CARE,LONDON CARE LTD,272.04,PHY LTS 65+,HOMECARE - C&V,2102776946,1000003398
02.02.2018,ADULT SOCIAL CARE,HEXAGON HOUSING ASSOCIATION LTD,"-1,542.86",PHY LTS 65+,HOMECARE - SPOT,2102697579,1000014698
02.02.2018,ADULT SOCIAL CARE,CARE DIRECT UK LTD,265.46,PHY LTS 65+,HOMECARE - SPOT,2102776966,1000066322
02.02.2018,ADULT SOCIAL CARE,CARE DIRECT UK LTD,434.39,PHY LTS 65+,HOMECARE - SPOT,2102776979,1000066322
02.02.2018,ADULT SOCIAL CARE,CARE DIRECT UK LTD,289.59,PHY LTS 65+,HOMECARE - SPOT,2102776988,1000066322
02.02.2018,ADULT SOCIAL CARE,CARE DIRECT UK LTD,337.86,PHY LTS 65+,HOMECARE - SPOT,2102776993,1000066322
02.02.2018,ADULT SOCIAL CARE,CARE DIRECT UK LTD,475.76,PHY LTS 65+,HOMECARE - SPOT,2102777001,1000066322
02.02.2018,ADULT SOCIAL CARE,CARE DIRECT UK LTD,689.5,PHY LTS 65+,HOMECARE - SPOT,2102777002,1000066322
02.02.2018,ADULT SOCIAL CARE,CARE DIRECT UK LTD,293.04,PHY LTS 65+,HOMECARE - SPOT,2102777008,1000066322
02.02.2018,ADULT SOCIAL CARE,CARE DIRECT UK LTD,268.91,PHY LTS 65+,HOMECARE - SPOT,2102777009,1000066322
02.02.2018,ADULT SOCIAL CARE,PEOPLEPLUS ILS,725.35,PLACEMENTS FOR CHILDREN WITH SPEC NEEDS,PAYMENTS TO CLIENTS (DIRECT PAYMENTS),2102774731,1000061886
02.02.2018,ADULT SOCIAL CARE,LONDON CARE LTD,256.44,SOCIAL ISOLATION,HOMECARE - C&V,2102776692,1000003398
02.02.2018,ADULT SOCIAL CARE,LONDON CARE LTD,588.42,SOCIAL ISOLATION,HOMECARE - SPOT,2102776895,1000003398
02.02.2018,ADULT SOCIAL CARE,CARE DIRECT UK LTD,268.91,SOCIAL ISOLATION,HOMECARE - SPOT,2102776965,1000066322
02.02.2018,ADULT SOCIAL CARE,HUMBLE HEALTH CARE LTD,"2,308.52",SOCIAL ISOLATION,HOMECARE - C&V,2102776971,1000079270
02.02.2018,ADULT SOCIAL CARE,EASYLINK UK,439,SOUTHWARK RESOURCE CENTRE,EQUIPMENT PURCHASE & REPAIR,5902288096,1000066550
02.02.2018,ADULT SOCIAL CARE,EASYLINK UK,"1,979.80",SOUTHWARK RESOURCE CENTRE,EQUIPMENT PURCHASE & REPAIR,5902288099,1000066550
02.02.2018,ADULT SOCIAL CARE,MEDACS HOMECARE,865.8,SPECIALIST CARE,SECTION 17 PAYMENTS TO AGENCIES/CARERS,2102777049,11287415
02.02.2018,ADULT SOCIAL CARE,MEDACS HOMECARE,490.62,SPECIALIST CARE,SECTION 17 PAYMENTS TO AGENCIES/CARERS,2102777054,11287415
02.02.2018,ADULT SOCIAL CARE,MEDACS HOMECARE,418.47,SPECIALIST CARE,SECTION 17 PAYMENTS TO AGENCIES/CARERS,2102777056,11287415
02.02.2018,ADULT SOCIAL CARE,MEDACS HOMECARE,577.2,SPECIALIST CARE,SECTION 17 PAYMENTS TO AGENCIES/CARERS,2102777057,11287415
02.02.2018,ADULT SOCIAL CARE,MEDACS HOMECARE,"3,001.44",SPECIALIST CARE,SECTION 17 PAYMENTS TO AGENCIES/CARERS,2102777062,11287415
02.02.2018,ADULT SOCIAL CARE,MEDACS HOMECARE,577.2,SPECIALIST CARE,SECTION 17 PAYMENTS TO AGENCIES/CARERS,2102777063,11287415
02.02.2018,ADULT SOCIAL CARE,KIDS,565,SPECIALIST CARE,SECTION 17 PAYMENTS TO AGENCIES/CARERS,2102777035,1000030036
02.02.2018,ADULT SOCIAL CARE,KIDS,565,SPECIALIST CARE,SECTION 17 PAYMENTS TO AGENCIES/CARERS,2102777048,1000030036
02.02.2018,ADULT SOCIAL CARE,PECULIAR CARE HOMES LTD,484.65,SPECIALIST CARE,SECTION 17 PAYMENTS TO AGENCIES/CARERS,2102777034,1000076991
02.02.2018,ADULT SOCIAL CARE,PECULIAR CARE HOMES LTD,"3,745.58",SPECIALIST CARE,SECTION 17 PAYMENTS TO AGENCIES/CARERS,2102777040,1000076991
02.02.2018,ADULT SOCIAL CARE,HCP STAFFING SERVICES LTD,569.4,SPECIALIST CARE,SECTION 17 PAYMENTS TO AGENCIES/CARERS,2102777044,1000078329
02.02.2018,ADULT SOCIAL CARE,PINEAPPLE CONTRACTS UNLIMITED,-422.45,SUPPORTED LIVING COSTS,OTHER R&M,5902287085,11003086
02.02.2018,ADULT SOCIAL CARE,PINEAPPLE CONTRACTS UNLIMITED,844.9,SUPPORTED LIVING COSTS,OTHER R&M,5902287091,11003086
02.02.2018,ADULT SOCIAL CARE,HEXAGON HOUSING ASSOCIATION LTD,"7,811.57",SUPPORTED LIVING COSTS,SUPPORTED LIVING,5902287626,1000014698
02.02.2018,ADULT SOCIAL CARE,HEXAGON HOUSING ASSOCIATION LTD,810.4,SUPPORTED LIVING COSTS,SUPPORTED LIVING,5902287723,1000014698
02.02.2018,ADULT SOCIAL CARE,HEXAGON HOUSING ASSOCIATION LTD,810.4,SUPPORTED LIVING COSTS,SUPPORTED LIVING,5902287727,1000014698
02.02.2018,ADULT SOCIAL CARE,HEXAGON HOUSING ASSOCIATION LTD,"7,811.57",SUPPORTED LIVING COSTS,SUPPORTED LIVING,5902288229,1000014698
02.02.2018,ADULT SOCIAL CARE,MEDACS HOMECARE,808.08,TRANSITION 14 - 18 YEARS,SECTION 17 PAYMENTS TO AGENCIES/CARERS,2102777050,11287415
02.02.2018,ADULT SOCIAL CARE,MEDACS HOMECARE,"1,558.58",TRANSITION 14 - 18 YEARS,SECTION 17 PAYMENTS TO AGENCIES/CARERS,2102777052,11287415
02.02.2018,ADULT SOCIAL CARE,MEDACS HOMECARE,678.21,TRANSITION 14 - 18 YEARS,SECTION 17 PAYMENTS TO AGENCIES/CARERS,2102777053,11287415
02.02.2018,ADULT SOCIAL CARE,MEDACS HOMECARE,303.03,TRANSITION 14 - 18 YEARS,SECTION 17 PAYMENTS TO AGENCIES/CARERS,2102777058,11287415
02.02.2018,ADULT SOCIAL CARE,MEDACS HOMECARE,663.78,TRANSITION 14 - 18 YEARS,SECTION 17 PAYMENTS TO AGENCIES/CARERS,2102777059,11287415
02.02.2018,ADULT SOCIAL CARE,MEDACS HOMECARE,620.49,TRANSITION 14 - 18 YEARS,SECTION 17 PAYMENTS TO AGENCIES/CARERS,2102777060,11287415
02.02.2018,ADULT SOCIAL CARE,MEDACS HOMECARE,750.36,TRANSITION 14 - 18 YEARS,SECTION 17 PAYMENTS TO AGENCIES/CARERS,2102777061,11287415
02.02.2018,ADULT SOCIAL CARE,MEDACS HOMECARE,404.04,TRANSITION 14 - 18 YEARS,SECTION 17 PAYMENTS TO AGENCIES/CARERS,2102777064,11287415
02.02.2018,ADULT SOCIAL CARE,INTERSERVE HEALTHCARE,285.86,TRANSITION 14 - 18 YEARS,SECTION 17 PAYMENTS TO AGENCIES/CARERS,2102777037,1000049612
02.02.2018,ADULT SOCIAL CARE,PEOPLEPLUS ILS,"-1,198.40",TRANSITION 14 - 18 YEARS,PAYMENTS TO CLIENTS (DIRECT PAYMENTS),2102774732,1000061886
02.02.2018,ADULT SOCIAL CARE,PEOPLEPLUS ILS,"8,415.40",TRANSITION 14 - 18 YEARS,PAYMENTS TO CLIENTS (DIRECT PAYMENTS),2102774733,1000061886
02.02.2018,ADULT SOCIAL CARE,PECULIAR CARE HOMES LTD,"1,438.08",TRANSITION 14 - 18 YEARS,SECTION 17 PAYMENTS TO AGENCIES/CARERS,2102777042,1000076991
02.02.2018,ADULT SOCIAL CARE,HCP STAFFING SERVICES LTD,352.95,TRANSITION 14 - 18 YEARS,SECTION 17 PAYMENTS TO AGENCIES/CARERS,2102777036,1000078329
02.02.2018,ASSET MANAGEMENT,ADRIAN MOODY,450.93,ADAPTATIONS,BUILDING R&M,5902288173,1000080297
02.02.2018,ASSET MANAGEMENT,ADRIAN MOODY,890,ADAPTATIONS,BUILDING R&M,5902288176,1000080297
02.02.2018,ASSET MANAGEMENT,ADRIAN MOODY,440.1,ADAPTATIONS,BUILDING R&M,5902288181,1000080297
02.02.2018,ASSET MANAGEMENT,ADRIAN MOODY,402.48,ADAPTATIONS,BUILDING R&M,5902288183,1000080297
02.02.2018,CENTRAL FUNCTIONS,CLEANOVATION,264.4,COMMERCIAL PROPERTIES,PREMISES CLEANING,5902288134,1000000539
02.02.2018,CENTRAL FUNCTIONS,CLEANOVATION,392.28,COMMERCIAL PROPERTIES,PREMISES CLEANING,5902288137,1000000539
02.02.2018,CENTRAL FUNCTIONS,STANBURY BUILDING SERVICES LTD,360,COMMERCIAL PROPERTIES,BUILDING R&M,5902288094,1000078207
02.02.2018,CENTRAL FUNCTIONS,HERITAGE SURVEYS LTD,"1,660.00",COMMERCIAL PROPERTIES,PROFESSIONAL FEES,5902288088,1000080199
02.02.2018,CENTRAL FUNCTIONS,WILLIAM MARTIN PROPERTY CONSULTANTS LTD,675,GARAGE REPAIRS,PAYMENTS FOR LEGAL SERVICES,5902288286,1000062171
02.02.2018,CENTRAL FUNCTIONS,GEMINI CONSULTANTS LTD,790,HOME LOANS HRA,SUBSCRIPTIONS,5902288116,1384854
02.02.2018,CHIEF EXECUTIVE,MOUNTVIEW ACADEMY OF THEATRE ARTS,"1,240,751.11",CAPITAL PS (REGEN),CAPITAL GRANTS,5902288288,1000076966
02.02.2018,CHIEF EXECUTIVE,ERECT ARCHITECTURE LTD,390,CAPITAL PS (REGEN),CONSTRUCTION FEES,5902288162,1000078487
02.02.2018,CHIEF EXECUTIVE'S OFFICE,INSPIRE AT ST PETER'S LTD,"44,820.07",YOUTH FUND EMPLOYMENT,GRANTS,5902287457,1000041565
02.02.2018,CHILDREN AND ADULT,ADDLESHAW GODDARD LLP,"10,665.50",CAPITAL PS (EDUCATION),CONSTRUCTION,5902288259,1000079782
02.02.2018,CHILDREN AND ADULT,ADDLESHAW GODDARD LLP,"1,196.38",CAPITAL PS (EDUCATION),CONSTRUCTION,5902288264,1000079782
02.02.2018,CHILDREN AND ADULT,ARGOS,975.25,CAPITAL PS (SOC SERV),FIT-OUT,5902288100,1000049527
02.02.2018,CHILDREN AND ADULT,JONATHAN WHITAKER - PRINCIPAL FORENSICS LTD,432,LEGAL,LEGAL & COURT FEES,-,CHEQUE PAYMENT
02.02.2018,CHILDREN'S SERVICES,POSTURITE (UK) LTD,739.69,ADMIN CURLEW,EQUIPMENT PURCHASE & REPAIR,5902288113,11015468
02.02.2018,CHILDREN'S SERVICES,FIVE RIVERS CHILD CARE LTD,"6,527.71",AGENCY FOSTERING,EXTERNAL AGENCIES AND BODIES,2102777116,1000018792
02.02.2018,CHILDREN'S SERVICES,FIVE RIVERS CHILD CARE LTD,"3,365.71",AGENCY FOSTERING,EXTERNAL AGENCIES AND BODIES,2102777128,1000018792
02.02.2018,CHILDREN'S SERVICES,THE XCEL 2000 PARTNERSHIP LTD,"3,356.86",AGENCY FOSTERING,EXTERNAL AGENCIES AND BODIES,2102777031,1000024427
02.02.2018,CHILDREN'S SERVICES,THE XCEL 2000 PARTNERSHIP LTD,"3,356.86",AGENCY FOSTERING,EXTERNAL AGENCIES AND BODIES,2102777121,1000024427
02.02.2018,CHILDREN'S SERVICES,TIME FOR CHILDREN LTD,"3,100.00",AGENCY FOSTERING,EXTERNAL AGENCIES AND BODIES,2102777114,1000024439
02.02.2018,CHILDREN'S SERVICES,SANKOFA CARE LTD,"3,929.87",AGENCY FOSTERING,EXTERNAL AGENCIES AND BODIES,2102777112,1000030717
02.02.2018,CHILDREN'S SERVICES,SANKOFA CARE LTD,"3,593.21",AGENCY FOSTERING,EXTERNAL AGENCIES AND BODIES,2102777115,1000030717
02.02.2018,CHILDREN'S SERVICES,SANKOFA CARE LTD,"3,593.21",AGENCY FOSTERING,EXTERNAL AGENCIES AND BODIES,2102777127,1000030717
02.02.2018,CHILDREN'S SERVICES,SANKOFA CARE LTD,"4,538.71",AGENCY FOSTERING,EXTERNAL AGENCIES AND BODIES,2102777130,1000030717
02.02.2018,CHILDREN'S SERVICES,MOMENTS FOSTERING LTD,"4,495.00",AGENCY FOSTERING,EXTERNAL AGENCIES AND BODIES,2102777113,1000037317
02.02.2018,CHILDREN'S SERVICES,MOMENTS FOSTERING LTD,"5,535.67",AGENCY FOSTERING,EXTERNAL AGENCIES AND BODIES,2102777119,1000037317
02.02.2018,CHILDREN'S SERVICES,DIVERSE CARE (UK) LTD,"4,490.04",AGENCY FOSTERING,EXTERNAL AGENCIES AND BODIES,2102777028,1000055636
02.02.2018,CHILDREN'S SERVICES,CHILDREN FIRST FOSTERING AGENCY LTD,"3,875.00",AGENCY FOSTERING,EXTERNAL AGENCIES AND BODIES,2102777117,1000060081
02.02.2018,CHILDREN'S SERVICES,CHILDREN FIRST FOSTERING AGENCY LTD,"3,875.00",AGENCY FOSTERING,EXTERNAL AGENCIES AND BODIES,2102777126,1000060081
02.02.2018,CHILDREN'S SERVICES,SWIIS FOSTER CARE LTD,697.97,AGENCY FOSTERING,EXTERNAL AGENCIES AND BODIES,2102777033,1000069633
02.02.2018,CHILDREN'S SERVICES,FITZGERALD FOSTERING & CONSULTANCY,"3,120.00",AGENCY FOSTERING,EXTERNAL AGENCIES AND BODIES,2102777029,1000075307
02.02.2018,CHILDREN'S SERVICES,HORIZON FOSTERING SERVICES LTD,315,AGENCY FOSTERING,EXTERNAL AGENCIES AND BODIES,2102777024,1000075679
02.02.2018,CHILDREN'S SERVICES,MOSAIC FOSTER CARE LTD,"6,975.00",AGENCY FOSTERING,EXTERNAL AGENCIES AND BODIES,2102777111,1000076259
02.02.2018,CHILDREN'S SERVICES,MOSAIC FOSTER CARE LTD,"6,642.68",AGENCY FOSTERING,EXTERNAL AGENCIES AND BODIES,2102777123,1000076259
02.02.2018,CHILDREN'S SERVICES,ORANGE GROVE FOSTERCARE LTD,"3,596.00",AGENCY FOSTERING,EXTERNAL AGENCIES AND BODIES,2102777118,1000078716
02.02.2018,CHILDREN'S SERVICES,ORANGE GROVE FOSTERCARE LTD,"2,204.00",AGENCY FOSTERING,EXTERNAL AGENCIES AND BODIES,2102777120,1000078716
02.02.2018,CHILDREN'S SERVICES,ORANGE GROVE FOSTERCARE LTD,"3,596.00",AGENCY FOSTERING,EXTERNAL AGENCIES AND BODIES,2102777129,1000078716
02.02.2018,CHILDREN'S SERVICES,PARENT AND CHILD FOSTERING ASSESSMENTS,"5,314.28",AGENCY FOSTERING,EXTERNAL AGENCIES AND BODIES,2102777122,1000078962
02.02.2018,CHILDREN'S SERVICES,CONNECT FOSTERING SERVICES LTD,"3,520.71",AGENCY FOSTERING,EXTERNAL AGENCIES AND BODIES,2102777124,1000079969
02.02.2018,CHILDREN'S SERVICES,SHARED CARE SERVICES LTD,"5,838.54",AGENCY FOSTERING,EXTERNAL AGENCIES AND BODIES,2102777025,1000080308
02.02.2018,CHILDREN'S SERVICES,SHARED CARE SERVICES LTD,691.56,AGENCY FOSTERING,EXTERNAL AGENCIES AND BODIES,2102777026,1000080308
02.02.2018,CHILDREN'S SERVICES,SHARED CARE SERVICES LTD,753.36,AGENCY FOSTERING,EXTERNAL AGENCIES AND BODIES,2102777027,1000080308
02.02.2018,CHILDREN'S SERVICES,SHARED CARE SERVICES LTD,"5,273.52",AGENCY FOSTERING,EXTERNAL AGENCIES AND BODIES,2102777032,1000080308
02.02.2018,CHILDREN'S SERVICES,SHARED CARE SERVICES LTD,"5,838.54",AGENCY FOSTERING,EXTERNAL AGENCIES AND BODIES,2102777125,1000080308
02.02.2018,CHILDREN'S SERVICES,FOSTERING FOR YOU LTD,"1,666.15",AGENCY FOSTERING,EXTERNAL AGENCIES AND BODIES,2102777030,1000080380
02.02.2018,CHILDREN'S SERVICES,REDACTED PERSONAL DATA,600,CAMBERWELL GROVE EARLY YEARS CENTRE,ENVIRONMENT NON-SPECIFIC GRANTS,REDACTED,REDACTED
02.02.2018,CHILDREN'S SERVICES,POSTURITE (UK) LTD,620.37,CHILDRENS CENTRE,FURNITURE PURCHASE & REPAIR,5902288238,11015468
02.02.2018,CHILDREN'S SERVICES,WALWORTH GARDEN FARM,"1,750.00",COMMUNITY LEARNING 15/16,GRANTS,5902288147,1000042204
02.02.2018,CHILDREN'S SERVICES,WALWORTH GARDEN FARM,"6,300.00",COMMUNITY LEARNING 15/16,GRANTS,5902288148,1000042204
02.02.2018,CHILDREN'S SERVICES,WILLISPALMER,"2,950.00",DISABILITY & HIV,PROFESSIONAL FEES,5902287905,1000056409
02.02.2018,CHILDREN'S SERVICES,EAST SUSSEX COUNTY COUNCIL,"6,390.00",EARLY YEARS,RECOUPMENT,5902288274,1000015148
02.02.2018,CHILDREN'S SERVICES,CORAL COMMUNITY ASSESSMENTS LTD,"2,200.00",FAMILY ASSESSMENTS,RESIDENTIAL CARE,5902288269,1000056464
02.02.2018,CHILDREN'S SERVICES,CORAL COMMUNITY ASSESSMENTS LTD,"-2,200.00",FAMILY ASSESSMENTS,RESIDENTIAL CARE,5902288283,1000056464
02.02.2018,CHILDREN'S SERVICES,TY CONNECTIONS LTD,"3,300.00",FAMILY ASSESSMENTS,RESIDENTIAL CARE,5902288276,1000074275
02.02.2018,CHILDREN'S SERVICES,HEALTHCARE & TRANSPORT SERVICES,"49,497.75",HOME 2 SCHOOL TRANSPORT,CAB FARES,5902288153,1000042743
02.02.2018,CHILDREN'S SERVICES,REDACTED PERSONAL DATA,572,HOME 2 SCHOOL TRANSPORT,OTHER PAYMENTS FOR CLIENTS,REDACTED,REDACTED
02.02.2018,CHILDREN'S SERVICES,REDACTED PERSONAL DATA,336,HOME 2 SCHOOL TRANSPORT,OTHER PAYMENTS FOR CLIENTS,REDACTED,REDACTED
02.02.2018,CHILDREN'S SERVICES,REDACTED PERSONAL DATA,348,HOME 2 SCHOOL TRANSPORT,OTHER PAYMENTS FOR CLIENTS,REDACTED,REDACTED
02.02.2018,CHILDREN'S SERVICES,THE DRIVE CARE HOMES LTD,"12,198.76",RESIDENTIAL,RESIDENTIAL CARE,2102777071,1000003889
02.02.2018,CHILDREN'S SERVICES,THE DRIVE CARE HOMES LTD,"13,176.24",RESIDENTIAL,RESIDENTIAL CARE,2102777085,1000003889
02.02.2018,CHILDREN'S SERVICES,PLUS ONE LTD,"16,381.28",RESIDENTIAL,RESIDENTIAL CARE,2102777073,1000013874
02.02.2018,CHILDREN'S SERVICES,CASTLE HOMES LIMITED,"-1,704.63",RESIDENTIAL,RESIDENTIAL CARE,2102774657,1000019388
02.02.2018,CHILDREN'S SERVICES,CASTLE HOMES LIMITED,"16,889.51",RESIDENTIAL,RESIDENTIAL CARE,2102777079,1000019388
02.02.2018,CHILDREN'S SERVICES,CASTLE HOMES LIMITED,"15,625.11",RESIDENTIAL,RESIDENTIAL CARE,2102777084,1000019388
02.02.2018,CHILDREN'S SERVICES,SANKOFA CARE LTD,"18,600.00",RESIDENTIAL,RESIDENTIAL CARE,2102777075,1000030717
02.02.2018,CHILDREN'S SERVICES,FOOTSTEPS CARE LTD,"15,446.96",RESIDENTIAL,RESIDENTIAL CARE,2102777089,1000045464
02.02.2018,CHILDREN'S SERVICES,NEW HORIZONS CHILD CARE LTD,"17,271.34",RESIDENTIAL,RESIDENTIAL CARE,2102777069,1000051063
02.02.2018,CHILDREN'S SERVICES,NORTH LAKES CHILDRENS SERVICES,"9,767.17",RESIDENTIAL,RESIDENTIAL CARE,2102777083,1000059568
02.02.2018,CHILDREN'S SERVICES,DIRECT CARE LIMITED,"15,057.01",RESIDENTIAL,RESIDENTIAL CARE,2102777066,1000064606
02.02.2018,CHILDREN'S SERVICES,ESLAND SOUTH LTD,"29,892.86",RESIDENTIAL,RESIDENTIAL CARE,2102777086,1000074184
02.02.2018,CHILDREN'S SERVICES,CAMBIAN CHILDCARE LTD,"21,257.01",RESIDENTIAL,RESIDENTIAL CARE,2102777087,1000075351
02.02.2018,CHILDREN'S SERVICES,CHILDHOOD FIRST,"19,042.86",RESIDENTIAL,RESIDENTIAL CARE,2102777068,1000076330
02.02.2018,CHILDREN'S SERVICES,CHILDHOOD FIRST,"19,716.00",RESIDENTIAL,RESIDENTIAL CARE,2102777070,1000076330
02.02.2018,CHILDREN'S SERVICES,MEADOWS CARE LTD,"17,271.43",RESIDENTIAL,RESIDENTIAL CARE,2102777082,1000077238
02.02.2018,CHILDREN'S SERVICES,MEADOWS CARE LTD,"17,271.43",RESIDENTIAL,RESIDENTIAL CARE,2102777088,1000077238
02.02.2018,CHILDREN'S SERVICES,HILLCREST CHILDRENS SERVICES LTD,"16,430.00",RESIDENTIAL,RESIDENTIAL CARE,2102777081,1000077489
02.02.2018,CHILDREN'S SERVICES,PRESTIGE ADOLESCENT CARE & EDUCATION LTD,"15,278.66",RESIDENTIAL,RESIDENTIAL CARE,2102777074,1000077596
02.02.2018,CHILDREN'S SERVICES,INMIND CHILDRENS SERVICES LTD,"32,992.99",RESIDENTIAL,RESIDENTIAL CARE,2102777076,1000078280
02.02.2018,CHILDREN'S SERVICES,REAMCARE LTD,"18,157.13",RESIDENTIAL,RESIDENTIAL CARE,2102777067,1000078284
02.02.2018,CHILDREN'S SERVICES,THE AMICUS COMMUNITY (ARUNDEL) LTD,"20,570.67",RESIDENTIAL,RESIDENTIAL CARE,2102777065,1000079012
02.02.2018,CHILDREN'S SERVICES,THE AMICUS COMMUNITY (ARUNDEL) LTD,"18,821.34",RESIDENTIAL,RESIDENTIAL CARE,2102777080,1000079012
02.02.2018,CHILDREN'S SERVICES,ALLIANCE CARE & EDUCATION LTD,"20,880.71",RESIDENTIAL,RESIDENTIAL CARE,2102777072,1000079956
02.02.2018,CHILDREN'S SERVICES,KATTZ LTD,"29,365.01",RESIDENTIAL,RESIDENTIAL CARE,2102777078,1000080147
02.02.2018,CHILDREN'S SERVICES,ACORN HOMES (UK) LTD,"10,850.00",RESIDENTIAL,RESIDENTIAL CARE,2102777077,1000080423
02.02.2018,CHILDREN'S SERVICES,HE SAFEGUARDING LTD,375,RESOURCE PANEL,SECTION 17 PAYMENTS TO AGENCIES/CARERS,5902288255,1000077530
02.02.2018,CHILDREN'S SERVICES,CONTACT PROFESSIONALS,738,S & FAM SUPP - PRAC GRP A SET 14-16,OTHER PAYMENTS FOR CLIENTS,5902288252,1000057263
02.02.2018,CHILDREN'S SERVICES,ANDREW RELIABLE REMOVAL,300,S & FAM SUPP - PRAC GRP E SET 26-28,OTHER PAYMENTS FOR CLIENTS,5902288265,1000071141
02.02.2018,CHILDREN'S SERVICES,LOOK AHEAD CARE AND SUPPORT LTD,"3,380.76",S24 CLA,EXTERNAL AGENCIES AND BODIES,2102777096,1000047299
02.02.2018,CHILDREN'S SERVICES,LOOK AHEAD CARE AND SUPPORT LTD,"1,816.64",S24 CLA,EXTERNAL AGENCIES AND BODIES,2102777100,1000047299
02.02.2018,CHILDREN'S SERVICES,LOOK AHEAD CARE AND SUPPORT LTD,"1,816.64",S24 CLA,EXTERNAL AGENCIES AND BODIES,2102777103,1000047299
02.02.2018,CHILDREN'S SERVICES,LOOK AHEAD CARE AND SUPPORT LTD,"2,890.44",S24 CLA,EXTERNAL AGENCIES AND BODIES,2102777104,1000047299
02.02.2018,CHILDREN'S SERVICES,LOOK AHEAD CARE AND SUPPORT LTD,"1,816.64",S24 CLA,EXTERNAL AGENCIES AND BODIES,2102777108,1000047299
02.02.2018,CHILDREN'S SERVICES,FUTURE FOUNDATIONS LTD,"3,175.28",S24 CLA,EXTERNAL AGENCIES AND BODIES,2102777102,1000063272
02.02.2018,CHILDREN'S SERVICES,FUTURE FOUNDATIONS LTD,-387.28,S24 CLA,EXTERNAL AGENCIES AND BODIES,2102777109,1000063272
02.02.2018,CHILDREN'S SERVICES,BRIDGING THE GAP,"1,925.72",S24 CLA,EXTERNAL AGENCIES AND BODIES,2102777098,1000073662
02.02.2018,CHILDREN'S SERVICES,MY LIFE SEMI-INDEPENDENT PROJECT LTD,"2,046.10",S24 CLA,EXTERNAL AGENCIES AND BODIES,2102777107,1000075301
02.02.2018,CHILDREN'S SERVICES,COMMUNITY BUILDING MANAGEMENT,"4,690.62",S24 CLA,EXTERNAL AGENCIES AND BODIES,2102777105,1000078932
02.02.2018,CHILDREN'S SERVICES,LOOK AHEAD CARE AND SUPPORT LTD,"3,380.76",SEMI INDEPENDENT,EXTERNAL AGENCIES AND BODIES,2102777097,1000047299
02.02.2018,CHILDREN'S SERVICES,CONTACT PROFESSIONALS,313.5,SEMI INDEPENDENT,OTHER PAYMENTS FOR CLIENTS,2102777095,1000057263
02.02.2018,CHILDREN'S SERVICES,NETPEX LTD CORPORATE SERVICES,"1,750.00",SEMI INDEPENDENT,EXTERNAL AGENCIES AND BODIES,2102777092,1000076073
02.02.2018,CHILDREN'S SERVICES,COMMUNITY BUILDING MANAGEMENT,"12,051.36",SEMI INDEPENDENT,EXTERNAL AGENCIES AND BODIES,2102777090,1000078932
02.02.2018,CHILDREN'S SERVICES,PULSE HEALTHCARE LTD,358.8,SEN TRANSPORT,STATEMENTED FEES,5902287855,1000035063
02.02.2018,CHILDREN'S SERVICES,LOOK AHEAD CARE AND SUPPORT LTD,"1,816.64",UASC SECTION 24,EXTERNAL AGENCIES AND BODIES,2102777101,1000047299
02.02.2018,COLLECTION FUNDS,GREATER LONDON AUTHORITY,"8,367,533.00",NNDR ACCOUNT - GLA SHARE,EXTERNAL AGENCIES AND BODIES,5902286667,1000015827
02.02.2018,COLLECTION FUNDS,GREATER LONDON AUTHORITY,"-8,367,533.00",NNDR ACCOUNT - GLA SHARE,EXTERNAL AGENCIES AND BODIES,5902288466,1000015827
02.02.2018,COMMUNITIES,THE PARTICIPATION PEOPLE,"6,650.00",COMMUNITY SAFETY FUND,SUBSCRIPTIONS,5902288101,1000074059
02.02.2018,CUSTOMER EXPERIENCE,REDACTED PERSONAL DATA,267.54,MSHO,OTHER SUBSISTENCE & CONFERENCE EXPENSES,REDACTED,REDACTED
02.02.2018,CUSTOMER EXPERIENCE HGF,CECILIA MORKEH-YAMSON PELLIGRIN,"3,000.00",PRIVATE SECTOR LEASING,EXTERNAL AGENCIES AND BODIES,2102777156,1000075204
02.02.2018,CUSTOMER EXPERIENCE HGF,CANDIDO SAMPEDRO,"6,195.43",PSL (SOCIAL LETTINGS),EXTERNAL AGENCIES AND BODIES,2102777153,1000073841
02.02.2018,CUSTOMER EXPERIENCE HGF,CANDIDO SAMPEDRO,"2,000.00",PSL (SOCIAL LETTINGS),EXTERNAL AGENCIES AND BODIES,2102777154,1000073841
02.02.2018,ELECTORAL SVCES,RENNIE & MANOR JOINT MANAGEMENT COMMITTEE,410,GENERAL ELECTION,HIRE OF ROOMS/HALLS,5902288230,1000059900
02.02.2018,ENVIRONMENT AND LEISURE,RSA GEOTECHNICS LTD,"2,850.00",CAPITAL PS (LEISURE),CONSTRUCTION FEES  - EXTERNAL,5902288085,1000049259
02.02.2018,ENVIRONMENT AND LEISURE,BELL PHILLIPS ARCHITECTS LTD,"25,400.00",CAPITAL PS (LEISURE),CONSTRUCTION FEES  - EXTERNAL,5902287657,1000069307
02.02.2018,ENVIRONMENT DIRECTORATE,ANGEL SPRINGS LTD,286.65,BUSINESS CORE,CATERING MATERIALS & SUPPLIES,5902287296,1000063961
02.02.2018,ENVIRONMENT DIRECTORATE,R J MOTORS LIMITED,314.68,COMMERCIAL VEH CTRL A/C,VEHICLE REPAIRS & MAINTENANCE,5902288185,1000047106
02.02.2018,ENVIRONMENT DIRECTORATE,GREENHAM TRADING LTD,"2,223.62",ESTATE CLEANING-GENERAL,MATERIALS,5902288120,1000006610
02.02.2018,ENVIRONMENT DIRECTORATE,ABC FOOD LAW LTD,"1,250.00",FOOD SAFETY,PROFESSIONAL FEES,5902286777,1000043162
02.02.2018,ENVIRONMENT DIRECTORATE,KYBOCORP LTD,260,HOUSING SPECIAL INVESTIGATIONS,SOFTWARE,5902288111,1000074513
02.02.2018,ENVIRONMENT DIRECTORATE,COTSWOLD OUTDOOR LIMITED,915.83,JETS SOUTH TEAM,"CLOTHING, UNIFORMS & LAUNDRY",5902288225,1000045380
02.02.2018,ENVIRONMENT DIRECTORATE,CASTLE WATER LTD,343.02,MANAGEMENT TEAM,WATER,5902288151,1000078867
02.02.2018,ENVIRONMENT DIRECTORATE,NPOWER LTD,808.76,STREET TRADING A/C,ELECTRICITY,5902288118,1000078994
02.02.2018,ENVIRONMENT DIRECTORATE,SOUTHWARK NEWSPAPER LTD,288,STREET WORKS OVERHEADS,MARKETING & PUBLICITY SERVICES,5902288110,1556957
02.02.2018,ENVIRONMENT DIRECTORATE,SOUTHWARK NEWSPAPER LTD,324,STREET WORKS OVERHEADS,MARKETING & PUBLICITY SERVICES,5902288121,1556957
02.02.2018,ENVIRONMENT DIRECTORATE,SOUTHWARK NEWSPAPER LTD,288,STREET WORKS OVERHEADS,MARKETING & PUBLICITY SERVICES,5902288122,1556957
02.02.2018,ENVIRONMENT DIRECTORATE,SOUTHWARK NEWSPAPER LTD,324,STREET WORKS OVERHEADS,MARKETING & PUBLICITY SERVICES,5902288124,1556957
02.02.2018,ENVIRONMENT DIRECTORATE,SOUTHWARK NEWSPAPER LTD,276,STREET WORKS OVERHEADS,MARKETING & PUBLICITY SERVICES,5902288125,1556957
02.02.2018,ENVIRONMENT DIRECTORATE,SOUTHWARK NEWSPAPER LTD,288,STREET WORKS OVERHEADS,MARKETING & PUBLICITY SERVICES,5902288127,1556957
02.02.2018,ENVIRONMENT DIRECTORATE,SOUTHWARK NEWSPAPER LTD,288,STREET WORKS OVERHEADS,MARKETING & PUBLICITY SERVICES,5902288128,1556957
02.02.2018,ENVIRONMENT DIRECTORATE,SOUTHWARK NEWSPAPER LTD,336,STREET WORKS OVERHEADS,MARKETING & PUBLICITY SERVICES,5902288129,1556957
02.02.2018,ENVIRONMENT DIRECTORATE,SOUTHWARK NEWSPAPER LTD,288,STREET WORKS OVERHEADS,MARKETING & PUBLICITY SERVICES,5902288130,1556957
02.02.2018,ENVIRONMENT DIRECTORATE,SOUTHWARK NEWSPAPER LTD,312,STREET WORKS OVERHEADS,MARKETING & PUBLICITY SERVICES,5902288131,1556957
02.02.2018,ENVIRONMENT DIRECTORATE,SOUTHWARK NEWSPAPER LTD,276,STREET WORKS OVERHEADS,MARKETING & PUBLICITY SERVICES,5902288132,1556957
02.02.2018,ENVIRONMENT DIRECTORATE,SOUTHWARK NEWSPAPER LTD,288,STREET WORKS OVERHEADS,MARKETING & PUBLICITY SERVICES,5902288133,1556957
02.02.2018,ENVIRONMENT DIRECTORATE,SOUTHWARK NEWSPAPER LTD,288,STREET WORKS OVERHEADS,MARKETING & PUBLICITY SERVICES,5902288135,1556957
02.02.2018,ENVIRONMENT DIRECTORATE,SOUTHWARK NEWSPAPER LTD,288,STREET WORKS OVERHEADS,MARKETING & PUBLICITY SERVICES,5902288136,1556957
02.02.2018,ENVIRONMENT DIRECTORATE,SOUTHWARK NEWSPAPER LTD,276,STREET WORKS OVERHEADS,MARKETING & PUBLICITY SERVICES,5902288138,1556957
02.02.2018,ENVIRONMENT DIRECTORATE,SOUTHWARK NEWSPAPER LTD,288,STREET WORKS OVERHEADS,MARKETING & PUBLICITY SERVICES,5902288140,1556957
02.02.2018,ENVIRONMENT DIRECTORATE,SOUTHWARK NEWSPAPER LTD,276,STREET WORKS OVERHEADS,MARKETING & PUBLICITY SERVICES,5902288142,1556957
02.02.2018,ENVIRONMENT DIRECTORATE,SOUTHWARK NEWSPAPER LTD,288,STREET WORKS OVERHEADS,MARKETING & PUBLICITY SERVICES,5902288167,1556957
02.02.2018,ENVIRONMENT DIRECTORATE,SOUTHWARK NEWSPAPER LTD,384,STREET WORKS OVERHEADS,MARKETING & PUBLICITY SERVICES,5902288171,1556957
02.02.2018,ENVIRONMENT DIRECTORATE,SOUTHWARK NEWSPAPER LTD,360,STREET WORKS OVERHEADS,MARKETING & PUBLICITY SERVICES,5902288178,1556957
02.02.2018,ENVIRONMENT DIRECTORATE,SOUTHWARK NEWSPAPER LTD,276,STREET WORKS OVERHEADS,MARKETING & PUBLICITY SERVICES,5902288184,1556957
02.02.2018,ENVIRONMENT DIRECTORATE,SOUTHWARK NEWSPAPER LTD,384,STREET WORKS OVERHEADS,MARKETING & PUBLICITY SERVICES,5902288192,1556957
02.02.2018,ENVIRONMENT DIRECTORATE,SOUTHWARK NEWSPAPER LTD,336,STREET WORKS OVERHEADS,MARKETING & PUBLICITY SERVICES,5902288199,1556957
02.02.2018,ENVIRONMENT DIRECTORATE,SOUTHWARK NEWSPAPER LTD,336,STREET WORKS OVERHEADS,MARKETING & PUBLICITY SERVICES,5902288211,1556957
02.02.2018,ENVIRONMENT DIRECTORATE,SOUTHWARK NEWSPAPER LTD,288,STREET WORKS OVERHEADS,MARKETING & PUBLICITY SERVICES,5902288218,1556957
02.02.2018,ENVIRONMENT DIRECTORATE,SOUTHWARK NEWSPAPER LTD,312,STREET WORKS OVERHEADS,MARKETING & PUBLICITY SERVICES,5902288223,1556957
02.02.2018,HOUSING HRA,CALFORD SEADEN LLP,"3,934.91",CAPITAL PS (HRA),CONSTRUCTION FEES  - EXTERNAL,5902288144,1061592
02.02.2018,HOUSING HRA,UNITED HOUSE LTD,"9,977.72",CAPITAL PS (HRA),CONSTRUCTION MAIN CONTRACT -CERTIFICATED,2102777188,4002568
02.02.2018,HOUSING HRA,GEOTECHNICAL CONSULTING GROUP,"7,800.00",CAPITAL PS (HRA),CONSTRUCTION FEES  - EXTERNAL,5902287602,1000058814
02.02.2018,HOUSING HRA,DR MICHAEL LEARY-OWHIN,"1,995.00",CAPITAL PS (REGEN),LAND & BUILDINGS ACQUISITION FEES,5902288204,1000080138
02.02.2018,LEISURE DIRECTORATE,KENT COUNTY COUNCIL - LASER,867.46,BURGESS SPORTS CENTRE,ELECTRICITY,5902287265,1000012926
02.02.2018,LEISURE DIRECTORATE,GLASDON UK LIMITED,"2,410.70",CEMETERIES,EQUIPMENT PURCHASE & REPAIR,5902288106,1024073
02.02.2018,LEISURE DIRECTORATE,REDAPPLES NEWSAGENT,649.3,DULWICH LIBRARY,BOOKS & PUBLICATIONS,5902288256,11319405
02.02.2018,MODERNISATION HGF,TFL TELESALES / OYSTER FULFILMENT,500,160 TOOLEY ST.,PUBLIC TRANSPORT,5902288243,1000059727
02.02.2018,MODERNISATION HGF,SYED & QUINN LTD,500,ASW - PROFESSIONAL DEVELOPMENT,TRAINING,5902287819,1000029554
02.02.2018,MODERNISATION HGF,OSBORNE THOMAS LTD,"1,120.00",SUPPORT SERVICES,TRAINING,5902288092,1000079094
02.02.2018,PLANNING AND TRANSPORT,POSTURITE (UK) LTD,821.62,MAJOR APPLICATIONS,OFFICE EXPENSES,5902288227,11015468
02.02.2018,PLANNING AND TRANSPORT,GVA GRIMLEY LLP,"16,250.00",SUPPORT SERVICES,PROFESSIONAL FEES,5902288089,1000016057
02.02.2018,PLANNING AND TRANSPORT,GVA GRIMLEY LLP,"6,750.00",SUPPORT SERVICES,PROFESSIONAL FEES,5902288090,1000016057
02.02.2018,PLANNING AND TRANSPORT,GVA GRIMLEY LLP,"12,500.00",SUPPORT SERVICES,PROFESSIONAL FEES,5902288091,1000016057
02.02.2018,PROPERTY SERVICES,AXIS SECURITY SERVICES LTD,"8,279.05",TOWER WORKSHOPS,SECURITY SERVICES,5902288285,1000035320
02.02.2018,PUBLIC HEALTH,IMPERIAL COLLEGE HEALTHCARE NHS TRUST,"13,269.00",SEXUAL HEALTH - STI,EXTERNAL AGENCIES AND BODIES,5902288107,1000059810
02.02.2018,PUBLIC HEALTH,IMPERIAL COLLEGE HEALTHCARE NHS TRUST,"1,791.00",SEXUAL HEALTH - STI,EXTERNAL AGENCIES AND BODIES,5902288107,1000059810
02.02.2018,REGENERATION,PINSENT MASONS LLP,"39,040.87",CANADA WATER,PAYMENTS FOR LEGAL SERVICES,5902288159,1000046862
02.02.2018,SOUTHWARK BUILDING SERVICES,"BROWNING, JONES & MORRIS LTD",260,WALWORTH TM 1 DAY TO DAY - PLUMBER,MATERIALS,5902286843,1027429
02.02.2018,STRATEGIC FINANCING BUDGETS,4 FUTURES PHASE 1 LIMITED,"218,982.51",ONGOING SCHOOLS PFI COSTS,PFI/PPP PAYMENTS,5902288139,1000061400
02.02.2018,STRATEGIC FINANCING BUDGETS,4 FUTURES PHASE 2 LTD,"225,356.16",ONGOING SCHOOLS PFI COSTS,PFI/PPP PAYMENTS,5902288141,1000068567
02.02.2018,STRATEGIC FINANCING BUDGETS,4 FUTURES PHASE 2 LTD,"225,304.84",ONGOING SCHOOLS PFI COSTS,PFI/PPP PAYMENTS,5902288141,1000068567
02.02.2018,STRATEGIC FINANCING BUDGETS,JOHNSON AUSTIN PARTNERSHIP LLP,"1,000.00",PROPERTY RELATED INSURANCE,PROFESSIONAL FEES,5902288267,1000040202
02.02.2018,STRATEGIC FINANCING BUDGETS,JOHNSON AUSTIN PARTNERSHIP LLP,525,PROPERTY RELATED INSURANCE,PROFESSIONAL FEES,5902288268,1000040202
03.02.2018,CHIEF EXECUTIVE,TRUEFORM ENGINEERING LTD,423.62,CAPITAL PS (REGEN),CONSTRUCTION FEES  - EXTERNAL,5902287608,1000067694
03.02.2018,CHILDREN AND ADULT,NUMBER 10 INTERIM LTD,"3,150.00",CAPITAL PS (STRAT SERV),ICT ACQUISITION,5902288021,1000075139
03.02.2018,CHILDREN'S SERVICES,SOUTH LONDON & MAUDSLEY HOSPITAL,"6,238.00",TACKLING TROUBLED FAMILIES,EXTERNAL AGENCIES AND BODIES,5902287652,1000013096
03.02.2018,HOUSING HRA,UK POWER NETWORKS (OPERATIONS) LTD,"3,870.57",CAPITAL PS (HRA),CONSTRUCTION MAIN CONTRACT -CERTIFICATED,5902287563,1000016085
03.02.2018,HOUSING HRA,MILLS WHIPP PROJECTS LTD,"4,500.00",CAPITAL PS (HRA),CONSTRUCTION FEES  - EXTERNAL,5902287540,1000080658
03.02.2018,MODERNISATION HGF,ESSENTRA SECURITY LTD,"1,126.84",160 TOOLEY ST.,OFFICE EXPENSES,5902287861,1000025760
03.02.2018,PLANNING AND TRANSPORT,MUSICIANS INC LTD,"12,100.00",MUSICIANS INC LTD,PROFESSIONAL FEES,5902287408,1000080664
03.02.2018,STRATEGIC FINANCING BUDGETS,ALLIANCE BERNSTEIN LTD,"14,753.03",CASH MANAGERS' COSTS,PROFESSIONAL FEES,5902287441,1000055012
04.02.2018,ENVIRONMENT AND LEISURE,INTO SERVICES LONDON LTD,800,CAPITAL PS (LEISURE),CONSTRUCTION SITE COSTS,5902287498,1000059328
04.02.2018,ENVIRONMENT AND LEISURE,STANBURY BUILDING SERVICES LTD,"1,995.00",CAPITAL PS (LEISURE),CONSTRUCTION FEES  - EXTERNAL,5902287599,1000078207
04.02.2018,ENVIRONMENT DIRECTORATE,SOUTHWARK NEWSPAPER LTD,348,STREET WORKS OVERHEADS,MARKETING & PUBLICITY SERVICES,5902288234,1556957
04.02.2018,ENVIRONMENT DIRECTORATE,SOUTHWARK NEWSPAPER LTD,348,STREET WORKS OVERHEADS,MARKETING & PUBLICITY SERVICES,5902288236,1556957
04.02.2018,ENVIRONMENT DIRECTORATE,SOUTHWARK NEWSPAPER LTD,288,STREET WORKS OVERHEADS,MARKETING & PUBLICITY SERVICES,5902288237,1556957
04.02.2018,ENVIRONMENT DIRECTORATE,SOUTHWARK NEWSPAPER LTD,300,STREET WORKS OVERHEADS,MARKETING & PUBLICITY SERVICES,5902288242,1556957
04.02.2018,ENVIRONMENT DIRECTORATE,SOUTHWARK NEWSPAPER LTD,264,STREET WORKS OVERHEADS,MARKETING & PUBLICITY SERVICES,5902288244,1556957
04.02.2018,ENVIRONMENT DIRECTORATE,SOUTHWARK NEWSPAPER LTD,360,STREET WORKS OVERHEADS,MARKETING & PUBLICITY SERVICES,5902288245,1556957
04.02.2018,ENVIRONMENT DIRECTORATE,SOUTHWARK NEWSPAPER LTD,276,STREET WORKS OVERHEADS,MARKETING & PUBLICITY SERVICES,5902288247,1556957
04.02.2018,ENVIRONMENT DIRECTORATE,SOUTHWARK NEWSPAPER LTD,300,STREET WORKS OVERHEADS,MARKETING & PUBLICITY SERVICES,5902288249,1556957
04.02.2018,ENVIRONMENT DIRECTORATE,SOUTHWARK NEWSPAPER LTD,300,STREET WORKS OVERHEADS,MARKETING & PUBLICITY SERVICES,5902288253,1556957
04.02.2018,ENVIRONMENT DIRECTORATE,SOUTHWARK NEWSPAPER LTD,300,STREET WORKS OVERHEADS,MARKETING & PUBLICITY SERVICES,5902288260,1556957
04.02.2018,F & C S EXCLUDING CORPORATE BUDGETS,DSI BILLING SERVICES LTD,"1,867.71",ADMINISTRATIVE SUPPORT,POSTAGES,5902288056,1000058640
04.02.2018,F & C S EXCLUDING CORPORATE BUDGETS,HEWITT ASSOCIATES LTD,"8,692.00",PENSION FUND MANAGEMENT,PROFESSIONAL FEES,5902287477,1000000036
04.02.2018,LEISURE DIRECTORATE,JIGSAW SYSTEMS LTD T/A JIGSAW 24,666,CEMETERIES,OTHER R&M,5902288025,1000080415
04.02.2018,LEISURE DIRECTORATE,KENT COUNTY COUNCIL - LASER,"1,407.07",DULWICH AREA TEAM,ELECTRICITY,5902288082,1000012926
04.02.2018,MODERNISATION HGF,SHERRIDAN HUGHES,300,OCCUPATIONAL ASSESSMENT,CONSULTANTS SERVICES,5902287603,1000074250
04.02.2018,PLANNING AND TRANSPORT,STEER DAVIES & GLEAVE LIMITED,"4,900.00",PLANNING POLICY TEAM,CONSULTANTS SERVICES,5902287423,1823348
05.02.2018,ADULT SOCIAL CARE,EXCELCARE,"-4,381.00",DIR OF ASC,PROFESSIONAL FEES,2102778061,1961396
05.02.2018,ADULT SOCIAL CARE,GATE LODGE RESIDENTAL HOME FOR THE ELDERLEY,271.35,DIR OF ASC,PROFESSIONAL FEES,2102778062,1000063619
05.02.2018,ADULT SOCIAL CARE,HYDE HOUSING ASSOCIATION LTD,877.96,EXTRA CARE CONTRACT,RENTS,5902288364,1000013980
05.02.2018,ADULT SOCIAL CARE,HYDE HOUSING ASSOCIATION LTD,877.96,EXTRA CARE CONTRACT,RENTS,5902288368,1000013980
05.02.2018,ADULT SOCIAL CARE,THE FRANCES TAYLOR FOUNDATION,742.2,LD LTS 18-64,SUPPORTED LIVING,2102777283,1000007274
05.02.2018,ADULT SOCIAL CARE,ACCESS MOBILITY TRANSPORT LTD,"1,740.80",LD LTS 18-64,CLIENT TRANSPORT,2102777221,1000074637
05.02.2018,ADULT SOCIAL CARE,REDACTED PERSONAL DATA,"3,682.28",LD LTS 18-64,SUPPORTED LIVING,REDACTED,REDACTED
05.02.2018,ADULT SOCIAL CARE,CARE DIRECT UK LTD,337.86,MEM LTS 65+,HOMECARE - C&V,2102777348,1000066322
05.02.2018,ADULT SOCIAL CARE,YOUTH GRACES (UK) LTD,261.98,MEM LTS 65+,HOMECARE - SPOT,2102777454,1000072524
05.02.2018,ADULT SOCIAL CARE,CARE DIRECT UK LTD,372.33,MH LTS 65+,HOMECARE - SPOT,2102777342,1000066322
05.02.2018,ADULT SOCIAL CARE,EXCELCARE,622.8,OLDER SOUTH RESPITE RESDTL,NURSING PLACEMENTS FEES,2101630343,1961396
05.02.2018,ADULT SOCIAL CARE,EXCELCARE,"3,758.20",OLDER SOUTH RESPITE RESDTL,PLACEMENTS - RESPITE,2101630344,1961396
05.02.2018,ADULT SOCIAL CARE,GATE LODGE RESIDENTAL HOME FOR THE ELDERLEY,-271.35,OLDER SOUTH RESPITE RESDTL,MANDATORY STATUTORY FEES & CHARGES,2101720908,1000063619
05.02.2018,ADULT SOCIAL CARE,CARE DIRECT UK LTD,727.42,PHY LTS 18-64,HOMECARE - SPOT,2102777307,1000066322
05.02.2018,ADULT SOCIAL CARE,CARE DIRECT UK LTD,268.91,PHY LTS 18-64,HOMECARE - SPOT,2102777514,1000066322
05.02.2018,ADULT SOCIAL CARE,CARE DIRECT UK LTD,310.28,PHY LTS 18-64,HOMECARE - SPOT,2102777519,1000066322
05.02.2018,ADULT SOCIAL CARE,YOUTH GRACES (UK) LTD,261.98,PHY LTS 18-64,HOMECARE - SPOT,2102777396,1000072524
05.02.2018,ADULT SOCIAL CARE,YOUTH GRACES (UK) LTD,413.68,PHY LTS 18-64,HOMECARE - C&V,2102777448,1000072524
05.02.2018,ADULT SOCIAL CARE,YOUTH GRACES (UK) LTD,434.56,PHY LTS 18-64,HOMECARE - SPOT,2102777451,1000072524
05.02.2018,ADULT SOCIAL CARE,YOUTH GRACES (UK) LTD,386.12,PHY LTS 18-64,HOMECARE - C&V,2102777467,1000072524
05.02.2018,ADULT SOCIAL CARE,YOUTH GRACES (UK) LTD,482.72,PHY LTS 18-64,HOMECARE - SPOT,2102777472,1000072524
05.02.2018,ADULT SOCIAL CARE,CULTURE CARE AGENCY,304.5,PHY LTS 65+,HOMECARE - SPOT,2102777289,1000062127
05.02.2018,ADULT SOCIAL CARE,CARE DIRECT UK LTD,279.25,PHY LTS 65+,HOMECARE - SPOT,2102777293,1000066322
05.02.2018,ADULT SOCIAL CARE,CARE DIRECT UK LTD,286.14,PHY LTS 65+,HOMECARE - C&V,2102777295,1000066322
05.02.2018,ADULT SOCIAL CARE,CARE DIRECT UK LTD,272.35,PHY LTS 65+,HOMECARE - SPOT,2102777303,1000066322
05.02.2018,ADULT SOCIAL CARE,CARE DIRECT UK LTD,306.83,PHY LTS 65+,HOMECARE - SPOT,2102777309,1000066322
05.02.2018,ADULT SOCIAL CARE,CARE DIRECT UK LTD,427.49,PHY LTS 65+,HOMECARE - SPOT,2102777311,1000066322
05.02.2018,ADULT SOCIAL CARE,CARE DIRECT UK LTD,723.98,PHY LTS 65+,HOMECARE - SPOT,2102777315,1000066322
05.02.2018,ADULT SOCIAL CARE,CARE DIRECT UK LTD,265.46,PHY LTS 65+,HOMECARE - SPOT,2102777317,1000066322
05.02.2018,ADULT SOCIAL CARE,CARE DIRECT UK LTD,324.07,PHY LTS 65+,HOMECARE - SPOT,2102777336,1000066322
05.02.2018,ADULT SOCIAL CARE,CARE DIRECT UK LTD,434.39,PHY LTS 65+,HOMECARE - SPOT,2102777340,1000066322
05.02.2018,ADULT SOCIAL CARE,CARE DIRECT UK LTD,334.41,PHY LTS 65+,HOMECARE - SPOT,2102777346,1000066322
05.02.2018,ADULT SOCIAL CARE,CARE DIRECT UK LTD,386.12,PHY LTS 65+,HOMECARE - SPOT,2102777370,1000066322
05.02.2018,ADULT SOCIAL CARE,CARE DIRECT UK LTD,723.98,PHY LTS 65+,HOMECARE - SPOT,2102777379,1000066322
05.02.2018,ADULT SOCIAL CARE,CARE DIRECT UK LTD,472.31,PHY LTS 65+,HOMECARE - SPOT,2102777383,1000066322
05.02.2018,ADULT SOCIAL CARE,CARE DIRECT UK LTD,268.91,PHY LTS 65+,HOMECARE - SPOT,2102777477,1000066322
05.02.2018,ADULT SOCIAL CARE,CARE DIRECT UK LTD,399.91,PHY LTS 65+,HOMECARE - SPOT,2102777480,1000066322
05.02.2018,ADULT SOCIAL CARE,CARE DIRECT UK LTD,675.71,PHY LTS 65+,HOMECARE - SPOT,2102777481,1000066322
05.02.2018,ADULT SOCIAL CARE,CARE DIRECT UK LTD,482.65,PHY LTS 65+,HOMECARE - SPOT,2102777483,1000066322
05.02.2018,ADULT SOCIAL CARE,CARE DIRECT UK LTD,703.29,PHY LTS 65+,HOMECARE - SPOT,2102777484,1000066322
05.02.2018,ADULT SOCIAL CARE,CARE DIRECT UK LTD,482.65,PHY LTS 65+,HOMECARE - SPOT,2102777485,1000066322
05.02.2018,ADULT SOCIAL CARE,CARE DIRECT UK LTD,503.34,PHY LTS 65+,HOMECARE - C&V,2102777493,1000066322
05.02.2018,ADULT SOCIAL CARE,CARE DIRECT UK LTD,342.78,PHY LTS 65+,HOMECARE - SPOT,2102777498,1000066322
05.02.2018,ADULT SOCIAL CARE,CARE DIRECT UK LTD,406.81,PHY LTS 65+,HOMECARE - SPOT,2102777504,1000066322
05.02.2018,ADULT SOCIAL CARE,CARE DIRECT UK LTD,434.39,PHY LTS 65+,HOMECARE - SPOT,2102777506,1000066322
05.02.2018,ADULT SOCIAL CARE,CARE DIRECT UK LTD,265.46,PHY LTS 65+,HOMECARE - SPOT,2102777524,1000066322
05.02.2018,ADULT SOCIAL CARE,CARE DIRECT UK LTD,251.67,PHY LTS 65+,HOMECARE - SPOT,2102777528,1000066322
05.02.2018,ADULT SOCIAL CARE,YOUTH GRACES (UK) LTD,555.1,PHY LTS 65+,HOMECARE - C&V,2102777409,1000072524
05.02.2018,ADULT SOCIAL CARE,YOUTH GRACES (UK) LTD,730.94,PHY LTS 65+,HOMECARE - SPOT,2102777411,1000072524
05.02.2018,ADULT SOCIAL CARE,YOUTH GRACES (UK) LTD,282.66,PHY LTS 65+,HOMECARE - SPOT,2102777423,1000072524
05.02.2018,ADULT SOCIAL CARE,YOUTH GRACES (UK) LTD,496.51,PHY LTS 65+,HOMECARE - SPOT,2102777424,1000072524
05.02.2018,ADULT SOCIAL CARE,YOUTH GRACES (UK) LTD,399.91,PHY LTS 65+,HOMECARE - SPOT,2102777449,1000072524
05.02.2018,ADULT SOCIAL CARE,YOUTH GRACES (UK) LTD,434.56,PHY LTS 65+,HOMECARE - SPOT,2102777452,1000072524
05.02.2018,ADULT SOCIAL CARE,YOUTH GRACES (UK) LTD,503.41,PHY LTS 65+,HOMECARE - SPOT,2102777458,1000072524
05.02.2018,ADULT SOCIAL CARE,YOUTH GRACES (UK) LTD,255.22,PHY LTS 65+,HOMECARE - SPOT,2102777471,1000072524
05.02.2018,ADULT SOCIAL CARE,ROMEDICAL LTD,507.11,SAFEGUARDING TEAM,OTHER CONTRACTORS,5902288470,1000076318
05.02.2018,ADULT SOCIAL CARE,ROMEDICAL LTD,564.89,SAFEGUARDING TEAM,OTHER CONTRACTORS,5902288474,1000076318
05.02.2018,ASSET MANAGEMENT,A & H PEST CONTROL LTD,490,ENG CONTRACTS (NORTH),PLANNED MAINTENANCE,5902288292,11230875
05.02.2018,ASSET MANAGEMENT,CALFORD SEADEN LLP,670,HIP MAJOR WORKS,PLANNED MAINTENANCE,5902288464,1061592
05.02.2018,CENTRAL FUNCTIONS,STANBURY BUILDING SERVICES LTD,360,COMMERCIAL PROPERTIES,BUILDING R&M,5902288434,1000078207
05.02.2018,CENTRAL FUNCTIONS,NPOWER LTD,"2,310.39",HEATING ACCOUNT,ELECTRICITY,5902288455,1000078994
05.02.2018,CENTRAL FUNCTIONS,NPOWER LTD,568.02,HEATING ACCOUNT,ELECTRICITY,5902288455,1000078994
05.02.2018,CENTRAL FUNCTIONS,NPOWER LTD,"1,741.71",HEATING ACCOUNT,ELECTRICITY,5902288455,1000078994
05.02.2018,CHILDREN AND ADULT,ADDLESHAW GODDARD LLP,"2,127.27",CAPITAL PS (EDUCATION),CONSTRUCTION,5902288297,1000079782
05.02.2018,CHILDREN'S SERVICES,REDACTED PERSONAL DATA,500,ADOPTION PLACEMENTS & INTER AGENCY,PAYMENTS TO CARERS,REDACTED,REDACTED
05.02.2018,CHILDREN'S SERVICES,REDACTED PERSONAL DATA,747.5,ADOPTION PLACEMENTS & INTER AGENCY,PAYMENTS TO CARERS,REDACTED,REDACTED
05.02.2018,CHILDREN'S SERVICES,CHARLES ZACH GOMM,484,ADOPTION REFORM GRANT (PART B),PROFESSIONAL FEES,5902288327,1000078536
05.02.2018,CHILDREN'S SERVICES,REDACTED PERSONAL DATA,572,ADOPTION REFORM GRANT (PART B),PROFESSIONAL FEES,REDACTED,REDACTED
05.02.2018,CHILDREN'S SERVICES,ETHELBERT SPECIALIST HOMES,"3,678.11",AGENCY FOSTERING,EXTERNAL AGENCIES AND BODIES,2102777542,1796129
05.02.2018,CHILDREN'S SERVICES,ETHELBERT SPECIALIST HOMES,"3,882.40",AGENCY FOSTERING,EXTERNAL AGENCIES AND BODIES,2102777544,1796129
05.02.2018,CHILDREN'S SERVICES,ETHELBERT SPECIALIST HOMES,"3,678.11",AGENCY FOSTERING,EXTERNAL AGENCIES AND BODIES,2102777547,1796129
05.02.2018,CHILDREN'S SERVICES,ETHELBERT SPECIALIST HOMES,"3,678.11",AGENCY FOSTERING,EXTERNAL AGENCIES AND BODIES,2102777558,1796129
05.02.2018,CHILDREN'S SERVICES,ETHELBERT SPECIALIST HOMES,"3,882.40",AGENCY FOSTERING,EXTERNAL AGENCIES AND BODIES,2102777564,1796129
05.02.2018,CHILDREN'S SERVICES,KENT HOMEFINDING & FOSTERING LTD,"9,123.30",AGENCY FOSTERING,EXTERNAL AGENCIES AND BODIES,2102777559,1000033978
05.02.2018,CHILDREN'S SERVICES,CHILDREN OF COLOUR,"4,251.43",AGENCY FOSTERING,EXTERNAL AGENCIES AND BODIES,2102777533,1000044955
05.02.2018,CHILDREN'S SERVICES,CHILDREN OF COLOUR,"3,558.80",AGENCY FOSTERING,EXTERNAL AGENCIES AND BODIES,2102777534,1000044955
05.02.2018,CHILDREN'S SERVICES,CHILDREN OF COLOUR,"3,472.00",AGENCY FOSTERING,EXTERNAL AGENCIES AND BODIES,2102777539,1000044955
05.02.2018,CHILDREN'S SERVICES,CHILDREN OF COLOUR,"3,472.00",AGENCY FOSTERING,EXTERNAL AGENCIES AND BODIES,2102777551,1000044955
05.02.2018,CHILDREN'S SERVICES,NEXT STEP FOSTERING SERVICES LTD,"4,349.30",AGENCY FOSTERING,EXTERNAL AGENCIES AND BODIES,2102777549,1000044973
05.02.2018,CHILDREN'S SERVICES,DIVERSE CARE (UK) LTD,"3,468.00",AGENCY FOSTERING,EXTERNAL AGENCIES AND BODIES,2102777557,1000055636
05.02.2018,CHILDREN'S SERVICES,DIVERSE CARE (UK) LTD,"6,324.00",AGENCY FOSTERING,EXTERNAL AGENCIES AND BODIES,2102777567,1000055636
05.02.2018,CHILDREN'S SERVICES,COMPASS FOSTERING LONDON LTD,"3,272.67",AGENCY FOSTERING,EXTERNAL AGENCIES AND BODIES,2102777536,1000057908
05.02.2018,CHILDREN'S SERVICES,COMPASS FOSTERING LONDON LTD,"2,749.30",AGENCY FOSTERING,EXTERNAL AGENCIES AND BODIES,2102777553,1000057908
05.02.2018,CHILDREN'S SERVICES,COMPASS FOSTERING LONDON LTD,"3,077.99",AGENCY FOSTERING,EXTERNAL AGENCIES AND BODIES,2102777556,1000057908
05.02.2018,CHILDREN'S SERVICES,COMPASS FOSTERING LONDON LTD,"3,844.75",AGENCY FOSTERING,EXTERNAL AGENCIES AND BODIES,2102777560,1000057908
05.02.2018,CHILDREN'S SERVICES,COMPASS FOSTERING LONDON LTD,"2,878.00",AGENCY FOSTERING,EXTERNAL AGENCIES AND BODIES,2102777566,1000057908
05.02.2018,CHILDREN'S SERVICES,CHILDREN OF ALL NATIONS LTD,"4,108.43",AGENCY FOSTERING,EXTERNAL AGENCIES AND BODIES,2102777543,1000060151
05.02.2018,CHILDREN'S SERVICES,CHILDREN OF ALL NATIONS LTD,"4,108.43",AGENCY FOSTERING,EXTERNAL AGENCIES AND BODIES,2102777548,1000060151
05.02.2018,CHILDREN'S SERVICES,CHILDREN OF ALL NATIONS LTD,"4,565.19",AGENCY FOSTERING,EXTERNAL AGENCIES AND BODIES,2102777562,1000060151
05.02.2018,CHILDREN'S SERVICES,RYANCARE FOSTERING,"3,541.75",AGENCY FOSTERING,EXTERNAL AGENCIES AND BODIES,2102777541,1000062376
05.02.2018,CHILDREN'S SERVICES,BARNARDOS SERVICES LTD,"3,559.11",AGENCY FOSTERING,EXTERNAL AGENCIES AND BODIES,2102777554,1000063730
05.02.2018,CHILDREN'S SERVICES,FOLLOWING WHISPERS FAMILY SERVICE LTD,"6,525.50",AGENCY FOSTERING,EXTERNAL AGENCIES AND BODIES,2102777535,1000065611
05.02.2018,CHILDREN'S SERVICES,FOLLOWING WHISPERS FAMILY SERVICE LTD,"6,864.33",AGENCY FOSTERING,EXTERNAL AGENCIES AND BODIES,2102777552,1000065611
05.02.2018,CHILDREN'S SERVICES,ANCHOR FOSTERCARE,"3,799.67",AGENCY FOSTERING,EXTERNAL AGENCIES AND BODIES,2102777540,1000065675
05.02.2018,CHILDREN'S SERVICES,ANCHOR FOSTERCARE,"3,268.64",AGENCY FOSTERING,EXTERNAL AGENCIES AND BODIES,2102777546,1000065675
05.02.2018,CHILDREN'S SERVICES,ANCHOR FOSTERCARE,"3,268.64",AGENCY FOSTERING,EXTERNAL AGENCIES AND BODIES,2102777563,1000065675
05.02.2018,CHILDREN'S SERVICES,FOSTERCARE UK LTD,"3,197.43",AGENCY FOSTERING,EXTERNAL AGENCIES AND BODIES,2102777530,1000073002
05.02.2018,CHILDREN'S SERVICES,COMPASS FOSTERING SOUTH LTD,"3,077.99",AGENCY FOSTERING,EXTERNAL AGENCIES AND BODIES,2102777532,1000073772
05.02.2018,CHILDREN'S SERVICES,COMPASS FOSTERING SOUTH LTD,"3,308.10",AGENCY FOSTERING,EXTERNAL AGENCIES AND BODIES,2102777538,1000073772
05.02.2018,CHILDREN'S SERVICES,COMPASS FOSTERING SOUTH LTD,"2,889.60",AGENCY FOSTERING,EXTERNAL AGENCIES AND BODIES,2102777565,1000073772
05.02.2018,CHILDREN'S SERVICES,WELCOME FOSTER CARE LTD,"3,321.34",AGENCY FOSTERING,EXTERNAL AGENCIES AND BODIES,2102777537,1000074586
05.02.2018,CHILDREN'S SERVICES,WELCOME FOSTER CARE LTD,"3,764.33",AGENCY FOSTERING,EXTERNAL AGENCIES AND BODIES,2102777545,1000074586
05.02.2018,CHILDREN'S SERVICES,WELCOME FOSTER CARE LTD,"3,764.33",AGENCY FOSTERING,EXTERNAL AGENCIES AND BODIES,2102777561,1000074586
05.02.2018,CHILDREN'S SERVICES,RAINBOW FOSTERING SERVICES LTD,"3,377.76",AGENCY FOSTERING,EXTERNAL AGENCIES AND BODIES,2102777555,1000076620
05.02.2018,CHILDREN'S SERVICES,YOUNG PEOPLE AT HEART LTD,"3,100.00",AGENCY FOSTERING,EXTERNAL AGENCIES AND BODIES,2102777550,1000076694
05.02.2018,CHILDREN'S SERVICES,SELECT FOSTERCARE SERVICES LTD,"3,653.66",AGENCY FOSTERING,EXTERNAL AGENCIES AND BODIES,2102777529,1000079277
05.02.2018,CHILDREN'S SERVICES,FLEET TUTORS,"30,570.00",ALTERNATIVE PROVISION,EXTERNAL AGENCIES AND BODIES,5902288301,1000044820
05.02.2018,CHILDREN'S SERVICES,REDACTED PERSONAL DATA,500,FURTHER EDUCATION SUPPORT,OTHER PAYMENTS FOR CLIENTS,REDACTED,REDACTED
05.02.2018,CHILDREN'S SERVICES,REDACTED PERSONAL DATA,300,FURTHER EDUCATION SUPPORT,CLIENT TRANSPORT,REDACTED,REDACTED
05.02.2018,CHILDREN'S SERVICES,INTERSERVE HEALTHCARE,374.15,HOME 2 SCHOOL TRANSPORT,AGENCY STAFF,5902287683,1000049612
05.02.2018,CHILDREN'S SERVICES,REDACTED PERSONAL DATA,800,LEAVING CARE GRANT,OTHER PAYMENTS FOR CLIENTS,REDACTED,REDACTED
05.02.2018,CHILDREN'S SERVICES,REDACTED PERSONAL DATA,800,LEAVING CARE GRANT,OTHER PAYMENTS FOR CLIENTS,REDACTED,REDACTED
05.02.2018,CHILDREN'S SERVICES,THE CAMDEN SOCIETY (CATERING),312,NEWLY QUALIFIED TEACHERS,REFRESHMENTS FOR MEETINGS,5902288433,1000075365
05.02.2018,CHILDREN'S SERVICES,SPORTFIT SHORT BREAK CARE LTD,"10,230.00",RESIDENTIAL,RESIDENTIAL CARE,2102777568,1000078113
05.02.2018,CHILDREN'S SERVICES,GALAXY LETTINGS LTD,"1,085.00",S24 CLA,EXTERNAL AGENCIES AND BODIES,2102777569,1000055897
05.02.2018,CHILDREN'S SERVICES,SILVER BIRCH CARE LTD,"3,100.00",SEMI INDEPENDENT,EXTERNAL AGENCIES AND BODIES,2102777570,1000076525
05.02.2018,CHILDREN'S SERVICES,SILVER BIRCH CARE LTD,"3,100.00",SEMI INDEPENDENT,EXTERNAL AGENCIES AND BODIES,2102777571,1000076525
05.02.2018,CHILDREN'S SERVICES,SILVER BIRCH CARE LTD,"3,653.57",SEMI INDEPENDENT,EXTERNAL AGENCIES AND BODIES,2102777572,1000076525
05.02.2018,CHILDREN'S SERVICES,SILVER BIRCH CARE LTD,"14,356.00",SEMI INDEPENDENT,EXTERNAL AGENCIES AND BODIES,2102777573,1000076525
05.02.2018,CHILDREN'S SERVICES,SILVER BIRCH CARE LTD,"21,636.45",SEMI INDEPENDENT,EXTERNAL AGENCIES AND BODIES,2102777574,1000076525
05.02.2018,CHILDREN'S SERVICES,SILVER BIRCH CARE LTD,265.71,SEMI INDEPENDENT,OTHER PAYMENTS FOR CLIENTS,2102777575,1000076525
05.02.2018,CHILDREN'S SERVICES,SILVER BIRCH CARE LTD,265.71,SEMI INDEPENDENT,OTHER PAYMENTS FOR CLIENTS,2102777576,1000076525
05.02.2018,CHILDREN'S SERVICES,SILVER BIRCH CARE LTD,265.71,SEMI INDEPENDENT,OTHER PAYMENTS FOR CLIENTS,2102777577,1000076525
05.02.2018,CHILDREN'S SERVICES,SILVER BIRCH CARE LTD,"3,653.57",SEMI INDEPENDENT,EXTERNAL AGENCIES AND BODIES,2102777578,1000076525
05.02.2018,CHILDREN'S SERVICES,CAMERON SUPPORT SERVICES LTD,"4,227.85",SEMI INDEPENDENT,EXTERNAL AGENCIES AND BODIES,2102777579,1000079059
05.02.2018,CHILDREN'S SERVICES,CAMERON SUPPORT SERVICES LTD,"4,227.85",SEMI INDEPENDENT,EXTERNAL AGENCIES AND BODIES,2102777580,1000079059
05.02.2018,CHILDREN'S SERVICES,REDACTED PERSONAL DATA,"1,464.29",STAYING PUT,PAYMENTS TO CARERS,REDACTED,REDACTED
05.02.2018,CHILDREN'S SERVICES,REDACTED PERSONAL DATA,357.15,STAYING PUT,PAYMENTS TO CARERS,REDACTED,REDACTED
05.02.2018,CHILDREN'S SERVICES,REDACTED PERSONAL DATA,357.15,STAYING PUT,PAYMENTS TO CARERS,REDACTED,REDACTED
05.02.2018,CHILDREN'S SERVICES,REDACTED PERSONAL DATA,607.15,STAYING PUT,PAYMENTS TO CARERS,REDACTED,REDACTED
05.02.2018,CHILDREN'S SERVICES,REDACTED PERSONAL DATA,"1,000.00",STAYING PUT,PAYMENTS TO CARERS,REDACTED,REDACTED
05.02.2018,CHILDREN'S SERVICES,RELAKS LTD,"1,350.00",TEMPORARY ACCOMMODATION,EXTERNAL AGENCIES AND BODIES,5902288492,1000054151
05.02.2018,CHILDREN'S SERVICES,RELAKS LTD,"1,395.00",TEMPORARY ACCOMMODATION,EXTERNAL AGENCIES AND BODIES,5902288493,1000054151
05.02.2018,CHILDREN'S SERVICES,REDACTED PERSONAL DATA,400,UNIVERSITY SUPPORT,OTHER PAYMENTS FOR CLIENTS,REDACTED,REDACTED
05.02.2018,CHILDREN'S SERVICES,REDACTED PERSONAL DATA,300,UNIVERSITY SUPPORT,CLIENT TRANSPORT,REDACTED,REDACTED
05.02.2018,COMMUNITIES,EQUALITEACH C.I.C.,700,PREVENT,PROFESSIONAL FEES,5902288304,1000079800
05.02.2018,COMMUNITIES,EQUALITEACH C.I.C.,"1,800.00",PREVENT,PROFESSIONAL FEES,5902288304,1000079800
05.02.2018,COMMUNITIES,EQUALITEACH C.I.C.,"3,000.00",PREVENT,PROFESSIONAL FEES,5902288304,1000079800
05.02.2018,COMMUNITIES,EQUALITEACH C.I.C.,600,PREVENT,PROFESSIONAL FEES,5902288304,1000079800
05.02.2018,COMMUNITIES,EQUALITEACH C.I.C.,600,PREVENT,PROFESSIONAL FEES,5902288304,1000079800
05.02.2018,COMMUNITIES,EQUALITEACH C.I.C.,"1,200.00",PREVENT,PROFESSIONAL FEES,5902288304,1000079800
05.02.2018,COMMUNITIES,EQUALITEACH C.I.C.,900,PREVENT,PROFESSIONAL FEES,5902288304,1000079800
05.02.2018,COMMUNITIES,SOUTHWARK PARK  T&RA,"1,300.00",TENANTS FUND,GRANTS,5902288507,1362788
05.02.2018,CORPORATE & DEMOCRATIC CORE,THE OLD VIC,"21,375.32",CORPORATE & DEPARTMENTAL EXP.,MISCELLANEOUS EXPENSES,5902288345,1000043123
05.02.2018,CUSTOMER EXPERIENCE HGF,SG PATH LTD,415.8,CORONER'S,PROFESSIONAL FEES,5902288497,1000077883
05.02.2018,CUSTOMER EXPERIENCE HGF,RELAKS LTD,"2,754.00",NIGHTLY TA (NSC),EXTERNAL AGENCIES AND BODIES,5902288489,1000054151
05.02.2018,CUSTOMER EXPERIENCE HGF,RELAKS LTD,969,NIGHTLY TA (NSC),EXTERNAL AGENCIES AND BODIES,5902288490,1000054151
05.02.2018,CUSTOMER EXPERIENCE HGF,D SINGH PROPERTIES LTD,"27,177.00",NIGHTLY TA (NSC),EXTERNAL AGENCIES AND BODIES,5902288326,1000068030
05.02.2018,CUSTOMER EXPERIENCE HGF,SK HOUSING LTD,"7,058.70",NIGHTLY TA (NSC),EXTERNAL AGENCIES AND BODIES,5902288495,1000070716
05.02.2018,CUSTOMER EXPERIENCE HGF,DELTALET LTD,"1,116.00",NIGHTLY TA (NSC),EXTERNAL AGENCIES AND BODIES,5902288484,1000075113
05.02.2018,CUSTOMER EXPERIENCE HGF,CAOS CONFLICT MANAGEMENT,"2,450.00",NIGHTLY TA (NSC),TRAINING,5902288355,1000080649
05.02.2018,ENVIRONMENT DIRECTORATE,AUTOMOTIVE LEASING,"1,710.49",COMMERCIAL VEH CTRL A/C,HIRED VEHICLES,5902288330,11014756
05.02.2018,ENVIRONMENT DIRECTORATE,AUTOMOTIVE LEASING,"2,735.00",COMMERCIAL VEH CTRL A/C,HIRED VEHICLES,5902288331,11014756
05.02.2018,ENVIRONMENT DIRECTORATE,AUTOMOTIVE LEASING,"1,074.40",COMMERCIAL VEH CTRL A/C,HIRED VEHICLES,5902288332,11014756
05.02.2018,ENVIRONMENT DIRECTORATE,DAWSON RENTALS BUS & COACH LTD,335,COMMERCIAL VEH CTRL A/C,HIRED VEHICLES,5902288341,1000042174
05.02.2018,ENVIRONMENT DIRECTORATE,THE T.P. PARTNERSHIP,445,ESTATES (CENTRAL),OTHER CONTRACTORS,5902288451,1000045906
05.02.2018,ENVIRONMENT DIRECTORATE,THE T.P. PARTNERSHIP,455,ESTATES (CENTRAL),OTHER CONTRACTORS,5902288453,1000045906
05.02.2018,ENVIRONMENT DIRECTORATE,AGENTIS WORKWEAR LTD,572.15,MANAGEMENT TEAM,"CLOTHING, UNIFORMS & LAUNDRY",5902288357,1000065561
05.02.2018,ENVIRONMENT DIRECTORATE,W M CONSULTANCY (UK) LTD,"6,068.00",S.E.L. ILLEGAL TOBACCO ALLIANCE,PROFESSIONAL FEES,5902288322,1000050827
05.02.2018,ENVIRONMENT DIRECTORATE,GLASDON UK LIMITED,"2,940.44",STREET CLEANING-GENERAL,MATERIALS,5902288284,1024073
05.02.2018,ENVIRONMENT DIRECTORATE,SOUTHWARK NEWSPAPER LTD,384,STREET WORKS OVERHEADS,MARKETING & PUBLICITY SERVICES,5902288333,1556957
05.02.2018,ENVIRONMENT DIRECTORATE,SOUTHWARK NEWSPAPER LTD,384,STREET WORKS OVERHEADS,MARKETING & PUBLICITY SERVICES,5902288334,1556957
05.02.2018,ENVIRONMENT DIRECTORATE,SOUTHWARK NEWSPAPER LTD,288,STREET WORKS OVERHEADS,MARKETING & PUBLICITY SERVICES,5902288339,1556957
05.02.2018,ENVIRONMENT DIRECTORATE,SOUTHWARK NEWSPAPER LTD,288,STREET WORKS OVERHEADS,MARKETING & PUBLICITY SERVICES,5902288342,1556957
05.02.2018,ENVIRONMENT DIRECTORATE,SOUTHWARK NEWSPAPER LTD,288,STREET WORKS OVERHEADS,MARKETING & PUBLICITY SERVICES,5902288344,1556957
05.02.2018,ENVIRONMENT DIRECTORATE,SOUTHWARK NEWSPAPER LTD,288,STREET WORKS OVERHEADS,MARKETING & PUBLICITY SERVICES,5902288348,1556957
05.02.2018,ENVIRONMENT DIRECTORATE,SOUTHWARK NEWSPAPER LTD,264,STREET WORKS OVERHEADS,MARKETING & PUBLICITY SERVICES,5902288366,1556957
05.02.2018,ENVIRONMENT DIRECTORATE,SOUTHWARK NEWSPAPER LTD,300,STREET WORKS OVERHEADS,MARKETING & PUBLICITY SERVICES,5902288370,1556957
05.02.2018,ENVIRONMENT DIRECTORATE,SOUTHWARK NEWSPAPER LTD,312,STREET WORKS OVERHEADS,MARKETING & PUBLICITY SERVICES,5902288374,1556957
05.02.2018,ENVIRONMENT DIRECTORATE,SOUTHWARK NEWSPAPER LTD,276,STREET WORKS OVERHEADS,MARKETING & PUBLICITY SERVICES,5902288376,1556957
05.02.2018,EXTERNAL AFFAIRS,GOVDELIVERY EUROPE LTD,"2,054.00",MEDIA,OFFICE EXPENSES,5902288510,1000076351
05.02.2018,F & C S EXCLUDING CORPORATE BUDGETS,BDO LLP,"21,618.44",INTERNAL AUDIT CONTRACTS,PAYMENTS FOR FINANCIAL SERVICES,5902287784,1000057898
05.02.2018,F & C S EXCLUDING CORPORATE BUDGETS,BDO LLP,431.81,INTERNAL AUDIT CONTRACTS,PAYMENTS FOR FINANCIAL SERVICES,5902287784,1000057898
05.02.2018,HOUSING HRA,MORGAN SINDALL PLC,"375,950.00",CAPITAL PS (HRA),CONSTRUCTION MAIN CONTRACT -CERTIFICATED,2102775709,3000001556
05.02.2018,HOUSING HRA,ETC VENUES LTD,"1,000.00",CAPITAL PS (REGEN),LAND & BUILDINGS ACQUISITION FEES,5902288435,1000045226
05.02.2018,HOUSING HRA,ETC VENUES LTD,900,CAPITAL PS (REGEN),LAND & BUILDINGS ACQUISITION FEES,5902288437,1000045226
05.02.2018,HOUSING HRA,ETC VENUES LTD,"1,600.00",CAPITAL PS (REGEN),LAND & BUILDINGS ACQUISITION FEES,5902288438,1000045226
05.02.2018,HOUSING HRA,ETC VENUES LTD,650,CAPITAL PS (REGEN),LAND & BUILDINGS ACQUISITION FEES,5902288439,1000045226
05.02.2018,HOUSING HRA,ETC VENUES LTD,900,CAPITAL PS (REGEN),LAND & BUILDINGS ACQUISITION FEES,5902288440,1000045226
05.02.2018,HOUSING HRA,ETC VENUES LTD,900,CAPITAL PS (REGEN),LAND & BUILDINGS ACQUISITION FEES,5902288441,1000045226
05.02.2018,HOUSING HRA,NPOWER,458.9,RESIDENT SERVICES BUSINESS SUPPORT,ELECTRICITY,6101817647,DIRECT DEBIT PAYMENT
05.02.2018,HOUSING STRATEGY AND OPTIONS,COPELAND JERK CENTRE,850,HOMELESS & HOUSING OPTIONS MGT,OFFICE EXPENSES,5902287876,1000080659
05.02.2018,LEISURE DIRECTORATE,F G MARSHALL LTD,926.28,CREMATORIUM,MATERIALS,5902288258,1002639
05.02.2018,MODERNISATION HGF,INTERSERVE (FACILITIES MANAGEMENT),"110,143.93",FM SERVICES BY INTERSERVE,SECURITY SERVICES,5902288108,1000070792
05.02.2018,MODERNISATION HGF,LOCAL INFORMATION UNIT LTD,"1,800.00",MEMBER DEVELOPMENT,TRAINING,5902288457,1000021393
05.02.2018,MODERNISATION HGF,POSTURITE (UK) LTD,599,REPAIR AND MAINTENANCE SERVICES,FURNITURE PURCHASE & REPAIR,5902288294,11015468
05.02.2018,MODERNISATION HGF,SABIO LTD,"4,518.50",SYSTEMS,TELEPHONES (LAND LINES),5902287959,1000069680
05.02.2018,PECKHAM AND NUNHEAD COMMUNITY COUNCIL,NUNHEAD'S VOICE LTD,"3,000.00",,GRANT,-,CHEQUE PAYMENT
05.02.2018,PUBLIC HEALTH,GOVNET COMMUNICATIONS,385,PUBLIC HEALTH,OTHER SUBSISTENCE & CONFERENCE EXPENSES,5902288499,1000050132
05.02.2018,REGENERATION,DR MICHAEL LEARY-OWHIN,"4,702.50",PROFESSIONAL SERVICES (GENERAL),PROFESSIONAL FEES,5902286757,1000080138
05.02.2018,REGENERATION,WESTCO TRADING LTD,"2,130.00",STAKEHOLDER ENGAGEMENT,MARKETING & PUBLICITY SERVICES,5902288508,1000069599
05.02.2018,RESIDENT SERVICES,APCOA PARKING (UK) LTD,"43,984.21",PARKING CONTROL,OTHER CONTRACTORS,5902288432,1718645
05.02.2018,RESIDENT SERVICES,EDF ENERGY PLC,"1,119.57",TA HOSTELS,ELECTRICITY,5902288295,1008746
05.02.2018,RESIDENT SERVICES,EDF ENERGY PLC,"1,064.85",TA HOSTELS,ELECTRICITY,5902288296,1008746
05.02.2018,RESIDENT SERVICES,EDF ENERGY PLC,632.79,TA HOSTELS,ELECTRICITY,5902288298,1008746
05.02.2018,SOUTHWARK BUILDING SERVICES,N & C BUILDING MATERIALS,359.81,BERMONDSEY DAY TO DAY - ELECTRICIAN,MATERIALS,5902288351,1005586
05.02.2018,SOUTHWARK BUILDING SERVICES,ORANGE PERSONAL COMMUNICATIONS,265.33,ICT & COMMUNICATIONS,TELEPHONES (MOBILES),5902288511,11239402
05.02.2018,SOUTHWARK BUILDING SERVICES,ORANGE PERSONAL COMMUNICATIONS,"2,017.97",ICT & COMMUNICATIONS,TELEPHONES (MOBILES),5902288511,11239402
06.02.2018,ADULT SOCIAL CARE,GLEN CARE GROUP,950,APPOINTEESHIPS,OTHER PAYMENTS FOR CLIENTS,2102777593,1000050223
06.02.2018,ADULT SOCIAL CARE,DINARDO SUPPORTS LTD,500,APPOINTEESHIPS,OTHER PAYMENTS FOR CLIENTS,2102777583,1000063093
06.02.2018,ADULT SOCIAL CARE,DINARDO SUPPORTS LTD,822,APPOINTEESHIPS,OTHER PAYMENTS FOR CLIENTS,2102777584,1000063093
06.02.2018,ADULT SOCIAL CARE,DINARDO SUPPORTS LTD,375.08,APPOINTEESHIPS,OTHER PAYMENTS FOR CLIENTS,2102777585,1000063093
06.02.2018,ADULT SOCIAL CARE,AGE UK  LEWISHAM & SOUTHWARK,297,APPOINTEESHIPS,OTHER PAYMENTS FOR CLIENTS,2102777588,1000066751
06.02.2018,ADULT SOCIAL CARE,MEARS FAMILY FUNERALS,"5,016.50",APPOINTEESHIPS,OTHER PAYMENTS FOR CLIENTS,2102777591,1000078028
06.02.2018,ADULT SOCIAL CARE,SMITHS FUNERAL SERVICES LTD,"1,799.00",APPOINTEESHIPS,OTHER PAYMENTS FOR CLIENTS,2102777590,1000080524
06.02.2018,ADULT SOCIAL CARE,REDACTED PERSONAL DATA,459,APPOINTEESHIPS,OTHER PAYMENTS FOR CLIENTS,REDACTED,REDACTED
06.02.2018,ADULT SOCIAL CARE,REDACTED PERSONAL DATA,914.4,APPOINTEESHIPS,OTHER PAYMENTS FOR CLIENTS,REDACTED,REDACTED
06.02.2018,ADULT SOCIAL CARE,REDACTED PERSONAL DATA,"14,453.59",APPOINTEESHIPS,OTHER PAYMENTS FOR CLIENTS,REDACTED,REDACTED
06.02.2018,ADULT SOCIAL CARE,REDACTED PERSONAL DATA,264.8,APPOINTEESHIPS,OTHER PAYMENTS FOR CLIENTS,REDACTED,REDACTED
06.02.2018,ADULT SOCIAL CARE,REDACTED PERSONAL DATA,600,APPOINTEESHIPS,OTHER PAYMENTS FOR CLIENTS,REDACTED,REDACTED
06.02.2018,ADULT SOCIAL CARE,NATIONWIDE ACCOMMODATION,"1,526.50",ASC TEMPORARY ACCOMMODATION,EXTERNAL AGENCIES AND BODIES,5902288664,1000076112
06.02.2018,ADULT SOCIAL CARE,NESTOR PRIMECARE SERVICES LTD,"52,284.96",EXTRA CARE CONTRACT,HOMECARE - SPOT,5902288591,11098703
06.02.2018,ADULT SOCIAL CARE,NESTOR PRIMECARE SERVICES LTD,"98,673.12",EXTRA CARE CONTRACT,HOMECARE - SPOT,5902288598,11098703
06.02.2018,ADULT SOCIAL CARE,CHOICE SUPPORT,293.92,LD LTS 18-64,SUPPORTED LIVING,2102777682,1104183
06.02.2018,ADULT SOCIAL CARE,CHOICE SUPPORT,293.92,LD LTS 18-64,SUPPORTED LIVING,2102777726,1104183
06.02.2018,ADULT SOCIAL CARE,CARE DIRECT UK LTD,337.86,MEM LTS 65+,HOMECARE - C&V,2102777867,1000066322
06.02.2018,ADULT SOCIAL CARE,CARE DIRECT UK LTD,372.33,MH LTS 65+,HOMECARE - SPOT,2102777939,1000066322
06.02.2018,ADULT SOCIAL CARE,METRO HOMECARE LTD,482.65,MH LTS 65+,HOMECARE - SPOT,2102777694,1000070695
06.02.2018,ADULT SOCIAL CARE,METRO HOMECARE LTD,386.12,MH LTS 65+,HOMECARE - SPOT,2102777733,1000070695
06.02.2018,ADULT SOCIAL CARE,GS LAUNDRIES,504,OLDER PEOPLE MGMT,"CLOTHING, UNIFORMS & LAUNDRY",5902288630,1000050418
06.02.2018,ADULT SOCIAL CARE,CARE DIRECT UK LTD,727.42,PHY LTS 18-64,HOMECARE - SPOT,2102777835,1000066322
06.02.2018,ADULT SOCIAL CARE,CARE DIRECT UK LTD,317.17,PHY LTS 18-64,HOMECARE - SPOT,2102777872,1000066322
06.02.2018,ADULT SOCIAL CARE,CARE DIRECT UK LTD,641.24,PHY LTS 18-64,HOMECARE - C&V,2102777907,1000066322
06.02.2018,ADULT SOCIAL CARE,CARE DIRECT UK LTD,310.28,PHY LTS 18-64,HOMECARE - SPOT,2102777958,1000066322
06.02.2018,ADULT SOCIAL CARE,CARE DIRECT UK LTD,268.91,PHY LTS 18-64,HOMECARE - SPOT,2102777976,1000066322
06.02.2018,ADULT SOCIAL CARE,METRO HOMECARE LTD,475.76,PHY LTS 18-64,HOMECARE - SPOT,2102777637,1000070695
06.02.2018,ADULT SOCIAL CARE,METRO HOMECARE LTD,296.49,PHY LTS 18-64,HOMECARE - SPOT,2102777640,1000070695
06.02.2018,ADULT SOCIAL CARE,METRO HOMECARE LTD,372.33,PHY LTS 18-64,HOMECARE - SPOT,2102777641,1000070695
06.02.2018,ADULT SOCIAL CARE,METRO HOMECARE LTD,"1,089.41",PHY LTS 18-64,HOMECARE - SPOT,2102777643,1000070695
06.02.2018,ADULT SOCIAL CARE,METRO HOMECARE LTD,"1,351.42",PHY LTS 18-64,HOMECARE - SPOT,2102777644,1000070695
06.02.2018,ADULT SOCIAL CARE,METRO HOMECARE LTD,289.59,PHY LTS 18-64,HOMECARE - C&V,2102777664,1000070695
06.02.2018,ADULT SOCIAL CARE,METRO HOMECARE LTD,310.28,PHY LTS 18-64,HOMECARE - SPOT,2102777667,1000070695
06.02.2018,ADULT SOCIAL CARE,METRO HOMECARE LTD,327.51,PHY LTS 18-64,HOMECARE - SPOT,2102777668,1000070695
06.02.2018,ADULT SOCIAL CARE,METRO HOMECARE LTD,455.07,PHY LTS 18-64,HOMECARE - SPOT,2102777691,1000070695
06.02.2018,ADULT SOCIAL CARE,METRO HOMECARE LTD,537.81,PHY LTS 18-64,HOMECARE - SPOT,2102777700,1000070695
06.02.2018,ADULT SOCIAL CARE,METRO HOMECARE LTD,317.17,PHY LTS 18-64,HOMECARE - SPOT,2102777703,1000070695
06.02.2018,ADULT SOCIAL CARE,METRO HOMECARE LTD,337.86,PHY LTS 18-64,HOMECARE - SPOT,2102777709,1000070695
06.02.2018,ADULT SOCIAL CARE,METRO HOMECARE LTD,379.23,PHY LTS 18-64,HOMECARE - SPOT,2102777711,1000070695
06.02.2018,ADULT SOCIAL CARE,REDACTED PERSONAL DATA,"2,508.74",PHY LTS 18-64,PAYMENTS TO CLIENTS (DIRECT PAYMENTS),REDACTED,REDACTED
06.02.2018,ADULT SOCIAL CARE,SWK DISABLEMENT ASSN,760.32,PHY LTS 65+,HOMECARE - SPOT,2102777993,1000011698
06.02.2018,ADULT SOCIAL CARE,SWK DISABLEMENT ASSN,633.6,PHY LTS 65+,HOMECARE - SPOT,2102777994,1000011698
06.02.2018,ADULT SOCIAL CARE,SWK DISABLEMENT ASSN,380.16,PHY LTS 65+,HOMECARE - SPOT,2102777995,1000011698
06.02.2018,ADULT SOCIAL CARE,SWK DISABLEMENT ASSN,"2,561.20",PHY LTS 65+,HOMECARE - SPOT,2102777996,1000011698
06.02.2018,ADULT SOCIAL CARE,SWK DISABLEMENT ASSN,723.87,PHY LTS 65+,HOMECARE - C&V,2102777997,1000011698
06.02.2018,ADULT SOCIAL CARE,SWK DISABLEMENT ASSN,847.4,PHY LTS 65+,HOMECARE - SPOT,2102777998,1000011698
06.02.2018,ADULT SOCIAL CARE,SWK DISABLEMENT ASSN,889.2,PHY LTS 65+,HOMECARE - SPOT,2102777999,1000011698
06.02.2018,ADULT SOCIAL CARE,SWK DISABLEMENT ASSN,456,PHY LTS 65+,HOMECARE - C&V,2102778000,1000011698
06.02.2018,ADULT SOCIAL CARE,SWK DISABLEMENT ASSN,918.72,PHY LTS 65+,HOMECARE - SPOT,2102778002,1000011698
06.02.2018,ADULT SOCIAL CARE,SWK DISABLEMENT ASSN,"1,983.96",PHY LTS 65+,HOMECARE - SPOT,2102778003,1000011698
06.02.2018,ADULT SOCIAL CARE,CARE DIRECT UK LTD,689.5,PHY LTS 65+,HOMECARE - SPOT,2102777810,1000066322
06.02.2018,ADULT SOCIAL CARE,CARE DIRECT UK LTD,399.91,PHY LTS 65+,HOMECARE - SPOT,2102777821,1000066322
06.02.2018,ADULT SOCIAL CARE,CARE DIRECT UK LTD,723.98,PHY LTS 65+,HOMECARE - SPOT,2102777838,1000066322
06.02.2018,ADULT SOCIAL CARE,CARE DIRECT UK LTD,434.39,PHY LTS 65+,HOMECARE - SPOT,2102777841,1000066322
06.02.2018,ADULT SOCIAL CARE,CARE DIRECT UK LTD,268.91,PHY LTS 65+,HOMECARE - SPOT,2102777845,1000066322
06.02.2018,ADULT SOCIAL CARE,CARE DIRECT UK LTD,406.81,PHY LTS 65+,HOMECARE - SPOT,2102777853,1000066322
06.02.2018,ADULT SOCIAL CARE,CARE DIRECT UK LTD,472.31,PHY LTS 65+,HOMECARE - SPOT,2102777854,1000066322
06.02.2018,ADULT SOCIAL CARE,CARE DIRECT UK LTD,503.34,PHY LTS 65+,HOMECARE - C&V,2102777865,1000066322
06.02.2018,ADULT SOCIAL CARE,CARE DIRECT UK LTD,289.59,PHY LTS 65+,HOMECARE - SPOT,2102777882,1000066322
06.02.2018,ADULT SOCIAL CARE,CARE DIRECT UK LTD,265.46,PHY LTS 65+,HOMECARE - SPOT,2102777892,1000066322
06.02.2018,ADULT SOCIAL CARE,CARE DIRECT UK LTD,386.12,PHY LTS 65+,HOMECARE - SPOT,2102777898,1000066322
06.02.2018,ADULT SOCIAL CARE,CARE DIRECT UK LTD,482.65,PHY LTS 65+,HOMECARE - SPOT,2102777904,1000066322
06.02.2018,ADULT SOCIAL CARE,CARE DIRECT UK LTD,434.39,PHY LTS 65+,HOMECARE - SPOT,2102777906,1000066322
06.02.2018,ADULT SOCIAL CARE,CARE DIRECT UK LTD,427.49,PHY LTS 65+,HOMECARE - SPOT,2102777911,1000066322
06.02.2018,ADULT SOCIAL CARE,CARE DIRECT UK LTD,334.41,PHY LTS 65+,HOMECARE - SPOT,2102777916,1000066322
06.02.2018,ADULT SOCIAL CARE,CARE DIRECT UK LTD,703.29,PHY LTS 65+,HOMECARE - SPOT,2102777926,1000066322
06.02.2018,ADULT SOCIAL CARE,CARE DIRECT UK LTD,272.35,PHY LTS 65+,HOMECARE - SPOT,2102777928,1000066322
06.02.2018,ADULT SOCIAL CARE,CARE DIRECT UK LTD,289.59,PHY LTS 65+,HOMECARE - SPOT,2102777933,1000066322
06.02.2018,ADULT SOCIAL CARE,CARE DIRECT UK LTD,337.86,PHY LTS 65+,HOMECARE - SPOT,2102777937,1000066322
06.02.2018,ADULT SOCIAL CARE,CARE DIRECT UK LTD,293.04,PHY LTS 65+,HOMECARE - SPOT,2102777938,1000066322
06.02.2018,ADULT SOCIAL CARE,CARE DIRECT UK LTD,286.14,PHY LTS 65+,HOMECARE - C&V,2102777940,1000066322
06.02.2018,ADULT SOCIAL CARE,CARE DIRECT UK LTD,279.25,PHY LTS 65+,HOMECARE - SPOT,2102777943,1000066322
06.02.2018,ADULT SOCIAL CARE,CARE DIRECT UK LTD,723.98,PHY LTS 65+,HOMECARE - SPOT,2102777944,1000066322
06.02.2018,ADULT SOCIAL CARE,CARE DIRECT UK LTD,482.65,PHY LTS 65+,HOMECARE - SPOT,2102777954,1000066322
06.02.2018,ADULT SOCIAL CARE,CARE DIRECT UK LTD,251.67,PHY LTS 65+,HOMECARE - SPOT,2102777961,1000066322
06.02.2018,ADULT SOCIAL CARE,CARE DIRECT UK LTD,306.83,PHY LTS 65+,HOMECARE - SPOT,2102777962,1000066322
06.02.2018,ADULT SOCIAL CARE,CARE DIRECT UK LTD,675.71,PHY LTS 65+,HOMECARE - SPOT,2102777967,1000066322
06.02.2018,ADULT SOCIAL CARE,CARE DIRECT UK LTD,475.76,PHY LTS 65+,HOMECARE - SPOT,2102777974,1000066322
06.02.2018,ADULT SOCIAL CARE,CARE DIRECT UK LTD,434.39,PHY LTS 65+,HOMECARE - SPOT,2102777977,1000066322
06.02.2018,ADULT SOCIAL CARE,CARE DIRECT UK LTD,265.46,PHY LTS 65+,HOMECARE - SPOT,2102777986,1000066322
06.02.2018,ADULT SOCIAL CARE,CARE DIRECT UK LTD,265.46,PHY LTS 65+,HOMECARE - SPOT,2102777988,1000066322
06.02.2018,ADULT SOCIAL CARE,METRO HOMECARE LTD,465.41,PHY LTS 65+,HOMECARE - SPOT,2102777619,1000070695
06.02.2018,ADULT SOCIAL CARE,METRO HOMECARE LTD,386.12,PHY LTS 65+,HOMECARE - SPOT,2102777621,1000070695
06.02.2018,ADULT SOCIAL CARE,METRO HOMECARE LTD,461.97,PHY LTS 65+,HOMECARE - SPOT,2102777622,1000070695
06.02.2018,ADULT SOCIAL CARE,METRO HOMECARE LTD,965.3,PHY LTS 65+,HOMECARE - SPOT,2102777623,1000070695
06.02.2018,ADULT SOCIAL CARE,METRO HOMECARE LTD,455.07,PHY LTS 65+,HOMECARE - SPOT,2102777627,1000070695
06.02.2018,ADULT SOCIAL CARE,METRO HOMECARE LTD,448.18,PHY LTS 65+,HOMECARE - SPOT,2102777628,1000070695
06.02.2018,ADULT SOCIAL CARE,METRO HOMECARE LTD,965.3,PHY LTS 65+,HOMECARE - SPOT,2102777629,1000070695
06.02.2018,ADULT SOCIAL CARE,METRO HOMECARE LTD,537.81,PHY LTS 65+,HOMECARE - SPOT,2102777632,1000070695
06.02.2018,ADULT SOCIAL CARE,METRO HOMECARE LTD,337.86,PHY LTS 65+,HOMECARE - SPOT,2102777634,1000070695
06.02.2018,ADULT SOCIAL CARE,METRO HOMECARE LTD,"1,723.75",PHY LTS 65+,HOMECARE - SPOT,2102777636,1000070695
06.02.2018,ADULT SOCIAL CARE,METRO HOMECARE LTD,"1,061.83",PHY LTS 65+,HOMECARE - SPOT,2102777638,1000070695
06.02.2018,ADULT SOCIAL CARE,METRO HOMECARE LTD,"1,179.05",PHY LTS 65+,HOMECARE - SPOT,2102777642,1000070695
06.02.2018,ADULT SOCIAL CARE,METRO HOMECARE LTD,489.55,PHY LTS 65+,HOMECARE - SPOT,2102777645,1000070695
06.02.2018,ADULT SOCIAL CARE,METRO HOMECARE LTD,337.86,PHY LTS 65+,HOMECARE - SPOT,2102777648,1000070695
06.02.2018,ADULT SOCIAL CARE,METRO HOMECARE LTD,"1,572.06",PHY LTS 65+,HOMECARE - SPOT,2102777649,1000070695
06.02.2018,ADULT SOCIAL CARE,METRO HOMECARE LTD,317.17,PHY LTS 65+,HOMECARE - SPOT,2102777650,1000070695
06.02.2018,ADULT SOCIAL CARE,METRO HOMECARE LTD,317.17,PHY LTS 65+,HOMECARE - SPOT,2102777651,1000070695
06.02.2018,ADULT SOCIAL CARE,METRO HOMECARE LTD,434.39,PHY LTS 65+,HOMECARE - SPOT,2102777653,1000070695
06.02.2018,ADULT SOCIAL CARE,METRO HOMECARE LTD,"1,048.04",PHY LTS 65+,HOMECARE - SPOT,2102777658,1000070695
06.02.2018,ADULT SOCIAL CARE,METRO HOMECARE LTD,551.6,PHY LTS 65+,HOMECARE - SPOT,2102777659,1000070695
06.02.2018,ADULT SOCIAL CARE,METRO HOMECARE LTD,868.77,PHY LTS 65+,HOMECARE - SPOT,2102777663,1000070695
06.02.2018,ADULT SOCIAL CARE,METRO HOMECARE LTD,799.82,PHY LTS 65+,HOMECARE - C&V,2102777669,1000070695
06.02.2018,ADULT SOCIAL CARE,METRO HOMECARE LTD,551.6,PHY LTS 65+,HOMECARE - SPOT,2102777670,1000070695
06.02.2018,ADULT SOCIAL CARE,METRO HOMECARE LTD,358.54,PHY LTS 65+,HOMECARE - C&V,2102777671,1000070695
06.02.2018,ADULT SOCIAL CARE,METRO HOMECARE LTD,310.28,PHY LTS 65+,HOMECARE - SPOT,2102777672,1000070695
06.02.2018,ADULT SOCIAL CARE,METRO HOMECARE LTD,337.86,PHY LTS 65+,HOMECARE - SPOT,2102777673,1000070695
06.02.2018,ADULT SOCIAL CARE,METRO HOMECARE LTD,772.24,PHY LTS 65+,HOMECARE - SPOT,2102777674,1000070695
06.02.2018,ADULT SOCIAL CARE,METRO HOMECARE LTD,868.77,PHY LTS 65+,HOMECARE - SPOT,2102777675,1000070695
06.02.2018,ADULT SOCIAL CARE,METRO HOMECARE LTD,393.02,PHY LTS 65+,HOMECARE - SPOT,2102777676,1000070695
06.02.2018,ADULT SOCIAL CARE,METRO HOMECARE LTD,337.86,PHY LTS 65+,HOMECARE - SPOT,2102777677,1000070695
06.02.2018,ADULT SOCIAL CARE,METRO HOMECARE LTD,"1,241.10",PHY LTS 65+,HOMECARE - C&V,2102777678,1000070695
06.02.2018,ADULT SOCIAL CARE,METRO HOMECARE LTD,393.02,PHY LTS 65+,HOMECARE - SPOT,2102777679,1000070695
06.02.2018,ADULT SOCIAL CARE,METRO HOMECARE LTD,386.12,PHY LTS 65+,HOMECARE - SPOT,2102777683,1000070695
06.02.2018,ADULT SOCIAL CARE,METRO HOMECARE LTD,434.39,PHY LTS 65+,HOMECARE - SPOT,2102777684,1000070695
06.02.2018,ADULT SOCIAL CARE,METRO HOMECARE LTD,"1,020.46",PHY LTS 65+,HOMECARE - SPOT,2102777686,1000070695
06.02.2018,ADULT SOCIAL CARE,METRO HOMECARE LTD,499.89,PHY LTS 65+,HOMECARE - SPOT,2102777689,1000070695
06.02.2018,ADULT SOCIAL CARE,METRO HOMECARE LTD,551.6,PHY LTS 65+,HOMECARE - SPOT,2102777693,1000070695
06.02.2018,ADULT SOCIAL CARE,METRO HOMECARE LTD,"1,185.94",PHY LTS 65+,HOMECARE - SPOT,2102777695,1000070695
06.02.2018,ADULT SOCIAL CARE,METRO HOMECARE LTD,"1,627.22",PHY LTS 65+,HOMECARE - SPOT,2102777701,1000070695
06.02.2018,ADULT SOCIAL CARE,METRO HOMECARE LTD,544.71,PHY LTS 65+,HOMECARE - SPOT,2102777702,1000070695
06.02.2018,ADULT SOCIAL CARE,METRO HOMECARE LTD,406.81,PHY LTS 65+,HOMECARE - SPOT,2102777706,1000070695
06.02.2018,ADULT SOCIAL CARE,METRO HOMECARE LTD,"1,034.25",PHY LTS 65+,HOMECARE - SPOT,2102777707,1000070695
06.02.2018,ADULT SOCIAL CARE,METRO HOMECARE LTD,399.91,PHY LTS 65+,HOMECARE - SPOT,2102777710,1000070695
06.02.2018,ADULT SOCIAL CARE,METRO HOMECARE LTD,372.33,PHY LTS 65+,HOMECARE - SPOT,2102777712,1000070695
06.02.2018,ADULT SOCIAL CARE,METRO HOMECARE LTD,"1,158.36",PHY LTS 65+,HOMECARE - SPOT,2102777713,1000070695
06.02.2018,ADULT SOCIAL CARE,METRO HOMECARE LTD,923.93,PHY LTS 65+,HOMECARE - SPOT,2102777714,1000070695
06.02.2018,ADULT SOCIAL CARE,METRO HOMECARE LTD,489.55,PHY LTS 65+,HOMECARE - SPOT,2102777715,1000070695
06.02.2018,ADULT SOCIAL CARE,METRO HOMECARE LTD,358.54,PHY LTS 65+,HOMECARE - SPOT,2102777717,1000070695
06.02.2018,ADULT SOCIAL CARE,METRO HOMECARE LTD,482.65,PHY LTS 65+,HOMECARE - SPOT,2102777719,1000070695
06.02.2018,ADULT SOCIAL CARE,METRO HOMECARE LTD,406.81,PHY LTS 65+,HOMECARE - SPOT,2102777720,1000070695
06.02.2018,ADULT SOCIAL CARE,METRO HOMECARE LTD,365.44,PHY LTS 65+,HOMECARE - C&V,2102777721,1000070695
06.02.2018,ADULT SOCIAL CARE,METRO HOMECARE LTD,324.07,PHY LTS 65+,HOMECARE - SPOT,2102777722,1000070695
06.02.2018,ADULT SOCIAL CARE,METRO HOMECARE LTD,358.54,PHY LTS 65+,HOMECARE - C&V,2102777723,1000070695
06.02.2018,ADULT SOCIAL CARE,METRO HOMECARE LTD,"1,323.84",PHY LTS 65+,HOMECARE - C&V,2102777729,1000070695
06.02.2018,ADULT SOCIAL CARE,METRO HOMECARE LTD,"1,103.20",PHY LTS 65+,HOMECARE - SPOT,2102777736,1000070695
06.02.2018,ADULT SOCIAL CARE,METRO HOMECARE LTD,558.5,PHY LTS 65+,HOMECARE - SPOT,2102777742,1000070695
06.02.2018,ADULT SOCIAL CARE,METRO HOMECARE LTD,386.12,PHY LTS 65+,HOMECARE - SPOT,2102777743,1000070695
06.02.2018,ADULT SOCIAL CARE,METRO HOMECARE LTD,496.44,PHY LTS 65+,HOMECARE - SPOT,2102777745,1000070695
06.02.2018,ADULT SOCIAL CARE,METRO HOMECARE LTD,337.86,PHY LTS 65+,HOMECARE - SPOT,2102777751,1000070695
06.02.2018,ADULT SOCIAL CARE,METRO HOMECARE LTD,310.28,PHY LTS 65+,HOMECARE - SPOT,2102777752,1000070695
06.02.2018,ADULT SOCIAL CARE,METRO HOMECARE LTD,"1,061.83",PHY LTS 65+,HOMECARE - C&V,2102777754,1000070695
06.02.2018,ADULT SOCIAL CARE,METRO HOMECARE LTD,503.34,PHY LTS 65+,HOMECARE - SPOT,2102777756,1000070695
06.02.2018,ADULT SOCIAL CARE,METRO HOMECARE LTD,255.12,PHY LTS 65+,HOMECARE - SPOT,2102777757,1000070695
06.02.2018,ADULT SOCIAL CARE,4SONS CARE ASSESSMENT LTD,413,SAFEGUARDING TEAM,OTHER CONTRACTORS,5902288515,1000074727
06.02.2018,ADULT SOCIAL CARE,4SONS CARE ASSESSMENT LTD,413,SAFEGUARDING TEAM,OTHER CONTRACTORS,5902288517,1000074727
06.02.2018,ADULT SOCIAL CARE,CARE DIRECT UK LTD,268.91,SOCIAL ISOLATION,HOMECARE - SPOT,2102777951,1000066322
06.02.2018,ADULT SOCIAL CARE,METRO HOMECARE LTD,296.49,SOCIAL ISOLATION,HOMECARE - SPOT,2102777739,1000070695
06.02.2018,ADULT SOCIAL CARE,STREETSCENE ADDICTION RECOVERY,"2,347.09",SUB LTS 18-64,PLACEMENTS - REHAB,2102777769,11221787
06.02.2018,ASSET MANAGEMENT,ANTHONY GOLD SOLICITORS,"6,605.00",DISREPAIR,LEGAL FEES & COURT COSTS,5902288608,1000050198
06.02.2018,ASSET MANAGEMENT,ANTHONY GOLD SOLICITORS,"3,000.00",DISREPAIR,LEGAL FEES & COURT COSTS,5902288615,1000050198
06.02.2018,ASSET MANAGEMENT,ANTHONY GOLD SOLICITORS,"3,000.00",DISREPAIR,LEGAL FEES & COURT COSTS,5902288622,1000050198
06.02.2018,ASSET MANAGEMENT,ANTHONY GOLD SOLICITORS,"2,000.00",DISREPAIR,LEGAL FEES & COURT COSTS,5902288647,1000050198
06.02.2018,ASSET MANAGEMENT,TV EDWARDS LLP,"5,277.72",DISREPAIR,LEGAL FEES & COURT COSTS,5902288641,1000053290
06.02.2018,ASSET MANAGEMENT,MORRISON SPOWART SOLICITORS,"3,500.00",DISREPAIR,LEGAL FEES & COURT COSTS,5902288631,1000053327
06.02.2018,ASSET MANAGEMENT,CLEAR LAW LLP,"1,500.00",DISREPAIR,LEGAL FEES & COURT COSTS,5902288635,1000073992
06.02.2018,ASSET MANAGEMENT,MLA SOLICITORS,"4,500.00",DISREPAIR,LEGAL FEES & COURT COSTS,5902288649,1000079716
06.02.2018,CENTRAL FUNCTIONS,STANBURY BUILDING SERVICES LTD,895,COMMERCIAL PROPERTIES,BUILDING R&M,2102778037,3000001967
06.02.2018,CENTRAL FUNCTIONS,E&J ESTATES,"3,000.00",SERVICE LEVEL AGREEMENTS,LEGAL FEES & COURT COSTS,5902288655,1000079211
06.02.2018,CHIEF EXECUTIVE,JERRAM FALKUS CONSTRUCTION,"55,052.76",CAPITAL PS (REGEN),CONSTRUCTION MAIN CONTRACT,2102778025,4003636
06.02.2018,CHIEF EXECUTIVE,AIR MONITORS LTD,"7,350.00",CAPITAL PS (REGEN),CONSTRUCTION,5902288669,1000054414
06.02.2018,CHIEF EXECUTIVE,BANKSIDE OPEN SPACES TRADING LTD,"150,000.00",CAPITAL PS (REGEN),CONSTRUCTION,5902288555,1000069665
06.02.2018,CHIEF EXECUTIVE'S OFFICE,J C CONSULTANT SERVICES LTD,"8,000.00",CHIEF EXEC'S OFFICE,GRANTS,5902288659,1000042476
06.02.2018,CHIEF EXECUTIVE'S OFFICE,J C CONSULTANT SERVICES LTD,"8,500.00",CHIEF EXEC'S OFFICE,GRANTS,5902288661,1000042476
06.02.2018,CHIEF EXECUTIVE'S OFFICE,J C CONSULTANT SERVICES LTD,"30,419.00",CHIEF EXEC'S OFFICE,GRANTS,5902288663,1000042476
06.02.2018,CHILDREN AND ADULT,GALLIFORD TRY LTD,"788,500.00",CAPITAL PS (EDUCATION),CONSTRUCTION MAIN CONTRACT -CERTIFICATED,2102778027,3000000525
06.02.2018,CHILDREN AND ADULT,MORGAN SINDALL PLC,"207,514.26",CAPITAL PS (EDUCATION),CONSTRUCTION MAIN CONTRACT -CERTIFICATED,2102778028,3000001556
06.02.2018,CHILDREN AND ADULT,MORGAN SINDALL PLC,"68,385.00",CAPITAL PS (EDUCATION),CONST'N MAIN CONTRACT - NON CERTIFICATED,2102778029,3000001556
06.02.2018,CHILDREN AND ADULT,REDACTED PERSONAL DATA,"1,625.20",CAPITAL PS (EDUCATION),FIT-OUT,REDACTED,REDACTED
06.02.2018,CHILDREN AND ADULT,FAITHFUL & GOULD,"16,223.00",CAPITAL PS (SOC SERV),CONSTRUCTION FEES  - EXTERNAL,5902288666,1000061390
06.02.2018,CHILDREN'S SERVICES,SUPPORTED FOSTERING SERVICES,"3,527.36",AGENCY FOSTERING,EXTERNAL AGENCIES AND BODIES,2102777772,1927554
06.02.2018,CHILDREN'S SERVICES,SUPPORTED FOSTERING SERVICES,"3,095.57",AGENCY FOSTERING,EXTERNAL AGENCIES AND BODIES,2102777776,1927554
06.02.2018,CHILDREN'S SERVICES,HELP ME GROW FOSTERING SERVICES LTD,"2,869.67",AGENCY FOSTERING,EXTERNAL AGENCIES AND BODIES,2102777771,1000079302
06.02.2018,CHILDREN'S SERVICES,HELP ME GROW FOSTERING SERVICES LTD,"3,188.35",AGENCY FOSTERING,EXTERNAL AGENCIES AND BODIES,2102777774,1000079302
06.02.2018,CHILDREN'S SERVICES,HELP ME GROW FOSTERING SERVICES LTD,"5,757.01",AGENCY FOSTERING,EXTERNAL AGENCIES AND BODIES,2102777778,1000079302
06.02.2018,CHILDREN'S SERVICES,HELP ME GROW FOSTERING SERVICES LTD,"2,869.67",AGENCY FOSTERING,EXTERNAL AGENCIES AND BODIES,2102777779,1000079302
06.02.2018,CHILDREN'S SERVICES,HELP ME GROW FOSTERING SERVICES LTD,"3,188.35",AGENCY FOSTERING,EXTERNAL AGENCIES AND BODIES,2102777780,1000079302
06.02.2018,CHILDREN'S SERVICES,SHINING STARS FOSTERING AGENCY LTD,"5,785.71",AGENCY FOSTERING,EXTERNAL AGENCIES AND BODIES,2102777775,1000079431
06.02.2018,CHILDREN'S SERVICES,SHINING STARS FOSTERING AGENCY LTD,"3,542.68",AGENCY FOSTERING,EXTERNAL AGENCIES AND BODIES,2102777777,1000079431
06.02.2018,CHILDREN'S SERVICES,LIGHTHOUSE FOSTERING LTD,"5,978.57",AGENCY FOSTERING,EXTERNAL AGENCIES AND BODIES,2102777773,1000080372
06.02.2018,CHILDREN'S SERVICES,ALL4U FOSTERING LTD,"1,870.56",AGENCY FOSTERING,EXTERNAL AGENCIES AND BODIES,2102777531,1000080663
06.02.2018,CHILDREN'S SERVICES,ALL4U FOSTERING LTD,"6,443.04",AGENCY FOSTERING,EXTERNAL AGENCIES AND BODIES,2102777781,1000080663
06.02.2018,CHILDREN'S SERVICES,TREASURE HOUSE (LONDON) CIC,"3,307.50",ALTERNATIVE PROVISION,EXTERNAL AGENCIES AND BODIES,5902288544,1000061163
06.02.2018,CHILDREN'S SERVICES,TREASURE HOUSE (LONDON) CIC,"2,205.00",ALTERNATIVE PROVISION,EXTERNAL AGENCIES AND BODIES,5902288547,1000061163
06.02.2018,CHILDREN'S SERVICES,TREASURE HOUSE (LONDON) CIC,"2,362.50",ALTERNATIVE PROVISION,EXTERNAL AGENCIES AND BODIES,5902288548,1000061163
06.02.2018,CHILDREN'S SERVICES,TREASURE HOUSE (LONDON) CIC,"1,575.00",ALTERNATIVE PROVISION,EXTERNAL AGENCIES AND BODIES,5902288550,1000061163
06.02.2018,CHILDREN'S SERVICES,ACTIVE RECRUITMENT SEN LTD,"1,900.00",CENTRAL COSTS - SEN,CONTRIBUTION TO PROVISIONS (TP PAYMENTS),5902288628,1000078380
06.02.2018,CHILDREN'S SERVICES,REDACTED PERSONAL DATA,350,HOME 2 SCHOOL TRANSPORT,OTHER PAYMENTS FOR CLIENTS,REDACTED,REDACTED
06.02.2018,CHILDREN'S SERVICES,REDACTED PERSONAL DATA,"1,306.80",HOME 2 SCHOOL TRANSPORT,OTHER PAYMENTS FOR CLIENTS,REDACTED,REDACTED
06.02.2018,CHILDREN'S SERVICES,YOUNG FUTURES,"1,984.00",S24 CLA,EXTERNAL AGENCIES AND BODIES,2102777784,1000059563
06.02.2018,CHILDREN'S SERVICES,YOUNG FUTURES,"2,790.00",S24 CLA,EXTERNAL AGENCIES AND BODIES,2102777786,1000059563
06.02.2018,CHILDREN'S SERVICES,YOUNG FUTURES,"-1,809.31",S24 CLA,EXTERNAL AGENCIES AND BODIES,2102777787,1000059563
06.02.2018,CHILDREN'S SERVICES,YOUNG FUTURES,-903.34,S24 CLA,EXTERNAL AGENCIES AND BODIES,2102777789,1000059563
06.02.2018,CHILDREN'S SERVICES,YOUNG FUTURES,"1,984.00",S24 CLA,EXTERNAL AGENCIES AND BODIES,2102777792,1000059563
06.02.2018,CHILDREN'S SERVICES,YOUNG FUTURES,-544.05,S24 CLA,EXTERNAL AGENCIES AND BODIES,2102777795,1000059563
06.02.2018,CHILDREN'S SERVICES,YOUNG FUTURES,"3,365.67",S24 CLA,EXTERNAL AGENCIES AND BODIES,2102777798,1000059563
06.02.2018,CHILDREN'S SERVICES,YOUNG FUTURES,"2,214.33",S24 CLA,EXTERNAL AGENCIES AND BODIES,2102777799,1000059563
06.02.2018,CHILDREN'S SERVICES,YOUNG FUTURES,-903.34,S24 CLA,EXTERNAL AGENCIES AND BODIES,2102777801,1000059563
06.02.2018,CHILDREN'S SERVICES,YOUNG FUTURES,"2,790.00",S24 CLA,EXTERNAL AGENCIES AND BODIES,2102777803,1000059563
06.02.2018,CHILDREN'S SERVICES,YOUNG FUTURES,"-1,015.28",S24 CLA,EXTERNAL AGENCIES AND BODIES,2102777805,1000059563
06.02.2018,CHILDREN'S SERVICES,YOUNG FUTURES,-903.34,S24 CLA,EXTERNAL AGENCIES AND BODIES,2102777806,1000059563
06.02.2018,CHILDREN'S SERVICES,YOUNG FUTURES,"2,214.33",S24 CLA,EXTERNAL AGENCIES AND BODIES,2102777807,1000059563
06.02.2018,CHILDREN'S SERVICES,FINEFAIR LTD,957.51,S24 CLA,EXTERNAL AGENCIES AND BODIES,2102777783,1000075570
06.02.2018,CHILDREN'S SERVICES,FINEFAIR LTD,"1,687.33",S24 CLA,EXTERNAL AGENCIES AND BODIES,2102777785,1000075570
06.02.2018,CHILDREN'S SERVICES,FINEFAIR LTD,"2,192.32",S24 CLA,EXTERNAL AGENCIES AND BODIES,2102777788,1000075570
06.02.2018,CHILDREN'S SERVICES,FINEFAIR LTD,"1,687.33",S24 CLA,EXTERNAL AGENCIES AND BODIES,2102777791,1000075570
06.02.2018,CHILDREN'S SERVICES,FINEFAIR LTD,876.82,S24 CLA,EXTERNAL AGENCIES AND BODIES,2102777796,1000075570
06.02.2018,CHILDREN'S SERVICES,FINEFAIR LTD,851.12,S24 CLA,EXTERNAL AGENCIES AND BODIES,2102777797,1000075570
06.02.2018,CHILDREN'S SERVICES,FINEFAIR LTD,"1,894.72",S24 CLA,EXTERNAL AGENCIES AND BODIES,2102777800,1000075570
06.02.2018,CHILDREN'S SERVICES,FINEFAIR LTD,"1,687.33",S24 CLA,EXTERNAL AGENCIES AND BODIES,2102777802,1000075570
06.02.2018,CHILDREN'S SERVICES,FINEFAIR LTD,"1,687.33",S24 CLA,EXTERNAL AGENCIES AND BODIES,2102777804,1000075570
06.02.2018,CHILDREN'S SERVICES,FINEFAIR LTD,"1,687.33",S24 CLA,EXTERNAL AGENCIES AND BODIES,2102777808,1000075570
06.02.2018,CHILDREN'S SERVICES,YOUNG FUTURES,"2,214.02",SEMI INDEPENDENT,EXTERNAL AGENCIES AND BODIES,2102777782,1000059563
06.02.2018,CHILDREN'S SERVICES,THE CAMDEN SOCIETY (CATERING),"15,750.00",SHORT BREAKS,EXTERNAL AGENCIES AND BODIES,5902288626,1000075365
06.02.2018,CHILDREN'S SERVICES,LIVING ACCOMODATION LTD,"4,371.00",TEMPORARY ACCOMMODATION,EXTERNAL AGENCIES AND BODIES,5902288646,1000063985
06.02.2018,CHILDREN'S SERVICES,LIVING ACCOMODATION LTD,"4,371.00",TEMPORARY ACCOMMODATION,EXTERNAL AGENCIES AND BODIES,5902288688,1000063985
06.02.2018,CHILDREN'S SERVICES,YOUNG FUTURES,"2,214.33",UASC SECTION 24,EXTERNAL AGENCIES AND BODIES,2102777793,1000059563
06.02.2018,CHILDREN'S SERVICES,YOUNG FUTURES,"2,214.33",UASC SECTION 24,EXTERNAL AGENCIES AND BODIES,2102777794,1000059563
06.02.2018,COLLECTION FUNDS,GREATER LONDON AUTHORITY,"2,746,662.28",GLA PRECEPT,LEVIES,5902288578,1000015827
06.02.2018,COLLECTION FUNDS,GREATER LONDON AUTHORITY,"8,367,533.00",NNDR ACCOUNT - GLA SHARE,EXTERNAL AGENCIES AND BODIES,5902288573,1000015827
06.02.2018,COMMISSIONING & CENTRAL,THE SALVATION ARMY,"68,365.75",SUPPORTING PEOPLE,EXTERNAL AGENCIES AND BODIES,5902288634,1000016253
06.02.2018,COMMISSIONING & CENTRAL,METROPOLITAN SUPPORT TRUST,"136,435.75",SUPPORTING PEOPLE,EXTERNAL AGENCIES AND BODIES,5902288629,1000047547
06.02.2018,COMMUNITIES,BEDE HOUSE ASSOCIATION,"2,850.00",COMMUNITY SAFETY FUND,SUBSCRIPTIONS,5902288519,11265073
06.02.2018,COMMUNITIES,RELAKS LTD,"4,557.00",NO RECOURSE TO PUBLIC FUNDS,ACCOMMODATION CHARGES,5902288621,1000054151
06.02.2018,COMMUNITIES,RELAKS LTD,"4,410.00",NO RECOURSE TO PUBLIC FUNDS,ACCOMMODATION CHARGES,5902288625,1000054151
06.02.2018,COMMUNITIES,RISBOL LTD,"1,050.00",NO RECOURSE TO PUBLIC FUNDS,ACCOMMODATION CHARGES,5902288613,1000069475
06.02.2018,COMMUNITIES,SOUTH OF THE RIVER INVESTMENTS LTD,"4,572.50",NO RECOURSE TO PUBLIC FUNDS,ACCOMMODATION CHARGES,5902288604,1000073638
06.02.2018,COMMUNITIES,STENFORD PROPERTY LTD,"1,271.00",NO RECOURSE TO PUBLIC FUNDS,SECTION 17 PAYMENTS TO AGENCIES/CARERS,5902288606,1000074759
06.02.2018,COMMUNITIES,ACE FAST LETTINGS LTD,"1,085.00",NO RECOURSE TO PUBLIC FUNDS,ACCOMMODATION CHARGES,5902288616,1000076780
06.02.2018,COMMUNITIES,CITYGLEN LTD,"1,240.00",NRPF PHYSICAL DISABILITIES,NATIONAL ASSISTANCE,2102777758,1000026239
06.02.2018,COMMUNITIES,CITYGLEN LTD,"1,240.00",NRPF PHYSICAL DISABILITIES,NATIONAL ASSISTANCE,2102777759,1000026239
06.02.2018,COMMUNITIES,CITYGLEN LTD,"1,200.00",NRPF PHYSICAL DISABILITIES,NATIONAL ASSISTANCE,2102777760,1000026239
06.02.2018,COMMUNITIES,CITYGLEN LTD,"1,240.00",NRPF PHYSICAL DISABILITIES,NATIONAL ASSISTANCE,2102777761,1000026239
06.02.2018,COMMUNITIES,CITYGLEN LTD,"1,200.00",NRPF PHYSICAL DISABILITIES,NATIONAL ASSISTANCE,2102777762,1000026239
06.02.2018,COMMUNITIES,TOM HOPKINS ASSOCIATES LTD,"2,450.00",TENANT MGT INITITIVES,TRAINING,5902288624,1000078726
06.02.2018,COMMUNITIES,LOCKSFIELD HOUSE RESIDENTS,"1,300.00",TENANTS FUND,GRANTS,5902288562,1000079470
06.02.2018,CUSTOMER EXPERIENCE HGF,IMPERIAL COLLEGE PROJECTS LTD,404,CORONER'S,PROFESSIONAL FEES,5902288522,1000080106
06.02.2018,CUSTOMER EXPERIENCE HGF,IMPERIAL COLLEGE PROJECTS LTD,384,CORONER'S,PROFESSIONAL FEES,5902288525,1000080106
06.02.2018,CUSTOMER EXPERIENCE HGF,IMPERIAL COLLEGE PROJECTS LTD,388,CORONER'S,PROFESSIONAL FEES,5902288527,1000080106
06.02.2018,CUSTOMER EXPERIENCE HGF,CASTLE WATER LTD,480.3,CUSTOMER SUPPORT,WATER,5902288674,1000078867
06.02.2018,CUSTOMER EXPERIENCE HGF,CASTLE WATER LTD,552.2,CUSTOMER SUPPORT,WATER,5902288680,1000078867
06.02.2018,CUSTOMER EXPERIENCE HGF,LIVING ACCOMODATION LTD,"2,170.00",NIGHTLY TA (NSC),EXTERNAL AGENCIES AND BODIES,5902288690,1000063985
06.02.2018,CUSTOMER EXPERIENCE HGF,FINEFAIR LTD,"7,610.20",NIGHTLY TA (NSC),EXTERNAL AGENCIES AND BODIES,5902288650,1000075570
06.02.2018,CUSTOMER EXPERIENCE HGF,FINEFAIR LTD,"4,882.98",NIGHTLY TA (NSC),EXTERNAL AGENCIES AND BODIES,5902288657,1000075570
06.02.2018,CUSTOMER EXPERIENCE HGF,NATIONWIDE ACCOMMODATION,"45,762.50",NIGHTLY TA (NSC),EXTERNAL AGENCIES AND BODIES,5902288627,1000076112
06.02.2018,CUSTOMER EXPERIENCE HGF,MSR HOUSING,"2,400.50",NIGHTLY TA (NSC),EXTERNAL AGENCIES AND BODIES,5902288673,1000079359
06.02.2018,CUSTOMER EXPERIENCE HGF,MSR HOUSING,"2,433.50",NIGHTLY TA (NSC),EXTERNAL AGENCIES AND BODIES,5902288675,1000079359
06.02.2018,CUSTOMER EXPERIENCE HGF,HOMES2LET,"4,504.75",NIGHTLY TA (NSC),EXTERNAL AGENCIES AND BODIES,5902288563,1000079868
06.02.2018,ENVIRONMENT AND LEISURE,SPOKEMEAD MAINTENANCE LTD,"2,435.52",CAPITAL PS (LEISURE),CONSTRUCTION FEES  - EXTERNAL,2102778026,4002791
06.02.2018,ENVIRONMENT AND LEISURE,CONWAY AECOM LTD,"1,797.64",CAPITAL PS (LEISURE),CONSTRUCTION,5902288676,1000071205
06.02.2018,ENVIRONMENT AND LEISURE,PICK EVERARD,400.46,CAPITAL PS (LEISURE),CONSTRUCTION FEES  - EXTERNAL,5902288529,1000077395
06.02.2018,ENVIRONMENT AND LEISURE,CONWAY AECOM LTD,"83,359.00",CAPITAL PS (LEISURE),CONSTRUCTION,2102778035,3000001595
06.02.2018,ENVIRONMENT AND LEISURE,CONWAY AECOM LTD,"6,541.76",CAPITAL PS (LEISURE),CONSTRUCTION MAIN CONTRACT -CERTIFICATED,2102778036,3000001595
06.02.2018,ENVIRONMENT AND LEISURE,CONWAY AECOM LTD,"27,504.46",CAPITAL PS (LEISURE),CONSTRUCTION MAIN CONTRACT,2102778041,3000001595
06.02.2018,ENVIRONMENT AND SOCIAL REGENERATION,TOUCAN TOOL CO LTD,351.05,STORES/LOGISTICS,CREDITORS -GR/IR CLEARING ACCOUNT,5902288532,1395125
06.02.2018,ENVIRONMENT AND SOCIAL REGENERATION,PPG ARCHITECTURAL COATINGS,280.5,STORES/LOGISTICS,CREDITORS -GR/IR CLEARING ACCOUNT,5902288535,11063178
06.02.2018,ENVIRONMENT DIRECTORATE,GREENHAM TRADING LTD,"1,232.29",ESTATE CLEANING-GENERAL,MATERIALS,5902288554,1000006610
06.02.2018,ENVIRONMENT DIRECTORATE,ST MUNGOS,"59,880.00",MH ST. MUNGO'S,GRANTS,5902288689,1000017600
06.02.2018,ENVIRONMENT DIRECTORATE,COMPLETE TREE CARE LTD,558,NON HOUSING GROUNDS,AGENCY STAFF,5902288672,1000041410
06.02.2018,ENVIRONMENT DIRECTORATE,SIGMA GROUP LTD,"5,280.00",NON HOUSING GROUNDS,TRAINING,5902288678,1000074961
06.02.2018,ENVIRONMENT DIRECTORATE,CONWAY AECOM LTD,"5,584.50",PARKING OVERHEADS,OTHER CONTRACTORS,5902288545,1000071205
06.02.2018,ENVIRONMENT DIRECTORATE,KYBOCORP LTD,"6,950.00",PEST CONTROL,MATERIALS,5902288620,1000074513
06.02.2018,ENVIRONMENT DIRECTORATE,MOBILE COMPUTER REPAIR LTD,255,PEST CONTROL,EQUIPMENT PURCHASE & REPAIR,5902288605,1000077458
06.02.2018,F & C S EXCLUDING CORPORATE BUDGETS,CIPFA BUSINESS LTD,744,CIPFA TRAINEES,TRAINING,5902288539,1000024688
06.02.2018,F & C S EXCLUDING CORPORATE BUDGETS,CIPFA BUSINESS LTD,"1,090.00",CIPFA TRAINEES,TRAINING,5902288539,1000024688
06.02.2018,F & C S EXCLUDING CORPORATE BUDGETS,REAL ASSET MANAGEMENT PLC,500,CORPORATE SERVICES AND F&G,SOFTWARE,5902288679,1000066157
06.02.2018,F & C S EXCLUDING CORPORATE BUDGETS,REAL ASSET MANAGEMENT PLC,"9,630.00",CORPORATE SERVICES AND F&G,SOFTWARE,5902288681,1000066157
06.02.2018,HOUSING AND MODERNISATION,STAFFINFO,"4,543.00",CUSTOMER SUPPORT,MISCELLANEOUS EXPENSES,6101818013,INTERNATIONAL PAYMENT
06.02.2018,HOUSING HRA,CALFORD SEADEN LLP,"1,296.62",CAPITAL PS (HRA),CONSTRUCTION FEES  - EXTERNAL,5902288513,1061592
06.02.2018,HOUSING HRA,CALFORD SEADEN LLP,"2,775.27",CAPITAL PS (HRA),CONSTRUCTION FEES  - EXTERNAL,5902288549,1061592
06.02.2018,HOUSING HRA,ENGIE REGENERATION (APOLLO) LTD,"72,253.47",CAPITAL PS (HRA),CONSTRUCTION MAIN CONTRACT -CERTIFICATED,2102778040,4000449
06.02.2018,HOUSING HRA,ENGIE REGENERATION (APOLLO) LTD,"16,821.24",CAPITAL PS (HRA),CONSTRUCTION MAIN CONTRACT -CERTIFICATED,2102778042,4000449
06.02.2018,HOUSING HRA,STANDAGE & CO LTD,"7,852.73",CAPITAL PS (HRA),CONSTRUCTION MAIN CONTRACT -CERTIFICATED,2102778031,4002817
06.02.2018,HOUSING HRA,STANDAGE & CO LTD,"44,552.53",CAPITAL PS (HRA),CONSTRUCTION MAIN CONTRACT -CERTIFICATED,2102778034,4002817
06.02.2018,HOUSING HRA,OCO HEATING & MECHANICAL,"30,000.00",CAPITAL PS (HRA),CONSTRUCTION MAIN CONTRACT -CERTIFICATED,2102778033,4005559
06.02.2018,HOUSING HRA,A & E ELKINS LTD,"260,935.41",CAPITAL PS (HRA),CONSTRUCTION MAIN CONTRACT -CERTIFICATED,2102778024,4012501
06.02.2018,HOUSING HRA,L H BRIDGE LTD,"4,440.00",CAPITAL PS (HRA),CONST'N MAIN CONTRACT - NON CERTIFICATED,2102778032,3000001167
06.02.2018,HOUSING HRA,C&C BUILDERS LTD,"5,955.00",CAPITAL PS (HRA),CONST'N MAIN CONTRACT - NON CERTIFICATED,2102778039,3000001986
06.02.2018,LEISURE DIRECTORATE,P D CONSTRUCTION LTD,"1,740.00",ACCOMODATION,BUILDING R&M,2102778023,4001883
06.02.2018,LEISURE DIRECTORATE,BOLT & HEEKS LIMITED,"11,583.16",ACCOMODATION,BUILDING R&M,2102778030,3000001307
06.02.2018,LEISURE DIRECTORATE,THE PLAY INSPECTION COMPANY LTD,695,BURGESS AREA TEAM,OTHER R&M,5902288682,1000072456
06.02.2018,LEISURE DIRECTORATE,THE PLAY INSPECTION COMPANY LTD,300,BURGESS AREA TEAM,OTHER R&M,5902288682,1000072456
06.02.2018,LEISURE DIRECTORATE,KENT COUNTY COUNCIL - LASER,712.02,HOMERSTALL ROAD SPORTS GROUND,ELECTRICITY,5902288560,1000012926
06.02.2018,MODERNISATION HGF,TMP (UK) LIMITED,946.3,ADVERTISING,RECRUITMENT ADVERTISING,5902288614,1000041810
06.02.2018,MODERNISATION HGF,TMP (UK) LIMITED,410,ADVERTISING,RECRUITMENT ADVERTISING,5902288623,1000041810
06.02.2018,MODERNISATION HGF,TMP (UK) LIMITED,775,ADVERTISING,RECRUITMENT ADVERTISING,5902288639,1000041810
06.02.2018,MODERNISATION HGF,TMP (UK) LIMITED,"1,305.30",ADVERTISING,RECRUITMENT ADVERTISING,5902288643,1000041810
06.02.2018,MODERNISATION HGF,TMP (UK) LIMITED,"1,376.68",ADVERTISING,RECRUITMENT ADVERTISING,5902288645,1000041810
06.02.2018,REVENUES AND BENEFITS,HEYWOOD LIMITED,"6,368.00",PENSIONS,PROFESSIONAL FEES,5902288637,1000038304
06.02.2018,SOUTHWARK BUILDING SERVICES,THE SYMPHONY GROUP PLC,417,R & M OVERHEADS,MATERIALS,5902288531,1000067039
06.02.2018,SOUTHWARK BUILDING SERVICES,THE SYMPHONY GROUP PLC,417,VOIDS OVERHEADS,MATERIALS,5902288531,1000067039
07.02.2018,ADULT SOCIAL CARE,REDACTED PERSONAL DATA,400,APPOINTEESHIPS,OTHER PAYMENTS FOR CLIENTS,REDACTED,REDACTED
07.02.2018,ADULT SOCIAL CARE,NEWSTEAD,"1,237.93",DIR OF ASC,PROFESSIONAL FEES,2102779004,1000052244
07.02.2018,ADULT SOCIAL CARE,SENSE,784.69,LD LTS 18-64,HOMECARE - SPOT,2102778493,1000046797
07.02.2018,ADULT SOCIAL CARE,RESOURCES FOR AUTISM,"1,221.00",LD LTS 18-64,SUPPORTED LIVING,2102778495,1000062540
07.02.2018,ADULT SOCIAL CARE,THE NEW SHOOTS,300,LD LTS 18-64,DAYCARE,2102778497,1000073970
07.02.2018,ADULT SOCIAL CARE,F A ALBIN AND SONS,"2,617.00",PUBLIC FUNERALS S.46,MISCELLANEOUS EXPENSES,5902288731,11313949
07.02.2018,ADULT SOCIAL CARE,F A ALBIN AND SONS,818,PUBLIC FUNERALS S.46,MISCELLANEOUS EXPENSES,5902288734,11313949
07.02.2018,ADULT SOCIAL CARE,F A ALBIN AND SONS,818,PUBLIC FUNERALS S.46,MISCELLANEOUS EXPENSES,5902288737,11313949
07.02.2018,ADULT SOCIAL CARE,F A ALBIN AND SONS,"2,802.00",PUBLIC FUNERALS S.46,MISCELLANEOUS EXPENSES,5902288738,11313949
07.02.2018,ADULT SOCIAL CARE,NASH COLLEGE 'LIVABILITY',"20,061.02",PWLD DAYCARE,RECOUPMENT,2102778587,1000062581
07.02.2018,ADULT SOCIAL CARE,ORCHARD HILL COLLEGE,"70,805.84",PWLD DAYCARE,"SCHOOLS CAPITATION, STANDARDS FUND",2102778568,1000070978
07.02.2018,ADULT SOCIAL CARE,NEWSTEAD,"-1,329.74",PWLD NUR REPLACEMENTS,NURSING PLACEMENTS FEES,2101797279,1000052244
07.02.2018,ADULT SOCIAL CARE,ROMEDICAL LTD,557.31,SAFEGUARDING TEAM,OTHER CONTRACTORS,5902288717,1000076318
07.02.2018,ADULT SOCIAL CARE,PANCHSHEEL GLOBAL PVT LTD,"4,594.10",SAFEGUARDING TEAM,OTHER CONTRACTORS,5902288714,1000078003
07.02.2018,ADULT SOCIAL CARE,EASYLINK UK,"2,179.54",SOUTHWARK RESOURCE CENTRE,EQUIPMENT PURCHASE & REPAIR,5902288716,1000066550
07.02.2018,ADULT SOCIAL CARE,FREEDOM RECOVERY CENTRE,"3,350.00",SUB LTS 18-64,PLACEMENTS - REHAB,2102778482,1000046185
07.02.2018,ADULT SOCIAL CARE,FREEDOM RECOVERY CENTRE,"2,680.00",SUB LTS 18-64,PLACEMENTS - REHAB,2102778484,1000046185
07.02.2018,ADULT SOCIAL CARE,FREEDOM RECOVERY CENTRE,"3,350.00",SUB LTS 18-64,PLACEMENTS - REHAB,2102778486,1000046185
07.02.2018,ADULT SOCIAL CARE,FREEDOM RECOVERY CENTRE,"2,680.00",SUB LTS 18-64,PLACEMENTS - REHAB,2102778488,1000046185
07.02.2018,ADULT SOCIAL CARE,FREEDOM RECOVERY CENTRE,"2,680.00",SUB LTS 18-64,PLACEMENTS - REHAB,2102778490,1000046185
07.02.2018,ADULT SOCIAL CARE,PINEAPPLE CONTRACTS UNLIMITED,422.45,SUPPORTED LIVING COSTS,OTHER R&M,5902288785,11003086
07.02.2018,ADULT SOCIAL CARE,BRESLIN CONSTRUCTION LTD,"1,600.00",SUPPORTED LIVING COSTS,BUILDING R&M,5902288728,1000078031
07.02.2018,ADULT SOCIAL CARE,CONTACT PROFESSIONALS,"1,444.00",TRANSITION 14 - 18 YEARS,SECTION 17 PAYMENTS TO AGENCIES/CARERS,5902288808,1000057263
07.02.2018,ADULT SOCIAL CARE,CONTACT PROFESSIONALS,"3,059.00",TRANSITION 14 - 18 YEARS,SECTION 17 PAYMENTS TO AGENCIES/CARERS,5902288811,1000057263
07.02.2018,ADULT SOCIAL CARE,CONTACT PROFESSIONALS,"7,586.50",TRANSITION 14 - 18 YEARS,SECTION 17 PAYMENTS TO AGENCIES/CARERS,5902288814,1000057263
07.02.2018,ASSET MANAGEMENT,3MS GOLD SERVICES LTD,"5,613.52",ADAPTATIONS,BUILDING R&M,2102778048,3000001256
07.02.2018,ASSET MANAGEMENT,3MS GOLD SERVICES LTD,"5,511.60",ADAPTATIONS,BUILDING R&M,2102778049,3000001256
07.02.2018,ASSET MANAGEMENT,3MS GOLD SERVICES LTD,"5,511.60",ADAPTATIONS,BUILDING R&M,2102778050,3000001256
07.02.2018,CENTRAL FUNCTIONS,STANBURY BUILDING SERVICES LTD,"2,360.00",COMMERCIAL PROPERTIES,BUILDING R&M,2102778057,3000001967
07.02.2018,CENTRAL FUNCTIONS,KAYDEE INVESTMENTS LTD,"4,681.50",HOME OWNERSHIP INCOME,HOUSING RESIDENTIAL RENTS,2102776568,1000080674
07.02.2018,CHIEF EXECUTIVE,STANDAGE & CO LTD,"24,009.43",CAPITAL PS (REGEN),CONSTRUCTION MAIN CONTRACT -CERTIFICATED,5902288721,11223389
07.02.2018,CHIEF EXECUTIVE,STANDAGE & CO LTD,"2,919.30",CAPITAL PS (REGEN),CONSTRUCTION MAIN CONTRACT -CERTIFICATED,5902288721,11223389
07.02.2018,CHIEF EXECUTIVE,STANDAGE & CO LTD,"48,849.87",CAPITAL PS (REGEN),CONSTRUCTION MAIN CONTRACT -CERTIFICATED,5902288722,11223389
07.02.2018,CHIEF EXECUTIVE,MUNDAYS LLP,"2,000.00",CAPITAL PS (REGEN),CONSTRUCTION FEES  - EXTERNAL,5902288763,1000080411
07.02.2018,CHIEF EXECUTIVE'S OFFICE,ST GILES TRUST,"31,431.00",CHIEF EXEC'S OFFICE,GRANTS,5902288760,1013828
07.02.2018,CHILDREN AND ADULT,RUSSELL TREW LIMITED,"2,925.59",CAPITAL PS (EDUCATION),CONSTRUCTION FEES - ARCHITECT,2102778051,3000001855
07.02.2018,CHILDREN AND ADULT,MIKE AYRES DESIGN LTD,"18,118.63",CAPITAL PS (SOC SERV),FURNITURE & FITTINGS ACQUISITION,5902288732,1000079608
07.02.2018,CHILDREN'S SERVICES,ISLINGTON COUNCIL,"36,703.00",CASEWORK OLA  0-8,RECOUPMENT,2102778597,11204697
07.02.2018,CHILDREN'S SERVICES,FAIRLAWN PRIMARY SCHOOL,"3,801.39",CASEWORK OLA  0-8,EXTERNAL AGENCIES AND BODIES,2102778577,1000011552
07.02.2018,CHILDREN'S SERVICES,KENDER PRIMARY SCHOOL,"7,602.78",CASEWORK OLA  0-8,EXTERNAL AGENCIES AND BODIES,2102778578,1000017238
07.02.2018,CHILDREN'S SERVICES,FLEET TUTORS,"3,520.00",CASEWORK OLA  0-8,"SCHOOLS CAPITATION, OTHER GRANTS",2102778609,1000044820
07.02.2018,CHILDREN'S SERVICES,FLEET TUTORS,"2,640.00",CASEWORK OLA  0-8,"SCHOOLS CAPITATION, OTHER GRANTS",2102778610,1000044820
07.02.2018,CHILDREN'S SERVICES,FLEET TUTORS,"2,811.00",CASEWORK OLA  0-8,"SCHOOLS CAPITATION, OTHER GRANTS",2102778611,1000044820
07.02.2018,CHILDREN'S SERVICES,FLEET TUTORS,"3,812.00",CASEWORK OLA  0-8,"SCHOOLS CAPITATION, OTHER GRANTS",2102778612,1000044820
07.02.2018,CHILDREN'S SERVICES,FLEET TUTORS,"3,181.00",CASEWORK OLA  0-8,"SCHOOLS CAPITATION, OTHER GRANTS",2102778613,1000044820
07.02.2018,CHILDREN'S SERVICES,FLEET TUTORS,"1,662.00",CASEWORK OLA  0-8,"SCHOOLS CAPITATION, OTHER GRANTS",2102778614,1000044820
07.02.2018,CHILDREN'S SERVICES,FLEET TUTORS,"2,731.00",CASEWORK OLA  0-8,"SCHOOLS CAPITATION, OTHER GRANTS",2102778615,1000044820
07.02.2018,CHILDREN'S SERVICES,FLEET TUTORS,"2,568.00",CASEWORK OLA  0-8,"SCHOOLS CAPITATION, OTHER GRANTS",2102778616,1000044820
07.02.2018,CHILDREN'S SERVICES,FLEET TUTORS,"2,490.00",CASEWORK OLA  0-8,"SCHOOLS CAPITATION, OTHER GRANTS",2102778618,1000044820
07.02.2018,CHILDREN'S SERVICES,FLEET TUTORS,"2,167.00",CASEWORK OLA  0-8,"SCHOOLS CAPITATION, OTHER GRANTS",2102778621,1000044820
07.02.2018,CHILDREN'S SERVICES,THE WHITTINGTON HOSPITAL NHS TRUST,"1,412.50",CASEWORK OLA  0-8,OTHER CONTRACTORS,2102778624,1000073133
07.02.2018,CHILDREN'S SERVICES,THE WHITTINGTON HOSPITAL NHS TRUST,"1,569.50",CASEWORK OLA  0-8,OTHER CONTRACTORS,2102778625,1000073133
07.02.2018,CHILDREN'S SERVICES,THE WHITTINGTON HOSPITAL NHS TRUST,"1,569.50",CASEWORK OLA  0-8,OTHER CONTRACTORS,2102778626,1000073133
07.02.2018,CHILDREN'S SERVICES,DARRICK WOOD SCHOOL,"2,007.58",CASEWORK OLA  0-8,STATEMENTED FEES,2102778582,1000073293
07.02.2018,CHILDREN'S SERVICES,OCTAVIA HOUSE SCHOOLS LTD,"309,203.00",CASEWORK OLA  0-8,RECOUPMENT,2102778603,1000073579
07.02.2018,CHILDREN'S SERVICES,ROSENDALE PRIMARY SCHOOL,"10,759.00",CASEWORK OLA  0-8,EXTERNAL AGENCIES AND BODIES,2102778576,1000073653
07.02.2018,CHILDREN'S SERVICES,THOMAS TALLIS SCHOOL,"15,272.30",CASEWORK OLA  0-8,CENTRAL GOVERNMENT,2102778573,1000073703
07.02.2018,CHILDREN'S SERVICES,THE CHELSEA GROUP OF CHILDREN LTD,"11,750.00",CASEWORK OLA  0-8,RECOUPMENT,2102778599,1000074731
07.02.2018,CHILDREN'S SERVICES,THE ST MARYLEBONE CHURCH OF ENGLAND BRIDGE SCHOOL,"8,969.08",CASEWORK OLA  0-8,RECOUPMENT,2102778593,1000075884
07.02.2018,CHILDREN'S SERVICES,REGIS MANOR PRIMARY SCHOOL,"3,416.90",CASEWORK OLA  0-8,STATEMENTED FEES,2102778584,1000076655
07.02.2018,CHILDREN'S SERVICES,REGIS MANOR PRIMARY SCHOOL,"6,861.40",CASEWORK OLA  0-8,STATEMENTED FEES,2102778585,1000076655
07.02.2018,CHILDREN'S SERVICES,REGIS MANOR PRIMARY SCHOOL,"-3,444.50",CASEWORK OLA  0-8,STATEMENTED FEES,2102778629,1000076655
07.02.2018,CHILDREN'S SERVICES,HENRY FAWCETT PRIMARY SCHOOL,"3,801.39",CASEWORK OLA  0-8,EXTERNAL AGENCIES AND BODIES,2102778579,1000077120
07.02.2018,CHILDREN'S SERVICES,THE ST MARYLEBONE CHURCH OF ENGLAND SCHOOL,"3,801.39",CASEWORK OLA  0-8,STATEMENTED FEES,2102778591,1000077981
07.02.2018,CHILDREN'S SERVICES,SHOREDITCH PARK PRIMARY SCHOOL,"5,381.44",CASEWORK OLA  0-8,EXTERNAL AGENCIES AND BODIES,2102778575,1000079420
07.02.2018,CHILDREN'S SERVICES,ST ANDREWS CHURCH OF ENGLAND PRIMARY SCHOOL,"3,801.39",CASEWORK OLA  0-8,EXTERNAL AGENCIES AND BODIES,2102778574,1000079532
07.02.2018,CHILDREN'S SERVICES,THE JOHN FISHER SCHOOL,"3,801.39",CASEWORK OLA  0-8,CENTRAL GOVERNMENT,2102778590,1000080178
07.02.2018,CHILDREN'S SERVICES,JUDITH KERR PRIMARY SCHOOL,"25,757.71",CASEWORK SOUTHWARK 0-8,STATEMENTED FEES,2102778622,1000073200
07.02.2018,CHILDREN'S SERVICES,THERAPY TRAIN LTD,850,EARLY AUTISM SUPPORT,TRAINING,5902288668,1000080732
07.02.2018,CHILDREN'S SERVICES,REDACTED PERSONAL DATA,500,FURTHER EDUCATION SUPPORT,OTHER PAYMENTS FOR CLIENTS,REDACTED,REDACTED
07.02.2018,CHILDREN'S SERVICES,REDACTED PERSONAL DATA,300,FURTHER EDUCATION SUPPORT,CLIENT TRANSPORT,REDACTED,REDACTED
07.02.2018,CHILDREN'S SERVICES,REDACTED PERSONAL DATA,575,HOME 2 SCHOOL TRANSPORT,OTHER PAYMENTS FOR CLIENTS,REDACTED,REDACTED
07.02.2018,CHILDREN'S SERVICES,REDACTED PERSONAL DATA,"1,618.97",LEAVING CARE GRANT,OTHER PAYMENTS FOR CLIENTS,REDACTED,REDACTED
07.02.2018,CHILDREN'S SERVICES,ROYAL BOROUGH OF KENSINGTON & CHELSEA,"9,189.06",PFA TEAM SOUTHWARK 9 PLUS,CENTRAL GOVERNMENT,2102778594,1000033864
07.02.2018,CHILDREN'S SERVICES,FLEET TUTORS,"3,369.00",PFA TEAM SOUTHWARK 9 PLUS,"SCHOOLS CAPITATION, OTHER GRANTS",2102778617,1000044820
07.02.2018,CHILDREN'S SERVICES,FLEET TUTORS,"3,030.00",PFA TEAM SOUTHWARK 9 PLUS,"SCHOOLS CAPITATION, OTHER GRANTS",2102778619,1000044820
07.02.2018,CHILDREN'S SERVICES,FLEET TUTORS,"2,229.00",PFA TEAM SOUTHWARK 9 PLUS,"SCHOOLS CAPITATION, OTHER GRANTS",2102778620,1000044820
07.02.2018,CHILDREN'S SERVICES,BEATRICE TATE SCHOOL,"5,099.45",PFA TEAM SOUTHWARK 9 PLUS,RECOUPMENT,2102778583,1000054132
07.02.2018,CHILDREN'S SERVICES,TREASURE HOUSE (LONDON) CIC,"13,222.00",PFA TEAM SOUTHWARK 9 PLUS,RECOUPMENT,2102778605,1000061163
07.02.2018,CHILDREN'S SERVICES,NASH COLLEGE 'LIVABILITY',"4,999.64",PFA TEAM SOUTHWARK 9 PLUS,RECOUPMENT,2102778588,1000062581
07.02.2018,CHILDREN'S SERVICES,NASH COLLEGE 'LIVABILITY',"83,037.62",PFA TEAM SOUTHWARK 9 PLUS,RECOUPMENT,2102778589,1000062581
07.02.2018,CHILDREN'S SERVICES,ILDERTON MOTORVEHICLE PROJECT,"1,220.00",PFA TEAM SOUTHWARK 9 PLUS,"SCHOOLS CAPITATION, OTHER GRANTS",2102778598,1000066082
07.02.2018,CHILDREN'S SERVICES,ORCHARD HILL COLLEGE,"262,807.84",PFA TEAM SOUTHWARK 9 PLUS,"SCHOOLS CAPITATION, STANDARDS FUND",2102778567,1000070978
07.02.2018,CHILDREN'S SERVICES,ORCHARD HILL COLLEGE,"25,758.76",PFA TEAM SOUTHWARK 9 PLUS,"SCHOOLS CAPITATION, STANDARDS FUND",2102778569,1000070978
07.02.2018,CHILDREN'S SERVICES,WILLIAM MORRIS SIXTH FORM,965.67,PFA TEAM SOUTHWARK 9 PLUS,"SCHOOLS CAPITATION, STANDARDS FUND",2102778580,1000072181
07.02.2018,CHILDREN'S SERVICES,PORTLAND PLACE SCHOOL,"5,175.00",PFA TEAM SOUTHWARK 9 PLUS,CENTRAL GOVERNMENT,2102778586,1000073307
07.02.2018,CHILDREN'S SERVICES,OCTAVIA HOUSE SCHOOLS LTD,"120,000.00",PFA TEAM SOUTHWARK 9 PLUS,RECOUPMENT,2102778604,1000073579
07.02.2018,CHILDREN'S SERVICES,THOMAS TALLIS SCHOOL,"4,780.82",PFA TEAM SOUTHWARK 9 PLUS,CENTRAL GOVERNMENT,2102778572,1000073703
07.02.2018,CHILDREN'S SERVICES,BROWNS SCHOOL,"11,000.00",PFA TEAM SOUTHWARK 9 PLUS,RECOUPMENT,2102778601,1000074534
07.02.2018,CHILDREN'S SERVICES,BROWNS SCHOOL,"11,000.00",PFA TEAM SOUTHWARK 9 PLUS,RECOUPMENT,2102778602,1000074534
07.02.2018,CHILDREN'S SERVICES,WESC FOUNDATION,"6,552.63",PFA TEAM SOUTHWARK 9 PLUS,RECOUPMENT,2102778570,1000074658
07.02.2018,CHILDREN'S SERVICES,MICHAEL TIPPETT SCHOOL,"11,969.00",PFA TEAM SOUTHWARK 9 PLUS,RECOUPMENT,2102778596,1000074828
07.02.2018,CHILDREN'S SERVICES,KIKIS CHILDRENS CLINIC LTD,300,PFA TEAM SOUTHWARK 9 PLUS,OTHER CONTRACTORS,2102778600,1000075244
07.02.2018,CHILDREN'S SERVICES,PHOENIXPLACE,"4,032.00",PFA TEAM SOUTHWARK 9 PLUS,RECOUPMENT,2102778606,1000075565
07.02.2018,CHILDREN'S SERVICES,PHOENIXPLACE,"4,032.00",PFA TEAM SOUTHWARK 9 PLUS,RECOUPMENT,2102778607,1000075565
07.02.2018,CHILDREN'S SERVICES,THE ST MARYLEBONE CHURCH OF ENGLAND BRIDGE SCHOOL,"13,453.62",PFA TEAM SOUTHWARK 9 PLUS,RECOUPMENT,2102778592,1000075884
07.02.2018,CHILDREN'S SERVICES,CASTLEDON SCHOOL ACADEMY TRUST,"5,387.59",PFA TEAM SOUTHWARK 9 PLUS,RECOUPMENT,2102778581,1000077736
07.02.2018,CHILDREN'S SERVICES,HORNBEAM ACADEMY TRUST,"6,166.67",PFA TEAM SOUTHWARK 9 PLUS,RECOUPMENT,2102778595,1000077937
07.02.2018,CHILDREN'S SERVICES,JOHN GUEST SAFEGUARDING LIMITED,400,PRIMARY ACHIEVEMENT,CONSULTANTS SERVICES,5902288726,1000065465
07.02.2018,CHILDREN'S SERVICES,REDACTED PERSONAL DATA,269.08,RESIDENCE ORDERS,PAYMENTS TO CARERS,REDACTED,REDACTED
07.02.2018,CHILDREN'S SERVICES,REDACTED PERSONAL DATA,269.08,RESIDENCE ORDERS,PAYMENTS TO CARERS,REDACTED,REDACTED
07.02.2018,CHILDREN'S SERVICES,REDACTED PERSONAL DATA,269.08,RESIDENCE ORDERS,PAYMENTS TO CARERS,REDACTED,REDACTED
07.02.2018,CHILDREN'S SERVICES,REDACTED PERSONAL DATA,268.36,RESIDENCE ORDERS,PAYMENTS TO CARERS,REDACTED,REDACTED
07.02.2018,CHILDREN'S SERVICES,REDACTED PERSONAL DATA,264.16,RESIDENCE ORDERS,PAYMENTS TO CARERS,REDACTED,REDACTED
07.02.2018,CHILDREN'S SERVICES,SILVER BIRCH CARE LTD,"21,636.45",RESIDENTIAL,RESIDENTIAL CARE,5902288736,1000076525
07.02.2018,CHILDREN'S SERVICES,SILVER BIRCH CARE LTD,272.86,SEMI INDEPENDENT,EXTERNAL AGENCIES AND BODIES,5902288733,1000076525
07.02.2018,CHILDREN'S SERVICES,THE WIN PROJECT LTD,"3,000.00",SEMI INDEPENDENT,OTHER PAYMENTS FOR CLIENTS,5902288671,1000080710
07.02.2018,CHILDREN'S SERVICES,REDACTED PERSONAL DATA,269.08,SPECIAL GUARDIANSHIP,PAYMENTS TO CARERS,REDACTED,REDACTED
07.02.2018,CHILDREN'S SERVICES,REDACTED PERSONAL DATA,269.08,SPECIAL GUARDIANSHIP,PAYMENTS TO CARERS,REDACTED,REDACTED
07.02.2018,CHILDREN'S SERVICES,REDACTED PERSONAL DATA,-411.54,SPECIAL GUARDIANSHIP,PAYMENTS TO CARERS,REDACTED,REDACTED
07.02.2018,CHILDREN'S SERVICES,REDACTED PERSONAL DATA,717.17,SPECIAL GUARDIANSHIP,PAYMENTS TO CARERS,REDACTED,REDACTED
07.02.2018,CHILDREN'S SERVICES,REDACTED PERSONAL DATA,525,SPECIAL GUARDIANSHIP,PAYMENTS TO CARERS,REDACTED,REDACTED
07.02.2018,CHILDREN'S SERVICES,REDACTED PERSONAL DATA,276.1,SPECIAL GUARDIANSHIP,PAYMENTS TO CARERS,REDACTED,REDACTED
07.02.2018,CHILDREN'S SERVICES,REDACTED PERSONAL DATA,525,SPECIAL GUARDIANSHIP,PAYMENTS TO CARERS,REDACTED,REDACTED
07.02.2018,CHILDREN'S SERVICES,REDACTED PERSONAL DATA,525,SPECIAL GUARDIANSHIP,PAYMENTS TO CARERS,REDACTED,REDACTED
07.02.2018,CHILDREN'S SERVICES,REDACTED PERSONAL DATA,268.36,SPECIAL GUARDIANSHIP,PAYMENTS TO CARERS,REDACTED,REDACTED
07.02.2018,CHILDREN'S SERVICES,REDACTED PERSONAL DATA,433.36,SPECIAL GUARDIANSHIP,PAYMENTS TO CARERS,REDACTED,REDACTED
07.02.2018,CHILDREN'S SERVICES,REDACTED PERSONAL DATA,269.08,SPECIAL GUARDIANSHIP,PAYMENTS TO CARERS,REDACTED,REDACTED
07.02.2018,CHILDREN'S SERVICES,REDACTED PERSONAL DATA,350,SPECIAL GUARDIANSHIP,PAYMENTS TO CARERS,REDACTED,REDACTED
07.02.2018,CHILDREN'S SERVICES,REDACTED PERSONAL DATA,354.59,SPECIAL GUARDIANSHIP,PAYMENTS TO CARERS,REDACTED,REDACTED
07.02.2018,CHILDREN'S SERVICES,REDACTED PERSONAL DATA,303.97,SPECIAL GUARDIANSHIP,PAYMENTS TO CARERS,REDACTED,REDACTED
07.02.2018,COMMUNITIES,SOUTHWARK MUSLIM FORUM,"5,000.00",COMMUNITY ENGAGEMENT,GRANTS,5902288695,1000046965
07.02.2018,COMMUNITIES,THE PEOPLE SPEAK,"1,050.00",COMMUNITY ENGAGEMENT,PROFESSIONAL FEES,5902288842,1000058474
07.02.2018,COMMUNITIES,THE PEOPLE SPEAK,"1,050.00",COMMUNITY ENGAGEMENT,PROFESSIONAL FEES,5902288842,1000058474
07.02.2018,COMMUNITIES,S A PROPERTY MANAGEMENT LTD,"3,937.00",NO RECOURSE TO PUBLIC FUNDS,ACCOMMODATION CHARGES,5902288845,1000075764
07.02.2018,COMMUNITIES,PPROPERTYPLACEBOOK LTD,"34,612.00",NO RECOURSE TO PUBLIC FUNDS,ACCOMMODATION CHARGES,5902288720,1000077817
07.02.2018,CUSTOMER EXPERIENCE HGF,NORTHGATE PUBLIC SERVICES (UK) LTD,"1,519.21",BLUE BADGES,MATERIALS,5902288846,1000037405
07.02.2018,CUSTOMER EXPERIENCE HGF,CROWN HOUSING LTD,"11,640.50",NIGHTLY TA (NSC),EXTERNAL AGENCIES AND BODIES,5902288697,1000075070
07.02.2018,CUSTOMER EXPERIENCE HGF,CROWN HOUSING LTD,"3,885.00",NIGHTLY TA (NSC),EXTERNAL AGENCIES AND BODIES,5902288703,1000075070
07.02.2018,CUSTOMER EXPERIENCE HGF,ACE FAST LETTINGS LTD,"1,658.50",NIGHTLY TA (NSC),EXTERNAL AGENCIES AND BODIES,5902288725,1000076780
07.02.2018,CUSTOMER EXPERIENCE HGF,DENHAN INTERNATIONAL LTD,"56,840.00",PSL PLACEMENTS,EXTERNAL AGENCIES AND BODIES,5902288778,1000075567
07.02.2018,CUSTOMER EXPERIENCE HGF,DENHAN INTERNATIONAL LTD,"88,417.15",PSL PLACEMENTS,EXTERNAL AGENCIES AND BODIES,5902288796,1000075567
07.02.2018,CUSTOMER EXPERIENCE HGF,DENHAN INTERNATIONAL LTD,"63,306.56",PSL PLACEMENTS,EXTERNAL AGENCIES AND BODIES,5902288800,1000075567
07.02.2018,CUSTOMER EXPERIENCE HGF,OAK HOUSING LTD,"2,545.10",PSL PLACEMENTS,EXTERNAL AGENCIES AND BODIES,5902288724,1000079310
07.02.2018,CUSTOMER EXPERIENCE HGF,STOPFORD INFORMATION SYSTEMS LTD,"12,140.00",REGISTRARS,COMMS & COMPUTING CONTRACT CHARGES,5902288564,1000080626
07.02.2018,ENVIRONMENT AND LEISURE,WARWICK LANDSCAPING LTD,"38,804.65",CAPITAL PS (LEISURE),FURNITURE & FITTINGS ACQUISITION,2102778060,3000001705
07.02.2018,ENVIRONMENT DIRECTORATE,COMPLETE TREE CARE LTD,558,NON HOUSING GROUNDS,AGENCY STAFF,5902288749,1000041410
07.02.2018,ENVIRONMENT DIRECTORATE,FENLAND LEISURE PRODUCTS LTD,724,PARKS TECH UNIT (PREMISES),BUILDING R&M,2102778046,3000001785
07.02.2018,ENVIRONMENT DIRECTORATE,A & H PEST CONTROL LTD,690,PEST CONTROL-CDN A/C,OTHER CONTRACTORS,5902288727,11230875
07.02.2018,ENVIRONMENT DIRECTORATE,A & H PEST CONTROL LTD,890,PEST CONTROL-CDN A/C,OTHER CONTRACTORS,5902288735,11230875
07.02.2018,ENVIRONMENT DIRECTORATE,DANGEROUS THEATRE COMPANY,"11,750.00","ROAD SAFETY EDUCATION,TRAINING&PUBLICITY",PROFESSIONAL FEES,5902288825,1000054162
07.02.2018,ENVIRONMENT DIRECTORATE,EDF ENERGY PLC,-984.44,STREET TRADING A/C,ELECTRICITY,2102777603,1008746
07.02.2018,ENVIRONMENT DIRECTORATE,EDF ENERGY PLC,715.29,STREET TRADING A/C,ELECTRICITY,5902288516,1008746
07.02.2018,HOUSING HRA,ENGIE REGENERATION (APOLLO) LTD,"211,606.15",CAPITAL PS (HRA),CONSTRUCTION MAIN CONTRACT -CERTIFICATED,2102778045,4000449
07.02.2018,HOUSING HRA,ENGIE REGENERATION (APOLLO) LTD,"183,501.02",CAPITAL PS (HRA),CONSTRUCTION MAIN CONTRACT -CERTIFICATED,2102778058,4000449
07.02.2018,HOUSING HRA,ENGIE REGENERATION (APOLLO) LTD,"271,605.81",CAPITAL PS (HRA),CONSTRUCTION MAIN CONTRACT -CERTIFICATED,2102778059,4000449
07.02.2018,HOUSING HRA,MOTT MACDONALD LTD,360,CAPITAL PS (HRA),CONSTRUCTION FEES - EMPLOYERS AGENT,5902288847,1000067305
07.02.2018,HOUSING HRA,L H BRIDGE LTD,"6,040.00",CAPITAL PS (HRA),CONST'N MAIN CONTRACT - NON CERTIFICATED,2102778047,3000001167
07.02.2018,HOUSING HRA,KENT COUNTY COUNCIL - LASER,"3,472.92",RESIDENT SERVICES BUSINESS SUPPORT,ELECTRICITY,6101818163,DIRECT DEBIT PAYMENT
07.02.2018,LEISURE DIRECTORATE,KENT COUNTY COUNCIL - LASER,580.79,BURGESS AREA TEAM,ELECTRICITY,5902288820,1000012926
07.02.2018,LEISURE DIRECTORATE,EDF ENERGY PLC,418.35,CEMETERIES,ELECTRICITY,5902288712,1008746
07.02.2018,LEISURE DIRECTORATE,STANBURY BUILDING SERVICES LTD,545,CEMETERIES,OTHER R&M,2102778052,3000001967
07.02.2018,LEISURE DIRECTORATE,STANBURY BUILDING SERVICES LTD,850,CEMETERIES,OTHER R&M,2102778053,3000001967
07.02.2018,LEISURE DIRECTORATE,KENT COUNTY COUNCIL - LASER,"1,199.54",DULWICH AREA TEAM,ELECTRICITY,5902288810,1000012926
07.02.2018,LEISURE DIRECTORATE,CONTINENTAL DRIFTS LTD,"42,433.97",FIREWORK DISPLAY,PROFESSIONAL FEES,5902288707,1000027315
07.02.2018,LEISURE DIRECTORATE,LUBBE & SONS (BULBS) LTD,"7,000.00",PECKHAM RYE AREA TEAM,GROUNDS MAINTENANCE,5902288764,1000048662
07.02.2018,LEISURE DIRECTORATE,LUBBE & SONS (BULBS) LTD,710,PECKHAM RYE AREA TEAM,GROUNDS MAINTENANCE,5902288765,1000048662
07.02.2018,LEISURE DIRECTORATE,CASTLE WATER LTD,"3,327.33",SOUTHWARK AREA TEAM,WATER,5902288741,1000078867
07.02.2018,LEISURE DIRECTORATE,CASTLE WATER LTD,"3,489.13",SOUTHWARK AREA TEAM,WATER,5902288742,1000078867
07.02.2018,LEISURE DIRECTORATE,CASTLE WATER LTD,538.2,SOUTHWARK AREA TEAM,WATER,5902288743,1000078867
07.02.2018,LEISURE DIRECTORATE,CASTLE WATER LTD,619.93,SOUTHWARK AREA TEAM,WATER,5902288744,1000078867
07.02.2018,LEISURE DIRECTORATE,CASTLE WATER LTD,340.2,SPA RD ADVENTURE PLAY,WATER,5902288823,1000078867
07.02.2018,LEISURE DIRECTORATE,CASTLE WATER LTD,"1,070.95",SPA RD ADVENTURE PLAY,WATER,5902288830,1000078867
07.02.2018,LEISURE DIRECTORATE,ASKEWS & HOLTS LIBRARY SERVICES LTD,356.01,STOCK SERVICES,BOOKS & PUBLICATIONS,5902288772,1494168
07.02.2018,LEISURE DIRECTORATE,ASKEWS & HOLTS LIBRARY SERVICES LTD,"2,242.62",STOCK SERVICES,BOOKS & PUBLICATIONS,5902288776,1494168
07.02.2018,MODERNISATION HGF,J2 GLOBAL CANADA,"1,304.70",TECHNOLOGY,DATA COMMUNICATIONS,5902288699,1000070066
07.02.2018,MODERNISATION HGF,J2 GLOBAL CANADA,"1,312.58",TECHNOLOGY,DATA COMMUNICATIONS,5902288701,1000070066
07.02.2018,MODERNISATION HGF,J2 GLOBAL CANADA,"1,284.64",TECHNOLOGY,DATA COMMUNICATIONS,5902288702,1000070066
07.02.2018,PLANNING AND TRANSPORT,SOUTHWARK NEWSPAPER LTD,504,DEVELOPMENT CONTROL ADMINSTRATION,MARKETING & PUBLICITY SERVICES,5902288802,1556957
07.02.2018,PLANNING AND TRANSPORT,ADAMS INTEGRA LTD,"4,150.00",MAJOR APPLICATIONS,PROFESSIONAL FEES,5902288812,1000077381
07.02.2018,PROPERTY SERVICES,STANBURY BUILDING SERVICES LTD,495,VCS MANAGED MSC BUILDILNGS,BUILDING R&M,2102778054,3000001967
07.02.2018,PROPERTY SERVICES,STANBURY BUILDING SERVICES LTD,395,VCS MANAGED MSC BUILDILNGS,BUILDING R&M,2102778055,3000001967
07.02.2018,PUBLIC HEALTH,LEWISHAM AND GREENWICH NHS TRUST,"25,308.16",SEXUAL HEALTH - STI,EXTERNAL AGENCIES AND BODIES,5902288719,1000076183
07.02.2018,REGENERATION,REED BUSINESS INFORMATION LTD,"5,885.00",MASTER PLAN-H/WAY & TRANS INTERCHANGE,MARKETING & PUBLICITY SERVICES,5902288723,1000005640
07.02.2018,REGENERATION,LONDON LETTERBOX MARKETING,692,MASTER PLAN-H/WAY & TRANS INTERCHANGE,MARKETING & PUBLICITY SERVICES,5902288780,1000044844
07.02.2018,RESIDENT SERVICES,LONDON TOOLS LIMITED,347.6,TA HOSTELS,MATERIALS,5902288804,1000003017
08.02.2018,ADULT SOCIAL CARE,REDACTED PERSONAL DATA,400,APPOINTEESHIPS,OTHER PAYMENTS FOR CLIENTS,REDACTED,REDACTED
08.02.2018,ADULT SOCIAL CARE,MEDACS HOMECARE,277.56,LD LTS 18-64,SUPPORTED LIVING,2102778832,11287415
08.02.2018,ADULT SOCIAL CARE,MEDACS HOMECARE,260.1,LD LTS 18-64,HOMECARE - SPOT,2102778833,11287415
08.02.2018,ADULT SOCIAL CARE,MEDACS HOMECARE,"1,726.78",LD LTS 18-64,HOMECARE - SPOT,2102778834,11287415
08.02.2018,ADULT SOCIAL CARE,SURREY DOCKS FARM PROVIDENT SOCIETY,450,LD LTS 18-64,DAYCARE,2102778820,1000000958
08.02.2018,ADULT SOCIAL CARE,SURREY DOCKS FARM PROVIDENT SOCIETY,720,LD LTS 18-64,DAYCARE,2102778822,1000000958
08.02.2018,ADULT SOCIAL CARE,SURREY DOCKS FARM PROVIDENT SOCIETY,525,LD LTS 18-64,DAYCARE,2102778824,1000000958
08.02.2018,ADULT SOCIAL CARE,LONDON CARE LTD,841.72,LD LTS 18-64,HOMECARE - C&V,2102778842,1000003398
08.02.2018,ADULT SOCIAL CARE,SWK DISABLEMENT ASSN,"1,956.24",LD LTS 18-64,HOMECARE - C&V,2102778804,1000011698
08.02.2018,ADULT SOCIAL CARE,SWK DISABLEMENT ASSN,360,LD LTS 18-64,DAYCARE,2102778817,1000011698
08.02.2018,ADULT SOCIAL CARE,CARE MANAGEMENT GROUP,438.43,LD LTS 18-64,SUPPORTED LIVING,2102778797,1000040475
08.02.2018,ADULT SOCIAL CARE,CARE MANAGEMENT GROUP,"1,435.50",LD LTS 18-64,SUPPORTED LIVING,2102778798,1000040475
08.02.2018,ADULT SOCIAL CARE,ROYAL ASSOCIATION FOR DEAF PEOPLE,720,LD LTS 18-64,SUPPORTED LIVING,2102778827,1000062283
08.02.2018,ADULT SOCIAL CARE,RESOURCES FOR AUTISM,"1,091.50",LD LTS 18-64,SUPPORTED LIVING,2102778826,1000062540
08.02.2018,ADULT SOCIAL CARE,ACCESS MOBILITY TRANSPORT LTD,"2,393.60",LD LTS 18-64,CLIENT TRANSPORT,2102778795,1000074637
08.02.2018,ADULT SOCIAL CARE,LONDON CARE LTD,302.6,MH LTS 18-64,HOMECARE - C&V,2102778701,1000003398
08.02.2018,ADULT SOCIAL CARE,LONDON CARE LTD,807.16,MH LTS 18-64,HOMECARE - C&V,2102778703,1000003398
08.02.2018,ADULT SOCIAL CARE,LONDON CARE LTD,403.44,MH LTS 18-64,HOMECARE - C&V,2102778705,1000003398
08.02.2018,ADULT SOCIAL CARE,LONDON CARE LTD,369.82,MH LTS 18-64,HOMECARE - C&V,2102778710,1000003398
08.02.2018,ADULT SOCIAL CARE,LONDON CARE LTD,"1,143.08",MH LTS 18-64,HOMECARE - C&V,2102778738,1000003398
08.02.2018,ADULT SOCIAL CARE,LONDON CARE LTD,706.16,MH LTS 18-64,HOMECARE - C&V,2102778740,1000003398
08.02.2018,ADULT SOCIAL CARE,SWK DISABLEMENT ASSN,881.6,MH LTS 18-64,HOMECARE - SPOT,2102778812,1000011698
08.02.2018,ADULT SOCIAL CARE,SWK DISABLEMENT ASSN,334.4,MH LTS 18-64,HOMECARE - SPOT,2102778816,1000011698
08.02.2018,ADULT SOCIAL CARE,CARE MANAGEMENT GROUP,292.29,MH LTS 18-64,SUPPORTED LIVING,2102778790,1000040475
08.02.2018,ADULT SOCIAL CARE,LONDON CARE LTD,503.29,MH LTS 65+,HOMECARE - C&V,2102778708,1000003398
08.02.2018,ADULT SOCIAL CARE,LONDON CARE LTD,672.4,MH LTS 65+,HOMECARE - C&V,2102778717,1000003398
08.02.2018,ADULT SOCIAL CARE,LONDON CARE LTD,638.78,MH LTS 65+,HOMECARE - C&V,2102778724,1000003398
08.02.2018,ADULT SOCIAL CARE,LONDON CARE LTD,268.96,MH LTS 65+,HOMECARE - C&V,2102778726,1000003398
08.02.2018,ADULT SOCIAL CARE,LONDON CARE LTD,672.4,MH LTS 65+,HOMECARE - C&V,2102778730,1000003398
08.02.2018,ADULT SOCIAL CARE,LONDON CARE LTD,"1,042.22",MH LTS 65+,HOMECARE - C&V,2102778734,1000003398
08.02.2018,ADULT SOCIAL CARE,MEDACS HOMECARE,"2,098.86",PHY LTS 18-64,HOMECARE - SPOT,2102778796,11287415
08.02.2018,ADULT SOCIAL CARE,MEDACS HOMECARE,823.65,PHY LTS 18-64,SUPPORTED LIVING,2102778830,11287415
08.02.2018,ADULT SOCIAL CARE,LONDON CARE LTD,689.44,PHY LTS 18-64,HOMECARE - C&V,2102778835,1000003398
08.02.2018,ADULT SOCIAL CARE,LONDON CARE LTD,302.72,PHY LTS 18-64,HOMECARE - C&V,2102778841,1000003398
08.02.2018,ADULT SOCIAL CARE,SWK DISABLEMENT ASSN,326.8,PHY LTS 18-64,HOMECARE - SPOT,2102778802,1000011698
08.02.2018,ADULT SOCIAL CARE,SWK DISABLEMENT ASSN,"1,611.20",PHY LTS 18-64,HOMECARE - SPOT,2102778806,1000011698
08.02.2018,ADULT SOCIAL CARE,SWK DISABLEMENT ASSN,957.6,PHY LTS 18-64,HOMECARE - SPOT,2102778808,1000011698
08.02.2018,ADULT SOCIAL CARE,SWK DISABLEMENT ASSN,319.2,PHY LTS 18-64,HOMECARE - SPOT,2102778819,1000011698
08.02.2018,ADULT SOCIAL CARE,MIHOMECARE LTD,"2,280.68",PHY LTS 18-64,HOMECARE - SPOT,2102778845,1000042594
08.02.2018,ADULT SOCIAL CARE,MEDACS HOMECARE,"1,206.58",PHY LTS 65+,HOMECARE - SPOT,2102778792,11287415
08.02.2018,ADULT SOCIAL CARE,MEDACS HOMECARE,668.31,PHY LTS 65+,HOMECARE - SPOT,2102778793,11287415
08.02.2018,ADULT SOCIAL CARE,LONDON CARE LTD,415.78,PHY LTS 65+,HOMECARE - C&V,2102778713,1000003398
08.02.2018,ADULT SOCIAL CARE,LONDON CARE LTD,479.17,PHY LTS 65+,HOMECARE - C&V,2102778728,1000003398
08.02.2018,ADULT SOCIAL CARE,LONDON CARE LTD,550.6,PHY LTS 65+,HOMECARE - C&V,2102778836,1000003398
08.02.2018,ADULT SOCIAL CARE,LONDON CARE LTD,866.61,PHY LTS 65+,HOMECARE - C&V,2102778840,1000003398
08.02.2018,ADULT SOCIAL CARE,CAPITAL HOMECARE (UK) LTD,661.01,PHY LTS 65+,HOMECARE - SPOT,2102778748,1000042589
08.02.2018,ADULT SOCIAL CARE,CAPITAL HOMECARE (UK) LTD,553.09,PHY LTS 65+,HOMECARE - SPOT,2102778751,1000042589
08.02.2018,ADULT SOCIAL CARE,CAPITAL HOMECARE (UK) LTD,553.09,PHY LTS 65+,HOMECARE - SPOT,2102778753,1000042589
08.02.2018,ADULT SOCIAL CARE,CAPITAL HOMECARE (UK) LTD,553.09,PHY LTS 65+,HOMECARE - SPOT,2102778755,1000042589
08.02.2018,ADULT SOCIAL CARE,CAPITAL HOMECARE (UK) LTD,565.39,PHY LTS 65+,HOMECARE - SPOT,2102778757,1000042589
08.02.2018,ADULT SOCIAL CARE,CAPITAL HOMECARE (UK) LTD,565.39,PHY LTS 65+,HOMECARE - SPOT,2102778760,1000042589
08.02.2018,ADULT SOCIAL CARE,CAPITAL HOMECARE (UK) LTD,553.09,PHY LTS 65+,HOMECARE - SPOT,2102778762,1000042589
08.02.2018,ADULT SOCIAL CARE,CAPITAL HOMECARE (UK) LTD,565.39,PHY LTS 65+,HOMECARE - SPOT,2102778764,1000042589
08.02.2018,ADULT SOCIAL CARE,CAPITAL HOMECARE (UK) LTD,565.39,PHY LTS 65+,HOMECARE - SPOT,2102778766,1000042589
08.02.2018,ADULT SOCIAL CARE,CAPITAL HOMECARE (UK) LTD,553.09,PHY LTS 65+,HOMECARE - SPOT,2102778768,1000042589
08.02.2018,ADULT SOCIAL CARE,CAPITAL HOMECARE (UK) LTD,553.09,PHY LTS 65+,HOMECARE - SPOT,2102778770,1000042589
08.02.2018,ADULT SOCIAL CARE,CAPITAL HOMECARE (UK) LTD,553.09,PHY LTS 65+,HOMECARE - SPOT,2102778772,1000042589
08.02.2018,ADULT SOCIAL CARE,CAPITAL HOMECARE (UK) LTD,565.39,PHY LTS 65+,HOMECARE - SPOT,2102778774,1000042589
08.02.2018,ADULT SOCIAL CARE,CAPITAL HOMECARE (UK) LTD,553.09,PHY LTS 65+,HOMECARE - SPOT,2102778776,1000042589
08.02.2018,ADULT SOCIAL CARE,CAPITAL HOMECARE (UK) LTD,661.01,PHY LTS 65+,HOMECARE - SPOT,2102778778,1000042589
08.02.2018,ADULT SOCIAL CARE,CAPITAL HOMECARE (UK) LTD,661.01,PHY LTS 65+,HOMECARE - SPOT,2102778780,1000042589
08.02.2018,ADULT SOCIAL CARE,CAPITAL HOMECARE (UK) LTD,661.01,PHY LTS 65+,HOMECARE - SPOT,2102778782,1000042589
08.02.2018,ADULT SOCIAL CARE,CAPITAL HOMECARE (UK) LTD,565.39,PHY LTS 65+,HOMECARE - SPOT,2102778784,1000042589
08.02.2018,ADULT SOCIAL CARE,CAPITAL HOMECARE (UK) LTD,553.09,PHY LTS 65+,HOMECARE - SPOT,2102778788,1000042589
08.02.2018,ADULT SOCIAL CARE,SURREY DOCKS FARM PROVIDENT SOCIETY,500,SOCIAL ISOLATION,DAYCARE,2102778821,1000000958
08.02.2018,ADULT SOCIAL CARE,SWK DISABLEMENT ASSN,"1,552.32",SOCIAL ISOLATION,HOMECARE - SPOT,2102778805,1000011698
08.02.2018,ADULT SOCIAL CARE,CONTACT PROFESSIONALS,"3,589.00",TRANSITION 14 - 18 YEARS,SECTION 17 PAYMENTS TO AGENCIES/CARERS,5902289063,1000057263
08.02.2018,ASSET MANAGEMENT,BELSHAW & CURTIN SOLICITORS,"3,300.00",DISREPAIR,LEGAL FEES & COURT COSTS,5902289014,1767379
08.02.2018,ASSET MANAGEMENT,STEPHEN EVANS,340,DISREPAIR,LEGAL FEES & COURT COSTS,2102778964,1000043318
08.02.2018,ASSET MANAGEMENT,ANTHONY GOLD SOLICITORS,"4,500.00",DISREPAIR,LEGAL FEES & COURT COSTS,5902289009,1000050198
08.02.2018,ASSET MANAGEMENT,ANTHONY GOLD SOLICITORS,"7,000.00",DISREPAIR,LEGAL FEES & COURT COSTS,5902289010,1000050198
08.02.2018,ASSET MANAGEMENT,CHRIS BRYDEN,450,DISREPAIR,LEGAL FEES & COURT COSTS,2102778927,1000053939
08.02.2018,ASSET MANAGEMENT,CLARKE BARNES SOLICITORS LLP,500,DISREPAIR,LEGAL FEES & COURT COSTS,2102778929,1000078090
08.02.2018,ASSET MANAGEMENT,AVONLINE PLC,485.12,ENG CONTRACTS (NORTH),TV AERIALS R&M,5902289034,1000068672
08.02.2018,CENTRAL FUNCTIONS,ROWANWOOD PROFESSIONAL SERVICES LTD,"4,583.33",ASSET MANAGEMENT SYSTEM,SOFTWARE,5902289020,1000080531
08.02.2018,CENTRAL FUNCTIONS,UK POWER NETWORKS (OPERATIONS) LTD,"1,898.00",GARAGE REPAIRS,BUILDING R&M,5902288329,1000016085
08.02.2018,CENTRAL FUNCTIONS,CUFF & GOUGH LLP SOLICTORS,"6,533.32",HOME OWNERSHIP INCOME,HOUSING RESIDENTIAL RENTS,2102774060,1000080635
08.02.2018,CHIEF EXECUTIVE,PRE-CONSTRUCT ARCHAEOLOGY LTD,"5,600.00",CAPITAL PS (REGEN),CONSTRUCTION,5902288691,1000000232
08.02.2018,CHIEF EXECUTIVE,CONWAY AECOM LTD,"6,072.67",CAPITAL PS (REGEN),CONSTRUCTION MAIN CONTRACT,5902288955,1000071205
08.02.2018,CHIEF EXECUTIVE,CONWAY AECOM LTD,"57,656.44",CAPITAL PS (REGEN),CONSTR'N SUB CONTRACT - NON CERTIFICATED,2102778981,3000001595
08.02.2018,CHIEF EXECUTIVE'S OFFICE,LATIN ELEPHANT,"5,000.00",BUSINESS SUPPORT,GRANTS,5902288797,1000074187
08.02.2018,CHIEF EXECUTIVE'S OFFICE,D&D FOOD SERVICES LTD,"4,008.86",YOUTH FUND EMPLOYMENT,GRANTS,2102778640,1000080711
08.02.2018,CHIEF EXECUTIVE'S OFFICE,D&D FOOD SERVICES LTD,"2,026.78",YOUTH FUND EMPLOYMENT,GRANTS,2102778641,1000080711
08.02.2018,CHILDREN AND ADULT,AHR ARCHITECTS LTD,"2,659.00",CAPITAL PS (EDUCATION),CONSTRUCTION FEES - ARCHITECT,5902287952,1000052423
08.02.2018,CHILDREN AND ADULT,CBS MAINTENANCE SERVICES LTD,"11,775.18",CAPITAL PS (EDUCATION),CONSTRUCTION MAIN CONTRACT -CERTIFICATED,2102778980,3000001518
08.02.2018,CHILDREN AND ADULT,MORGAN SINDALL PLC,"516,002.92",CAPITAL PS (EDUCATION),CONSTRUCTION MAIN CONTRACT -CERTIFICATED,2102778982,3000001556
08.02.2018,CHILDREN AND ADULT,KIER CONSTRUCTION LTD,"1,526,486.67",CAPITAL PS (EDUCATION),CONSTRUCTION,2102779003,3000001970
08.02.2018,CHILDREN AND ADULT,CORELOGIC LTD,"9,500.00",CAPITAL PS (STRAT SERV),ICT ACQUISITION,5902289036,1000074359
08.02.2018,CHILDREN AND ADULT,CORELOGIC LTD,"12,000.00",CAPITAL PS (STRAT SERV),ICT ACQUISITION,5902289040,1000074359
08.02.2018,CHILDREN'S SERVICES,SAM CHAPLIN,450,ADOPTION REFORM GRANT (PART A),PROFESSIONAL FEES,5902288923,1000080487
08.02.2018,CHILDREN'S SERVICES,BRAKE BROS,256.6,BISHOPS HOUSE EARLY YEARS CENTRE,CATERING MATERIALS & SUPPLIES,5902288446,1001482
08.02.2018,CHILDREN'S SERVICES,TEENS CRISIS UK,430.22,CARE GRPS  1 TO 3,OTHER PAYMENTS FOR CLIENTS,5902289041,1000078214
08.02.2018,CHILDREN'S SERVICES,TEENS CRISIS UK,476.3,CARE GRPS  1 TO 3,OTHER PAYMENTS FOR CLIENTS,5902289042,1000078214
08.02.2018,CHILDREN'S SERVICES,TEENS CRISIS UK,476.3,CARE GRPS  1 TO 3,OTHER PAYMENTS FOR CLIENTS,5902289045,1000078214
08.02.2018,CHILDREN'S SERVICES,FINTON HOUSE EDUCATIONAL TRUST,600,CASEWORK OLA  0-8,OTHER CONTRACTORS,2102778623,1000070344
08.02.2018,CHILDREN'S SERVICES,FINTON HOUSE EDUCATIONAL TRUST,"5,076.67",CASEWORK OLA  0-8,CONTRIBUTION TO PROVISIONS (TP PAYMENTS),2102778627,1000070344
08.02.2018,CHILDREN'S SERVICES,FINTON HOUSE EDUCATIONAL TRUST,"4,010.86",CASEWORK OLA  0-8,CONTRIBUTION TO PROVISIONS (TP PAYMENTS),2102778628,1000070344
08.02.2018,CHILDREN'S SERVICES,MIKE PINNOCK,"1,500.00",CATCH 22 INNOVATION GRANT,EXTERNAL AGENCIES AND BODIES,5902289070,1000078260
08.02.2018,CHILDREN'S SERVICES,INNER CIRCLE CONSULTING,"6,500.00",CATCH 22 INNOVATION GRANT,EXTERNAL AGENCIES AND BODIES,5902289068,1000080627
08.02.2018,CHILDREN'S SERVICES,MIME CONSULTING LTD,"5,000.00",CENTRAL COSTS - SEN,CONSULTANTS SERVICES,5902288636,1000057079
08.02.2018,CHILDREN'S SERVICES,REDACTED PERSONAL DATA,700,DISABILITY & HIV,ADDITIONAL PAYMENTS TO AGENCIES/CARERS,REDACTED,REDACTED
08.02.2018,CHILDREN'S SERVICES,REDACTED PERSONAL DATA,"1,439.43",DISABILITY & HIV,PAYMENTS TO CARERS,REDACTED,REDACTED
08.02.2018,CHILDREN'S SERVICES,REDACTED PERSONAL DATA,"1,200.00",DISABILITY & HIV,ADDITIONAL PAYMENTS TO AGENCIES/CARERS,REDACTED,REDACTED
08.02.2018,CHILDREN'S SERVICES,REDACTED PERSONAL DATA,637.5,DISABILITY & HIV,PAYMENTS TO CARERS,REDACTED,REDACTED
08.02.2018,CHILDREN'S SERVICES,REDACTED PERSONAL DATA,287.89,DISABILITY & HIV,PAYMENTS TO CARERS,REDACTED,REDACTED
08.02.2018,CHILDREN'S SERVICES,REDACTED PERSONAL DATA,741.11,DISABILITY & HIV,PAYMENTS TO CARERS,REDACTED,REDACTED
08.02.2018,CHILDREN'S SERVICES,REDACTED PERSONAL DATA,444.06,DISABILITY & HIV,ADDITIONAL PAYMENTS TO AGENCIES/CARERS,REDACTED,REDACTED
08.02.2018,CHILDREN'S SERVICES,REDACTED PERSONAL DATA,824.68,DISABILITY & HIV,PAYMENTS TO CARERS,REDACTED,REDACTED
08.02.2018,CHILDREN'S SERVICES,ACTIVE 8 CARE LTD,"3,420.00",FE & SIXTH FORM COLLEGES,STATEMENTED FEES,2102774415,1000063801
08.02.2018,CHILDREN'S SERVICES,ACTIVE 8 CARE LTD,"3,420.00",FE & SIXTH FORM COLLEGES,STATEMENTED FEES,2102774416,1000063801
08.02.2018,CHILDREN'S SERVICES,REDACTED PERSONAL DATA,300,FURTHER EDUCATION SUPPORT,CLIENT TRANSPORT,REDACTED,REDACTED
08.02.2018,CHILDREN'S SERVICES,ANDREW DODGE,"1,160.00",GOVERNOR TRAINING,CONSULTANTS SERVICES,5902288558,1000046142
08.02.2018,CHILDREN'S SERVICES,THOMPSONS SOLICITORS,350,LEGAL,LEGAL FEES & COURT COSTS,2102778972,1000020542
08.02.2018,CHILDREN'S SERVICES,MELANIE NAZARETH,375,LEGAL,LEGAL FEES & COURT COSTS,2102778958,1000044248
08.02.2018,CHILDREN'S SERVICES,EMILY RADCLIFFE,475,LEGAL,LEGAL FEES & COURT COSTS,2102778941,1000047317
08.02.2018,CHILDREN'S SERVICES,EMILY RADCLIFFE,"4,125.00",LEGAL,LEGAL FEES & COURT COSTS,2102778942,1000047317
08.02.2018,CHILDREN'S SERVICES,TABITHA BARRAN,"1,250.00",LEGAL,LEGAL FEES & COURT COSTS,2102778965,1000053940
08.02.2018,CHILDREN'S SERVICES,TABITHA BARRAN,300,LEGAL,LEGAL FEES & COURT COSTS,2102778966,1000053940
08.02.2018,CHILDREN'S SERVICES,TABITHA BARRAN,"1,875.00",LEGAL,LEGAL FEES & COURT COSTS,2102778967,1000053940
08.02.2018,CHILDREN'S SERVICES,TABITHA BARRAN,400,LEGAL,LEGAL FEES & COURT COSTS,2102778968,1000053940
08.02.2018,CHILDREN'S SERVICES,TABITHA BARRAN,300,LEGAL,LEGAL FEES & COURT COSTS,2102778969,1000053940
08.02.2018,CHILDREN'S SERVICES,TIM PARKER,400,LEGAL,LEGAL FEES & COURT COSTS,2102778973,1000061949
08.02.2018,CHILDREN'S SERVICES,TIM PARKER,300,LEGAL,LEGAL FEES & COURT COSTS,2102778974,1000061949
08.02.2018,CHILDREN'S SERVICES,TIM PARKER,"1,125.00",LEGAL,LEGAL FEES & COURT COSTS,2102778975,1000061949
08.02.2018,CHILDREN'S SERVICES,TIM PARKER,550,LEGAL,LEGAL FEES & COURT COSTS,2102778976,1000061949
08.02.2018,CHILDREN'S SERVICES,AMI BARTHOLOMEW,475,LEGAL,LEGAL FEES & COURT COSTS,2102778919,1000064100
08.02.2018,CHILDREN'S SERVICES,AMI BARTHOLOMEW,475,LEGAL,LEGAL FEES & COURT COSTS,2102778920,1000064100
08.02.2018,CHILDREN'S SERVICES,KATE LAMONT,350,LEGAL,LEGAL FEES & COURT COSTS,2102778949,1000064216
08.02.2018,CHILDREN'S SERVICES,LAURA BUMPUS,375,LEGAL,LEGAL FEES & COURT COSTS,2102778952,1000064937
08.02.2018,CHILDREN'S SERVICES,LAURA BUMPUS,275,LEGAL,LEGAL FEES & COURT COSTS,2102778953,1000064937
08.02.2018,CHILDREN'S SERVICES,DR BRADLEY MANN,324.2,LEGAL,LEGAL FEES & COURT COSTS,2102778932,1000066750
08.02.2018,CHILDREN'S SERVICES,AL HOGARTH,"1,050.00",LEGAL,LEGAL FEES & COURT COSTS,2102778917,1000068723
08.02.2018,CHILDREN'S SERVICES,JULIAN DATE,"1,000.00",LEGAL,LEGAL FEES & COURT COSTS,2102778947,1000068743
08.02.2018,CHILDREN'S SERVICES,JULIAN DATE,"1,400.00",LEGAL,LEGAL FEES & COURT COSTS,2102778948,1000068743
08.02.2018,CHILDREN'S SERVICES,BEN ZURAWEL,375,LEGAL,LEGAL FEES & COURT COSTS,2102778923,1000069468
08.02.2018,CHILDREN'S SERVICES,BEN ZURAWEL,275,LEGAL,LEGAL FEES & COURT COSTS,2102778924,1000069468
08.02.2018,CHILDREN'S SERVICES,BEN ZURAWEL,375,LEGAL,LEGAL FEES & COURT COSTS,2102778925,1000069468
08.02.2018,CHILDREN'S SERVICES,BEN ZURAWEL,275,LEGAL,LEGAL FEES & COURT COSTS,2102778926,1000069468
08.02.2018,CHILDREN'S SERVICES,WILLIAM DEAN,850,LEGAL,LEGAL FEES & COURT COSTS,2102778979,1000070780
08.02.2018,CHILDREN'S SERVICES,KIERAN COLEMAN,400,LEGAL,LEGAL FEES & COURT COSTS,2102778951,1000074145
08.02.2018,CHILDREN'S SERVICES,JOHN SCHMITT,350,LEGAL,LEGAL FEES & COURT COSTS,2102778945,1000074146
08.02.2018,CHILDREN'S SERVICES,ELIZABETH NARTEY,300,LEGAL,LEGAL FEES & COURT COSTS,2102778935,1000075833
08.02.2018,CHILDREN'S SERVICES,DPS PSYCHOLOGY LTD,421.2,LEGAL,LEGAL FEES & COURT COSTS,2102778933,1000076158
08.02.2018,CHILDREN'S SERVICES,LAURA HIBBERD,350,LEGAL,LEGAL FEES & COURT COSTS,2102778954,1000076749
08.02.2018,CHILDREN'S SERVICES,CLIVE REDLEY,525,LEGAL,LEGAL FEES & COURT COSTS,2102778930,1000078306
08.02.2018,CHILDREN'S SERVICES,ELIZABETH STEVENS,350,LEGAL,LEGAL FEES & COURT COSTS,2102778936,1000078842
08.02.2018,CHILDREN'S SERVICES,ELIZABETH STEVENS,800,LEGAL,LEGAL FEES & COURT COSTS,2102778937,1000078842
08.02.2018,CHILDREN'S SERVICES,ELIZABETH STEVENS,300,LEGAL,LEGAL FEES & COURT COSTS,2102778938,1000078842
08.02.2018,CHILDREN'S SERVICES,MIME CONSULTING LTD,"4,438.67",MANAGEMENT AND SUPPORT,PROFESSIONAL FEES,5902287996,1000057079
08.02.2018,CHILDREN'S SERVICES,FRIARS PRIMARY SCHOOL,500,PRIMARY ACHIEVEMENT,MISCELLANEOUS RECHARGES,2102778906,5001000033
08.02.2018,CHILDREN'S SERVICES,JOHN RUSKIN PRIMARY SCHOOL,500,PRIMARY ACHIEVEMENT,MISCELLANEOUS RECHARGES,2102778907,5001000040
08.02.2018,CHILDREN'S SERVICES,MICHAEL FARADAY PRIMARY SCHOOL,500,PRIMARY ACHIEVEMENT,MISCELLANEOUS RECHARGES,2102778908,5001000048
08.02.2018,CHILDREN'S SERVICES,PILGRIM'S WAY PRIMARY SCHOOL,500,PRIMARY ACHIEVEMENT,MISCELLANEOUS RECHARGES,2102778905,5001000054
08.02.2018,CHILDREN'S SERVICES,RYE OAK PRIMARY SCHOOL,500,PRIMARY ACHIEVEMENT,MISCELLANEOUS RECHARGES,2102778909,5001000059
08.02.2018,CHILDREN'S SERVICES,THE CHARTER SCHOOL EDUCATIONAL TRUST,"1,500.00",PUPIL PREMIUM CURRENT YEAR,SCHOOLS CAPITATION,2102778995,1000064975
08.02.2018,CHILDREN'S SERVICES,HALLING PRIMARY SCHOOL,"1,500.00",PUPIL PREMIUM CURRENT YEAR,SCHOOLS CAPITATION,2102778993,1000073314
08.02.2018,CHILDREN'S SERVICES,MIERS COURT PRIMARY SCHOOL,"1,500.00",PUPIL PREMIUM CURRENT YEAR,SCHOOLS CAPITATION,2102778999,1000073360
08.02.2018,CHILDREN'S SERVICES,HARRIS ACADEMY CRYSTAL PALACE,"1,500.00",PUPIL PREMIUM CURRENT YEAR,SCHOOLS CAPITATION,2102778994,1000073877
08.02.2018,CHILDREN'S SERVICES,MELROSE SCHOOL,"1,500.00",PUPIL PREMIUM CURRENT YEAR,SCHOOLS CAPITATION,2102778991,1000076643
08.02.2018,CHILDREN'S SERVICES,JOTMANS HALL PRIMARY SCHOOL,"1,500.00",PUPIL PREMIUM CURRENT YEAR,SCHOOLS CAPITATION,2102776410,1000080683
08.02.2018,CHILDREN'S SERVICES,DOG KENNEL HILL PRIMARY SCHOOL,"1,500.00",PUPIL PREMIUM CURRENT YEAR,SCHOOLS CAPITATION,2102778989,5001000025
08.02.2018,CHILDREN'S SERVICES,DOG KENNEL HILL PRIMARY SCHOOL,"1,500.00",PUPIL PREMIUM CURRENT YEAR,SCHOOLS CAPITATION,2102778990,5001000025
08.02.2018,CHILDREN'S SERVICES,HOLLYDALE PRIMARY SCHOOL,"1,500.00",PUPIL PREMIUM CURRENT YEAR,SCHOOLS CAPITATION,2102778998,5001000036
08.02.2018,CHILDREN'S SERVICES,ST MARY MAGDALENE CE SCHOOL,"1,000.00",PUPIL PREMIUM CURRENT YEAR,SCHOOLS CAPITATION,2102778996,5001000080
08.02.2018,CHILDREN'S SERVICES,ST MARY MAGDALENE CE SCHOOL,"1,000.00",PUPIL PREMIUM CURRENT YEAR,SCHOOLS CAPITATION,2102778997,5001000080
08.02.2018,CHILDREN'S SERVICES,ST SAVIOURS & ST OLAVES SCHOOL,"1,020.00",PUPIL PREMIUM CURRENT YEAR,SCHOOLS CAPITATION,2102778992,5001000084
08.02.2018,CHILDREN'S SERVICES,HEARTWOOD OUTREACH SERVICES LTD,"11,625.00",RESIDENTIAL,RESIDENTIAL CARE,5902289048,1000075021
08.02.2018,CHILDREN'S SERVICES,AFRICA ADVOCACY FOUNDATION,"15,000.00",RESOURCE PANEL,EXTERNAL AGENCIES AND BODIES,5902287647,1000036963
08.02.2018,CHILDREN'S SERVICES,LIBERTY CARE HOMES LTD,"2,571.43",S24 CLA,EXTERNAL AGENCIES AND BODIES,5902288866,1000078210
08.02.2018,CHILDREN'S SERVICES,LIBERTY CARE HOMES LTD,"1,028.57",SEMI INDEPENDENT,RESIDENTIAL CARE,5902288866,1000078210
08.02.2018,CHILDREN'S SERVICES,LIBERTY CARE HOMES LTD,300,SEMI INDEPENDENT,RESIDENTIAL CARE,5902288866,1000078210
08.02.2018,CHILDREN'S SERVICES,PULSE HEALTHCARE LTD,583.05,SEN TRANSPORT,STATEMENTED FEES,5902287986,1000035063
08.02.2018,CHILDREN'S SERVICES,PULSE HEALTHCARE LTD,388.7,SEN TRANSPORT,STATEMENTED FEES,5902287990,1000035063
08.02.2018,CHILDREN'S SERVICES,BLANCHE NEVILE SCHOOL,"2,445.96",SEN TRANSPORT,EXTERNAL AGENCIES AND BODIES,5902287940,1000078704
08.02.2018,CHILDREN'S SERVICES,INTEGRATED SERVICES PROGRAMME,"2,411.80",STAYING PUT,EXTERNAL AGENCIES AND BODIES,5902289060,1642068
08.02.2018,CHILDREN'S SERVICES,FAMILY FOSTERING LTD,"1,771.34",STAYING PUT,EXTERNAL AGENCIES AND BODIES,5902289052,1000075179
08.02.2018,CHILDREN'S SERVICES,REDACTED PERSONAL DATA,625,STAYING PUT,OTHER PAYMENTS FOR CLIENTS,REDACTED,REDACTED
08.02.2018,CHILDREN'S SERVICES,SOUTH OF THE RIVER INVESTMENTS LTD,"3,738.60",TEMPORARY ACCOMMODATION,EXTERNAL AGENCIES AND BODIES,5902288858,1000073638
08.02.2018,CHILDREN'S SERVICES,REVIVAL,495,YOS SUPPORT,MEDICAL / HEALTH & SAFETY SERVICES,5902288879,1000027424
08.02.2018,CHILDREN'S SERVICES,REVIVAL,330,YOS SUPPORT,MEDICAL / HEALTH & SAFETY SERVICES,5902288880,1000027424
08.02.2018,CLIENT SVCES,AIDAN BRIGGS,"1,312.50",BENEFITS,LEGAL FEES & COURT COSTS,2102778915,1000065541
08.02.2018,CLIENT SVCES,AIDAN BRIGGS,375,BENEFITS,LEGAL FEES & COURT COSTS,2102778916,1000065541
08.02.2018,CLIENT SVCES,DAVID MITCHELL,800,BENEFITS,LEGAL FEES & COURT COSTS,2102778931,1000068821
08.02.2018,COMMISSIONING & CENTRAL,IDOX SOFWARE LIMITED,"3,609.91",C&AS SOFTWARE APPS,EXTERNAL AGENCIES AND BODIES,5902288346,1000032110
08.02.2018,COMMUNITIES,FALCON POINT MANAGEMENT GROUP LTD,"6,202.42",FALCON POINT TMO,M&M ALLOWANCE CO-OPS,5902287967,11117573
08.02.2018,COMMUNITIES,GROVE HOTEL LTD,"1,705.00",NO RECOURSE TO PUBLIC FUNDS,ACCOMMODATION CHARGES,5902288960,1000043663
08.02.2018,COMMUNITIES,GALAXY LETTINGS LTD,"9,197.00",NO RECOURSE TO PUBLIC FUNDS,ACCOMMODATION CHARGES,5902288860,1000055897
08.02.2018,COMMUNITIES,SHUTTLEWORTH (UK) LTD,"6,417.00",NO RECOURSE TO PUBLIC FUNDS,ACCOMMODATION CHARGES,5902288963,1000056468
08.02.2018,COMMUNITIES,VENTURE HOUSING (LONDON) LTD,"9,284.50",NO RECOURSE TO PUBLIC FUNDS,ACCOMMODATION CHARGES,5902288952,1000056686
08.02.2018,COMMUNITIES,EDEN ESTATES LONDON LTD,280,NO RECOURSE TO PUBLIC FUNDS,ACCOMMODATION CHARGES,5902288957,1000061217
08.02.2018,COMMUNITIES,CROWN HOUSING LTD,"9,901.00",NO RECOURSE TO PUBLIC FUNDS,ACCOMMODATION CHARGES,5902288850,1000075070
08.02.2018,COMMUNITIES,NORBURY PROPERTY SERVICES,"4,321.00",NO RECOURSE TO PUBLIC FUNDS,ACCOMMODATION CHARGES,5902288951,1000075566
08.02.2018,COMMUNITIES,FINEFAIR LTD,"5,026.68",NO RECOURSE TO PUBLIC FUNDS,ACCOMMODATION CHARGES,5902288953,1000075570
08.02.2018,COMMUNITIES,NATIONWIDE ACCOMMODATION,"12,653.00",NO RECOURSE TO PUBLIC FUNDS,ACCOMMODATION CHARGES,5902288849,1000076112
08.02.2018,CUSTOMER EXPERIENCE HGF,ACCESS INDEPENDENT LTD,"1,711.75",BLUE BADGES,PROFESSIONAL FEES,5902287972,1000059141
08.02.2018,CUSTOMER EXPERIENCE HGF,IDEAL QUARTERS LTD,"1,143.82",PRIVATE SECTOR LEASING,EXTERNAL AGENCIES AND BODIES,5902288934,1000079241
08.02.2018,CUSTOMER EXPERIENCE HGF,IDEAL QUARTERS LTD,"4,000.00",PRIVATE SECTOR LEASING,EXTERNAL AGENCIES AND BODIES,5902288936,1000079241
08.02.2018,CUSTOMER EXPERIENCE HGF,IDEAL QUARTERS LTD,"1,014.99",PRIVATE SECTOR LEASING,EXTERNAL AGENCIES AND BODIES,5902288942,1000079241
08.02.2018,CUSTOMER EXPERIENCE HGF,IDEAL QUARTERS LTD,"4,000.00",PRIVATE SECTOR LEASING,EXTERNAL AGENCIES AND BODIES,5902288947,1000079241
08.02.2018,ELECTORAL SVCES,SMARTMATIC ELECTIONS UK LTD,"4,966.00",GENERAL ELECTION,TRAINING,5902288008,1000078078
08.02.2018,ENVIRONMENT AND LEISURE,LAND USE CONSULTANTS LTD,"1,940.00",CAPITAL PS (LEISURE),CONSTRUCTION FEES  - EXTERNAL,5902288909,11132526
08.02.2018,ENVIRONMENT AND LEISURE,PLAYSAFETY LTD,350,CAPITAL PS (LEISURE),CONSTRUCTION FEES  - EXTERNAL,5902288902,1000054806
08.02.2018,ENVIRONMENT AND LEISURE,STANBURY BUILDING SERVICES LTD,"2,500.00",CAPITAL PS (LEISURE),CONST'N MAIN CONTRACT - NON CERTIFICATED,2102778914,3000001967
08.02.2018,ENVIRONMENT DIRECTORATE,GREENHAM TRADING LTD,920,ESTATE CLEANING-GENERAL,MATERIALS,5902288854,1000006610
08.02.2018,ENVIRONMENT DIRECTORATE,GREENHAM TRADING LTD,-368.4,ESTATE CLEANING-GENERAL,MATERIALS,5902288856,1000006610
08.02.2018,ENVIRONMENT DIRECTORATE,CABLE TEST LTD,275.32,LIGHTING RECOVERABLE WORKS,SOUTHWARK DIRECT CHARGES,5902288965,1000079183
08.02.2018,ENVIRONMENT DIRECTORATE,CABLE TEST LTD,"1,417.00",LIGHTING RECOVERABLE WORKS,SOUTHWARK DIRECT CHARGES,5902288966,1000079183
08.02.2018,ENVIRONMENT DIRECTORATE,CABLE TEST LTD,941.46,LIGHTING RECOVERABLE WORKS,SOUTHWARK DIRECT CHARGES,5902288967,1000079183
08.02.2018,ENVIRONMENT DIRECTORATE,CABLE TEST LTD,"1,121.07",LIGHTING RECOVERABLE WORKS,SOUTHWARK DIRECT CHARGES,5902288969,1000079183
08.02.2018,ENVIRONMENT DIRECTORATE,CABLE TEST LTD,"1,291.46",LIGHTING RECOVERABLE WORKS,SOUTHWARK DIRECT CHARGES,5902288970,1000079183
08.02.2018,ENVIRONMENT DIRECTORATE,CABLE TEST LTD,588,LIGHTING RECOVERABLE WORKS,SOUTHWARK DIRECT CHARGES,5902288972,1000079183
08.02.2018,ENVIRONMENT DIRECTORATE,CABLE TEST LTD,"4,978.32",LIGHTING RECOVERABLE WORKS,SOUTHWARK DIRECT CHARGES,5902288974,1000079183
08.02.2018,ENVIRONMENT DIRECTORATE,CABLE TEST LTD,257.75,LIGHTING RECOVERABLE WORKS,SOUTHWARK DIRECT CHARGES,5902288975,1000079183
08.02.2018,ENVIRONMENT DIRECTORATE,CABLE TEST LTD,413,LIGHTING RECOVERABLE WORKS,SOUTHWARK DIRECT CHARGES,5902288976,1000079183
08.02.2018,ENVIRONMENT DIRECTORATE,CABLE TEST LTD,"1,359.00",LIGHTING RECOVERABLE WORKS,SOUTHWARK DIRECT CHARGES,5902288977,1000079183
08.02.2018,ENVIRONMENT DIRECTORATE,CABLE TEST LTD,550.64,LIGHTING RECOVERABLE WORKS,SOUTHWARK DIRECT CHARGES,5902288978,1000079183
08.02.2018,ENVIRONMENT DIRECTORATE,CABLE TEST LTD,785.87,LIGHTING RECOVERABLE WORKS,SOUTHWARK DIRECT CHARGES,5902288981,1000079183
08.02.2018,ENVIRONMENT DIRECTORATE,CABLE TEST LTD,"2,301.00",LIGHTING RECOVERABLE WORKS,SOUTHWARK DIRECT CHARGES,5902288994,1000079183
08.02.2018,ENVIRONMENT DIRECTORATE,CABLE TEST LTD,"1,534.00",LIGHTING RECOVERABLE WORKS,SOUTHWARK DIRECT CHARGES,5902288996,1000079183
08.02.2018,ENVIRONMENT DIRECTORATE,CABLE TEST LTD,275.32,LIGHTING RECOVERABLE WORKS,SOUTHWARK DIRECT CHARGES,5902288999,1000079183
08.02.2018,ENVIRONMENT DIRECTORATE,CABLE TEST LTD,275.32,LIGHTING RECOVERABLE WORKS,SOUTHWARK DIRECT CHARGES,5902289001,1000079183
08.02.2018,ENVIRONMENT DIRECTORATE,CABLE TEST LTD,767,LIGHTING RECOVERABLE WORKS,SOUTHWARK DIRECT CHARGES,5902289002,1000079183
08.02.2018,ENVIRONMENT DIRECTORATE,CABLE TEST LTD,842.52,LIGHTING RECOVERABLE WORKS,SOUTHWARK DIRECT CHARGES,5902289004,1000079183
08.02.2018,ENVIRONMENT DIRECTORATE,CABLE TEST LTD,"1,626.32",LIGHTING RECOVERABLE WORKS,SOUTHWARK DIRECT CHARGES,5902289005,1000079183
08.02.2018,ENVIRONMENT DIRECTORATE,CABLE TEST LTD,883.32,LIGHTING RECOVERABLE WORKS,SOUTHWARK DIRECT CHARGES,5902289008,1000079183
08.02.2018,ENVIRONMENT DIRECTORATE,CABLE TEST LTD,645.73,LIGHTING RECOVERABLE WORKS,SOUTHWARK DIRECT CHARGES,5902289022,1000079183
08.02.2018,ENVIRONMENT DIRECTORATE,CABLE TEST LTD,767,LIGHTING RECOVERABLE WORKS,SOUTHWARK DIRECT CHARGES,5902289023,1000079183
08.02.2018,ENVIRONMENT DIRECTORATE,CABLE TEST LTD,470.73,LIGHTING RECOVERABLE WORKS,SOUTHWARK DIRECT CHARGES,5902289025,1000079183
08.02.2018,ENVIRONMENT DIRECTORATE,CABLE TEST LTD,593.84,LIGHTING RECOVERABLE WORKS,SOUTHWARK DIRECT CHARGES,5902289026,1000079183
08.02.2018,ENVIRONMENT DIRECTORATE,CABLE TEST LTD,470.73,LIGHTING RECOVERABLE WORKS,SOUTHWARK DIRECT CHARGES,5902289032,1000079183
08.02.2018,ENVIRONMENT DIRECTORATE,CABLE TEST LTD,"1,682.00",LIGHTING RECOVERABLE WORKS,SOUTHWARK DIRECT CHARGES,5902289033,1000079183
08.02.2018,ENVIRONMENT DIRECTORATE,CABLE TEST LTD,"1,123.00",LIGHTING RECOVERABLE WORKS,SOUTHWARK DIRECT CHARGES,5902289035,1000079183
08.02.2018,ENVIRONMENT DIRECTORATE,CABLE TEST LTD,"1,117.95",LIGHTING RECOVERABLE WORKS,SOUTHWARK DIRECT CHARGES,5902289038,1000079183
08.02.2018,ENVIRONMENT DIRECTORATE,CABLE TEST LTD,"1,176.00",LIGHTING RECOVERABLE WORKS,SOUTHWARK DIRECT CHARGES,5902289039,1000079183
08.02.2018,ENVIRONMENT DIRECTORATE,AGENTIS WORKWEAR LTD,384,MANAGEMENT TEAM,"CLOTHING, UNIFORMS & LAUNDRY",5902288523,1000065561
08.02.2018,ENVIRONMENT DIRECTORATE,CYCLE CONFIDENT LTD,"3,312.00",NON LCN CYCLE TRAINING,PROFESSIONAL FEES,5902288931,1000070228
08.02.2018,ENVIRONMENT DIRECTORATE,KINGS COLLEGE LONDON,"1,589.75",POLLUTION CONTROL,CONSULTANTS SERVICES,5902288954,1000021115
08.02.2018,ENVIRONMENT DIRECTORATE,PWLC PROJECTS,"6,850.00","ROAD SAFETY EDUCATION,TRAINING&PUBLICITY",PROFESSIONAL FEES,5902288864,1000079351
08.02.2018,ENVIRONMENT DIRECTORATE,CROWN OIL UK,"1,005.89",SANDGATE STREET,VEHICLE FUEL,5902288855,1000074865
08.02.2018,ENVIRONMENT DIRECTORATE,JUDGE AND PRIESTLEY SOLICITORS,"6,822.00",SASBU,LEGAL FEES & COURT COSTS,5902289017,1472217
08.02.2018,ENVIRONMENT DIRECTORATE,TYCO INTEGRATED FIRE & SECURITY,"12,881.66",TOWN CENTRE CCTV,EQUIPMENT PURCHASE & REPAIR,5902289031,1000077948
08.02.2018,F & C S EXCLUDING CORPORATE BUDGETS,THOMPSONS SOLICITORS,350,CORPORATE SERVICES,LEGAL FEES & COURT COSTS,2102778971,1000020542
08.02.2018,F & C S EXCLUDING CORPORATE BUDGETS,GOVNET COMMUNICATIONS,395,FINANCE DIRECTOR,TRAINING,5902288916,1000050132
08.02.2018,F & C S EXCLUDING CORPORATE BUDGETS,EXPERIAN DATA QUALITY,707.06,SYSTEMS DEVELOPMENT,OFFICE EXPENSES,5902288729,1000070958
08.02.2018,HOUSING GENERAL FUND,ENGIE REGENERATION (APOLLO) LTD,"211,175.19",CAPITAL PS (HOUSING GF),CONSTRUCTION,2102779001,4000449
08.02.2018,HOUSING GENERAL FUND,ENGIE REGENERATION (APOLLO) LTD,"192,193.80",CAPITAL PS (HOUSING GF),CONSTRUCTION,2102779002,4000449
08.02.2018,HOUSING GENERAL FUND,COLT TECHNOLOGY SERVICES,"2,339.77",CAPITAL PS (STRAT SERV),ICT ACQUISITION,5902288980,1000009377
08.02.2018,HOUSING GENERAL FUND,COLT TECHNOLOGY SERVICES,913,CAPITAL PS (STRAT SERV),ICT ACQUISITION,5902288984,1000009377
08.02.2018,HOUSING GENERAL FUND,COLT TECHNOLOGY SERVICES,913,CAPITAL PS (STRAT SERV),ICT ACQUISITION,5902288986,1000009377
08.02.2018,HOUSING GENERAL FUND,COLT TECHNOLOGY SERVICES,913,CAPITAL PS (STRAT SERV),ICT ACQUISITION,5902288989,1000009377
08.02.2018,HOUSING GENERAL FUND,COLT TECHNOLOGY SERVICES,"6,197.87",CAPITAL PS (STRAT SERV),ICT ACQUISITION,5902288991,1000009377
08.02.2018,HOUSING HRA,CALFORD SEADEN LLP,"1,790.46",CAPITAL PS (HRA),CONSTRUCTION FEES  - EXTERNAL,5902287979,1061592
08.02.2018,HOUSING HRA,CALFORD SEADEN LLP,"2,072.00",CAPITAL PS (HRA),CONSTRUCTION FEES  - EXTERNAL,5902289055,1061592
08.02.2018,HOUSING HRA,ENGIE REGENERATION (APOLLO) LTD,"380,149.98",CAPITAL PS (HRA),CONSTRUCTION MAIN CONTRACT -CERTIFICATED,2102778988,4000449
08.02.2018,HOUSING HRA,ENGIE REGENERATION (APOLLO) LTD,"71,459.83",CAPITAL PS (HRA),CONSTRUCTION MAIN CONTRACT -CERTIFICATED,2102779000,4000449
08.02.2018,HOUSING HRA,SALTASH ENTERPRISES LTD,"6,286.11",CAPITAL PS (HRA),CONSTRUCTION MAIN CONTRACT -CERTIFICATED,2102778912,4013605
08.02.2018,HOUSING HRA,MLM CONSULTING ENGINEERS LTD,375,CAPITAL PS (HRA),CONSTRUCTION FEES  - EXTERNAL,5902288913,1000059806
08.02.2018,HOUSING HRA,JAMES REMOVALS,"1,700.00",CAPITAL PS (HRA),CAPITAL GRANTS,5902289006,1000060016
08.02.2018,HOUSING HRA,TEMPLE GROUP LTD,560,CAPITAL PS (HRA),CONSTRUCTION FEES  - EXTERNAL,5902288949,1000072247
08.02.2018,HOUSING HRA,TECHNICAL DEVELOPMENT SERVICES,"3,235.96",CAPITAL PS (HRA),CONSTRUCTION FEES  - EXTERNAL,5902288940,1000079928
08.02.2018,HOUSING HRA,HAWKINS ENVIRONMENTAL LTD,"3,075.00",CAPITAL PS (HRA),CONSTRUCTION FEES  - EXTERNAL,5902288928,1000080303
08.02.2018,HOUSING HRA,C&C BUILDERS LTD,"9,150.00",CAPITAL PS (HRA),CONST'N MAIN CONTRACT - NON CERTIFICATED,2102778913,3000001986
08.02.2018,HOUSING HRA,ETC VENUES LTD,900,CAPITAL PS (REGEN),LAND & BUILDINGS ACQUISITION FEES,5902288442,1000045226
08.02.2018,HOUSING HRA,TV EDWARDS LLP,294.85,CAPITAL PS (REGEN),LAND & BUILDINGS ACQUISITION FEES,5902289051,1000053290
08.02.2018,HOUSING HRA,DUCTCLEAN (UK) LTD,"89,557.98",DUCTCLEAN,MANUAL CREDITORS,2102778983,3000001635
08.02.2018,HOUSING HRA,MEARS LTD,"537,848.02",MEARS,MANUAL CREDITORS,2102778910,3000001096
08.02.2018,HOUSING HRA,SCCI ALPHATRACK LTD,"58,193.95",SCCI ALPHATRACK,MANUAL CREDITORS,5902288922,1000071955
08.02.2018,HOUSING STRATEGY AND OPTIONS,MALCOLM G SANKEY,960,HOMELESS & HOUSING OPTIONS MGT,LEGAL FEES & COURT COSTS,2102778956,1000057822
08.02.2018,LEISURE DIRECTORATE,KENT COUNTY COUNCIL - LASER,"1,368.79",DULWICH AREA TEAM,ELECTRICITY,5902288872,1000012926
08.02.2018,LEISURE DIRECTORATE,BENJAMIN OSWALD (UK) HOLDINGS LTD,420,DULWICH LIBRARY,REMOVAL EXPENSES,5902288939,1000047994
08.02.2018,LEISURE DIRECTORATE,SIMPLY HIRE LTD,"1,033.16",FACILITIES MAINTENANCE,BUILDING R&M,5902288897,1000018354
08.02.2018,LEISURE DIRECTORATE,VEOLIA ES (UK)LTD,778,JOHN HARVARD LIBRARY,REFUSE COLLECTION CONTRACT,5902288933,1824835
08.02.2018,LEISURE DIRECTORATE,KENT COUNTY COUNCIL - LASER,"1,797.99",SDM BUDGET,ELECTRICITY,5902288852,1000012926
08.02.2018,LEISURE DIRECTORATE,COMBINED PRECISION COMPONENTS PLC,412.8,SDM BUDGET,MATERIALS,5902288853,1000021821
08.02.2018,LEISURE DIRECTORATE,THAMES MARINE SERVICES LTD,517.6,SDM BUDGET,VEHICLE FUEL,5902288851,1000077273
08.02.2018,LEISURE DIRECTORATE,CASTLE WATER LTD,"1,090.09",SDM BUDGET,WATER,5902288857,1000078867
08.02.2018,LEISURE DIRECTORATE,ASKEWS & HOLTS LIBRARY SERVICES LTD,"1,274.25",STOCK SERVICES,BOOKS & PUBLICATIONS,5902287814,1494168
08.02.2018,LEISURE DIRECTORATE,ASKEWS & HOLTS LIBRARY SERVICES LTD,"5,306.66",STOCK SERVICES,BOOKS & PUBLICATIONS,5902287816,1494168
08.02.2018,LEISURE DIRECTORATE,DIRECT COLLECTION BALLIFFS LTD,350.86,THE BLUE YOUTH CENTRE,PARKING CHARGES,5902288868,1000080657
08.02.2018,MODERNISATION HGF,NEOPOST FINANCE LTD,"1,732.00",160 TOOLEY ST.,OP LEASE/HIRE CHARGES:PLANT/EQUIP/FURNIT,5902288961,1000064385
08.02.2018,MODERNISATION HGF,UBM INTERNATIONAL LIMITED,"2,925.00",CFM OPERATIONAL BUDGET,SUBSCRIPTIONS,5902288878,1000063111
08.02.2018,MODERNISATION HGF,SHARPE PRITCHARD LLP,480,IT MANAGEMENT,CONSULTANTS SERVICES,5902288997,1790085
08.02.2018,MODERNISATION HGF,COMENSURA LTD,"3,409.81",MONTHLY ADMIN FEE,AGENCY STAFF,5902288950,1000051261
08.02.2018,MODERNISATION HGF,POSTURITE (UK) LTD,391.28,REPAIR AND MAINTENANCE SERVICES,FURNITURE PURCHASE & REPAIR,5902289058,11015468
08.02.2018,MODERNISATION HGF,VODAFONE LTD,"6,420.73",TECHNOLOGY,DATA COMMUNICATIONS,5902289029,1000067176
08.02.2018,MODERNISATION HGF,DAISY COMMUNICATIONS LTD,"11,140.19",TECHNOLOGY,DATA COMMUNICATIONS,5902288861,1000075666
08.02.2018,MODERNISATION HGF,COMENSURA LTD,"478,932.68",WEEKLY PAYMENTS,AGENCY STAFF,5902288950,1000051261
08.02.2018,PROPERTY SERVICES,A R LAWRENCE & SONS LTD,"7,786.44",CPHA  MANAGED PROPERTIES,BUILDING R&M,5902288959,1000079826
08.02.2018,PROPERTY SERVICES,A R LAWRENCE & SONS LTD,"8,488.96",CPHA  MANAGED PROPERTIES,BUILDING R&M,5902288962,1000079826
08.02.2018,PUBLIC HEALTH,THE COLLEGE OF CONTEMPORARY HEALTH,"25,199.50",TACKLING CHILD OBESITY,EXTERNAL AGENCIES AND BODIES,5902288821,1000080685
08.02.2018,REGENERATION,KELVIN ALBERT RUTLEDGE,"5,125.00",MASTER PLAN-H/WAY & TRANS INTERCHANGE,LEGAL FEES & COURT COSTS,2102778950,1000059995
08.02.2018,RESIDENT SERVICES,APCOA PARKING (UK) LTD,"13,237.78",PARKING CONTROL,OTHER CONTRACTORS,5902289012,1718645
08.02.2018,RESIDENT SERVICES,SHAW KELLY,877.5,SPECIAL INVESTIGATIONS,LEGAL FEES & COURT COSTS,2102778963,1000006930
08.02.2018,RESIDENT SERVICES,SOUTH OF THE RIVER INVESTMENTS LTD,280,TA PLACEMENTS,EXTERNAL AGENCIES AND BODIES,5902288992,1000073638
08.02.2018,SOUTHWARK BUILDING SERVICES,PITNEY BOWES PURCHASE POWER,832,R & M OVERHEADS,POSTAGES,5902288924,1000000025
09.02.2018,ADULT SOCIAL CARE,TFL TELESALES / OYSTER FULFILMENT,350, LD MGMT & SUPPORT,CAB FARES,5902289194,1000059727
09.02.2018,ADULT SOCIAL CARE,CHOICE SUPPORT,734.8,LD LTS 18-64,HOMECARE - C&V,2102779314,1104183
09.02.2018,ADULT SOCIAL CARE,CHOICE SUPPORT,955.2,LD LTS 18-64,HOMECARE - SPOT,2102779315,1104183
09.02.2018,ADULT SOCIAL CARE,CHOICE SUPPORT,661.32,LD LTS 18-64,SUPPORTED LIVING,2102779316,1104183
09.02.2018,ADULT SOCIAL CARE,CHOICE SUPPORT,514.36,LD LTS 18-64,HOMECARE - SPOT,2102779317,1104183
09.02.2018,ADULT SOCIAL CARE,CHOICE SUPPORT,955.24,LD LTS 18-64,SUPPORTED LIVING,2102779320,1104183
09.02.2018,ADULT SOCIAL CARE,CHOICE SUPPORT,440.88,LD LTS 18-64,SUPPORTED LIVING,2102779321,1104183
09.02.2018,ADULT SOCIAL CARE,CHOICE SUPPORT,440.88,LD LTS 18-64,SUPPORTED LIVING,2102779324,1104183
09.02.2018,ADULT SOCIAL CARE,CHOICE SUPPORT,569.46,LD LTS 18-64,SUPPORTED LIVING,2102779327,1104183
09.02.2018,ADULT SOCIAL CARE,CHOICE SUPPORT,514.36,LD LTS 18-64,SUPPORTED LIVING,2102779328,1104183
09.02.2018,ADULT SOCIAL CARE,CHOICE SUPPORT,"1,102.20",LD LTS 18-64,SUPPORTED LIVING,2102779329,1104183
09.02.2018,ADULT SOCIAL CARE,CHOICE SUPPORT,587.84,LD LTS 18-64,SUPPORTED LIVING,2102779332,1104183
09.02.2018,ADULT SOCIAL CARE,CHOICE SUPPORT,367.4,LD LTS 18-64,SUPPORTED LIVING,2102779333,1104183
09.02.2018,ADULT SOCIAL CARE,CHOICE SUPPORT,367.4,LD LTS 18-64,SUPPORTED LIVING,2102779336,1104183
09.02.2018,ADULT SOCIAL CARE,THE DRIVE CARE HOMES LTD,"1,800.00",LD LTS 18-64,CLIENT TRANSPORT,2102779015,1000003889
09.02.2018,ADULT SOCIAL CARE,THE DRIVE CARE HOMES LTD,"2,160.00",LD LTS 18-64,CLIENT TRANSPORT,2102779022,1000003889
09.02.2018,ADULT SOCIAL CARE,PLUS SERVICES,250.88,LD LTS 18-64,SUPPORTED LIVING,2102779034,1000021241
09.02.2018,ADULT SOCIAL CARE,THREE C'S SUPPORT,360.2,LD LTS 18-64,SUPPORTED LIVING,2102779016,1000033865
09.02.2018,ADULT SOCIAL CARE,THREE C'S SUPPORT,616.32,LD LTS 18-64,SUPPORTED LIVING,2102779018,1000033865
09.02.2018,ADULT SOCIAL CARE,THREE C'S SUPPORT,411.6,LD LTS 18-64,SUPPORTED LIVING,2102779019,1000033865
09.02.2018,ADULT SOCIAL CARE,THREE C'S SUPPORT,630.36,LD LTS 18-64,SUPPORTED LIVING,2102779020,1000033865
09.02.2018,ADULT SOCIAL CARE,THREE C'S SUPPORT,411.6,LD LTS 18-64,SUPPORTED LIVING,2102779039,1000033865
09.02.2018,ADULT SOCIAL CARE,DARETHEALTHCARE UK LTD,537.81,LD LTS 18-64,HOMECARE - SPOT,2102779303,1000059149
09.02.2018,ADULT SOCIAL CARE,PROFAD CARE AGENCY,"2,316.72",LD LTS 18-64,HOMECARE - SPOT,2102779257,1000079032
09.02.2018,ADULT SOCIAL CARE,CHOICE SUPPORT,440.88,LD LTS 65+,SUPPORTED LIVING,2102779312,1104183
09.02.2018,ADULT SOCIAL CARE,THREE C'S SUPPORT,931.78,LD LTS 65+,SUPPORTED LIVING,2102779036,1000033865
09.02.2018,ADULT SOCIAL CARE,PROFAD CARE AGENCY,634.34,MEM LTS 65+,HOMECARE - SPOT,2102779230,1000079032
09.02.2018,ADULT SOCIAL CARE,PROFAD CARE AGENCY,510.23,MEM LTS 65+,HOMECARE - SPOT,2102779248,1000079032
09.02.2018,ADULT SOCIAL CARE,PROFAD CARE AGENCY,"2,261.56",MEM LTS 65+,HOMECARE - SPOT,2102779253,1000079032
09.02.2018,ADULT SOCIAL CARE,MIHOMECARE LTD,544.64,MH LTS 18-64,HOMECARE - C&V,2102779203,1000042594
09.02.2018,ADULT SOCIAL CARE,MIHOMECARE LTD,272.32,MH LTS 18-64,HOMECARE - C&V,2102779205,1000042594
09.02.2018,ADULT SOCIAL CARE,MIHOMECARE LTD,885.04,MH LTS 18-64,HOMECARE - C&V,2102779208,1000042594
09.02.2018,ADULT SOCIAL CARE,DARETHEALTHCARE UK LTD,"1,289.67",MH LTS 18-64,HOMECARE - SPOT,2102779304,1000059149
09.02.2018,ADULT SOCIAL CARE,PROFAD CARE AGENCY,386.12,MH LTS 18-64,HOMECARE - SPOT,2102779263,1000079032
09.02.2018,ADULT SOCIAL CARE,CLOUDS END SE,"1,000.00",MH LTS 18-64,EXTERNAL AGENCIES AND BODIES,2102779008,1000079240
09.02.2018,ADULT SOCIAL CARE,CLOUDS END SE,800,MH LTS 18-64,EXTERNAL AGENCIES AND BODIES,2102779021,1000079240
09.02.2018,ADULT SOCIAL CARE,CLOUDS END SE,"1,000.00",MH LTS 18-64,EXTERNAL AGENCIES AND BODIES,2102779030,1000079240
09.02.2018,ADULT SOCIAL CARE,CLOUDS END SE,800,MH LTS 18-64,EXTERNAL AGENCIES AND BODIES,2102779037,1000079240
09.02.2018,ADULT SOCIAL CARE,CLOUDS END SE,800,MH LTS 18-64,EXTERNAL AGENCIES AND BODIES,2102779038,1000079240
09.02.2018,ADULT SOCIAL CARE,MIHOMECARE LTD,846.75,MH LTS 65+,HOMECARE - C&V,2102779212,1000042594
09.02.2018,ADULT SOCIAL CARE,MIHOMECARE LTD,408.48,MH LTS 65+,HOMECARE - C&V,2102779214,1000042594
09.02.2018,ADULT SOCIAL CARE,MIHOMECARE LTD,510.6,MH LTS 65+,HOMECARE - C&V,2102779218,1000042594
09.02.2018,ADULT SOCIAL CARE,MIHOMECARE LTD,"1,327.56",MH LTS 65+,HOMECARE - C&V,2102779220,1000042594
09.02.2018,ADULT SOCIAL CARE,WESTMINSTER HOMECARE LTD,531.24,MH LTS 65+,HOMECARE - SPOT,2102779164,1000075287
09.02.2018,ADULT SOCIAL CARE,WESTMINSTER HOMECARE LTD,258.67,MH LTS 65+,HOMECARE - SPOT,2102779174,1000075287
09.02.2018,ADULT SOCIAL CARE,WESTMINSTER HOMECARE LTD,321.54,MH LTS 65+,HOMECARE - SPOT,2102779177,1000075287
09.02.2018,ADULT SOCIAL CARE,MIHOMECARE LTD,476.56,PHY LTS 18-64,HOMECARE - C&V,2102779204,1000042594
09.02.2018,ADULT SOCIAL CARE,MIHOMECARE LTD,442.52,PHY LTS 18-64,HOMECARE - C&V,2102779207,1000042594
09.02.2018,ADULT SOCIAL CARE,MIHOMECARE LTD,714.84,PHY LTS 18-64,HOMECARE - C&V,2102779215,1000042594
09.02.2018,ADULT SOCIAL CARE,MIHOMECARE LTD,493.58,PHY LTS 18-64,HOMECARE - C&V,2102779221,1000042594
09.02.2018,ADULT SOCIAL CARE,DARETHEALTHCARE UK LTD,"1,327.29",PHY LTS 18-64,HOMECARE - SPOT,2102779299,1000059149
09.02.2018,ADULT SOCIAL CARE,DARETHEALTHCARE UK LTD,889.89,PHY LTS 18-64,HOMECARE - SPOT,2102779307,1000059149
09.02.2018,ADULT SOCIAL CARE,WESTMINSTER HOMECARE LTD,"2,446.82",PHY LTS 18-64,HOMECARE - SPOT,2102779166,1000075287
09.02.2018,ADULT SOCIAL CARE,WESTMINSTER HOMECARE LTD,391.44,PHY LTS 18-64,HOMECARE - SPOT,2102779171,1000075287
09.02.2018,ADULT SOCIAL CARE,WESTMINSTER HOMECARE LTD,489.3,PHY LTS 18-64,HOMECARE - SPOT,2102779179,1000075287
09.02.2018,ADULT SOCIAL CARE,WESTMINSTER HOMECARE LTD,650.07,PHY LTS 18-64,HOMECARE - C&V,2102779186,1000075287
09.02.2018,ADULT SOCIAL CARE,WESTMINSTER HOMECARE LTD,748.17,PHY LTS 18-64,HOMECARE - SPOT,2102779188,1000075287
09.02.2018,ADULT SOCIAL CARE,WESTMINSTER HOMECARE LTD,447.36,PHY LTS 18-64,HOMECARE - SPOT,2102779190,1000075287
09.02.2018,ADULT SOCIAL CARE,WESTMINSTER HOMECARE LTD,363.48,PHY LTS 18-64,HOMECARE - SPOT,2102779192,1000075287
09.02.2018,ADULT SOCIAL CARE,WESTMINSTER HOMECARE LTD,538.23,PHY LTS 18-64,HOMECARE - SPOT,2102779202,1000075287
09.02.2018,ADULT SOCIAL CARE,PROFAD CARE AGENCY,586.08,PHY LTS 18-64,HOMECARE - SPOT,2102779238,1000079032
09.02.2018,ADULT SOCIAL CARE,PROFAD CARE AGENCY,"3,088.96",PHY LTS 18-64,HOMECARE - SPOT,2102779244,1000079032
09.02.2018,ADULT SOCIAL CARE,PROFAD CARE AGENCY,772.24,PHY LTS 18-64,HOMECARE - SPOT,2102779245,1000079032
09.02.2018,ADULT SOCIAL CARE,PROFAD CARE AGENCY,303.38,PHY LTS 18-64,HOMECARE - SPOT,2102779247,1000079032
09.02.2018,ADULT SOCIAL CARE,PROFAD CARE AGENCY,"2,316.72",PHY LTS 18-64,HOMECARE - SPOT,2102779262,1000079032
09.02.2018,ADULT SOCIAL CARE,PROFAD CARE AGENCY,286.14,PHY LTS 18-64,HOMECARE - SPOT,2102779264,1000079032
09.02.2018,ADULT SOCIAL CARE,PROFAD CARE AGENCY,"2,247.77",PHY LTS 18-64,HOMECARE - C&V,2102779295,1000079032
09.02.2018,ADULT SOCIAL CARE,MIHOMECARE LTD,885.04,PHY LTS 65+,HOMECARE - C&V,2102779206,1000042594
09.02.2018,ADULT SOCIAL CARE,MIHOMECARE LTD,953.12,PHY LTS 65+,HOMECARE - C&V,2102779210,1000042594
09.02.2018,ADULT SOCIAL CARE,DARETHEALTHCARE UK LTD,803.5,PHY LTS 65+,HOMECARE - SPOT,2102779298,1000059149
09.02.2018,ADULT SOCIAL CARE,DARETHEALTHCARE UK LTD,"1,682.98",PHY LTS 65+,HOMECARE - SPOT,2102779302,1000059149
09.02.2018,ADULT SOCIAL CARE,DARETHEALTHCARE UK LTD,544.97,PHY LTS 65+,HOMECARE - C&V,2102779306,1000059149
09.02.2018,ADULT SOCIAL CARE,DARETHEALTHCARE UK LTD,596.36,PHY LTS 65+,HOMECARE - SPOT,2102779308,1000059149
09.02.2018,ADULT SOCIAL CARE,DARETHEALTHCARE UK LTD,306.77,PHY LTS 65+,HOMECARE - SPOT,2102779311,1000059149
09.02.2018,ADULT SOCIAL CARE,WESTMINSTER HOMECARE LTD,"1,873.59",PHY LTS 65+,HOMECARE - SPOT,2102779163,1000075287
09.02.2018,ADULT SOCIAL CARE,WESTMINSTER HOMECARE LTD,"1,206.05",PHY LTS 65+,HOMECARE - SPOT,2102779165,1000075287
09.02.2018,ADULT SOCIAL CARE,WESTMINSTER HOMECARE LTD,"2,334.94",PHY LTS 65+,HOMECARE - SPOT,2102779167,1000075287
09.02.2018,ADULT SOCIAL CARE,WESTMINSTER HOMECARE LTD,517.4,PHY LTS 65+,HOMECARE - SPOT,2102779168,1000075287
09.02.2018,ADULT SOCIAL CARE,WESTMINSTER HOMECARE LTD,293.72,PHY LTS 65+,HOMECARE - SPOT,2102779169,1000075287
09.02.2018,ADULT SOCIAL CARE,WESTMINSTER HOMECARE LTD,251.76,PHY LTS 65+,HOMECARE - SPOT,2102779170,1000075287
09.02.2018,ADULT SOCIAL CARE,WESTMINSTER HOMECARE LTD,587.16,PHY LTS 65+,HOMECARE - SPOT,2102779172,1000075287
09.02.2018,ADULT SOCIAL CARE,WESTMINSTER HOMECARE LTD,314.64,PHY LTS 65+,HOMECARE - SPOT,2102779173,1000075287
09.02.2018,ADULT SOCIAL CARE,WESTMINSTER HOMECARE LTD,894.82,PHY LTS 65+,HOMECARE - SPOT,2102779175,1000075287
09.02.2018,ADULT SOCIAL CARE,WESTMINSTER HOMECARE LTD,880.88,PHY LTS 65+,HOMECARE - C&V,2102779176,1000075287
09.02.2018,ADULT SOCIAL CARE,WESTMINSTER HOMECARE LTD,"1,999.55",PHY LTS 65+,HOMECARE - SPOT,2102779178,1000075287
09.02.2018,ADULT SOCIAL CARE,WESTMINSTER HOMECARE LTD,713.12,PHY LTS 65+,HOMECARE - SPOT,2102779180,1000075287
09.02.2018,ADULT SOCIAL CARE,WESTMINSTER HOMECARE LTD,622.22,PHY LTS 65+,HOMECARE - SPOT,2102779181,1000075287
09.02.2018,ADULT SOCIAL CARE,WESTMINSTER HOMECARE LTD,293.72,PHY LTS 65+,HOMECARE - SPOT,2102779183,1000075287
09.02.2018,ADULT SOCIAL CARE,WESTMINSTER HOMECARE LTD,810.97,PHY LTS 65+,HOMECARE - SPOT,2102779184,1000075287
09.02.2018,ADULT SOCIAL CARE,WESTMINSTER HOMECARE LTD,"2,125.24",PHY LTS 65+,HOMECARE - SPOT,2102779189,1000075287
09.02.2018,ADULT SOCIAL CARE,WESTMINSTER HOMECARE LTD,653.67,PHY LTS 65+,HOMECARE - SPOT,2102779191,1000075287
09.02.2018,ADULT SOCIAL CARE,WESTMINSTER HOMECARE LTD,587.16,PHY LTS 65+,HOMECARE - SPOT,2102779194,1000075287
09.02.2018,ADULT SOCIAL CARE,WESTMINSTER HOMECARE LTD,297.1,PHY LTS 65+,HOMECARE - SPOT,2102779195,1000075287
09.02.2018,ADULT SOCIAL CARE,WESTMINSTER HOMECARE LTD,"1,160.34",PHY LTS 65+,HOMECARE - SPOT,2102779197,1000075287
09.02.2018,ADULT SOCIAL CARE,WESTMINSTER HOMECARE LTD,"2,139.24",PHY LTS 65+,HOMECARE - C&V,2102779200,1000075287
09.02.2018,ADULT SOCIAL CARE,WESTMINSTER HOMECARE LTD,"1,230.52",PHY LTS 65+,HOMECARE - SPOT,2102779201,1000075287
09.02.2018,ADULT SOCIAL CARE,PROFAD CARE AGENCY,782.58,PHY LTS 65+,HOMECARE - SPOT,2102779229,1000079032
09.02.2018,ADULT SOCIAL CARE,PROFAD CARE AGENCY,"1,668.59",PHY LTS 65+,HOMECARE - C&V,2102779233,1000079032
09.02.2018,ADULT SOCIAL CARE,PROFAD CARE AGENCY,648.13,PHY LTS 65+,HOMECARE - SPOT,2102779234,1000079032
09.02.2018,ADULT SOCIAL CARE,PROFAD CARE AGENCY,"1,599.64",PHY LTS 65+,HOMECARE - SPOT,2102779235,1000079032
09.02.2018,ADULT SOCIAL CARE,PROFAD CARE AGENCY,937.72,PHY LTS 65+,HOMECARE - SPOT,2102779236,1000079032
09.02.2018,ADULT SOCIAL CARE,PROFAD CARE AGENCY,910.14,PHY LTS 65+,HOMECARE - SPOT,2102779239,1000079032
09.02.2018,ADULT SOCIAL CARE,PROFAD CARE AGENCY,482.65,PHY LTS 65+,HOMECARE - SPOT,2102779240,1000079032
09.02.2018,ADULT SOCIAL CARE,PROFAD CARE AGENCY,579.18,PHY LTS 65+,HOMECARE - SPOT,2102779241,1000079032
09.02.2018,ADULT SOCIAL CARE,PROFAD CARE AGENCY,"2,123.66",PHY LTS 65+,HOMECARE - C&V,2102779243,1000079032
09.02.2018,ADULT SOCIAL CARE,PROFAD CARE AGENCY,"1,930.60",PHY LTS 65+,HOMECARE - SPOT,2102779246,1000079032
09.02.2018,ADULT SOCIAL CARE,PROFAD CARE AGENCY,855,PHY LTS 65+,HOMECARE - SPOT,2102779249,1000079032
09.02.2018,ADULT SOCIAL CARE,PROFAD CARE AGENCY,"1,930.60",PHY LTS 65+,HOMECARE - SPOT,2102779250,1000079032
09.02.2018,ADULT SOCIAL CARE,PROFAD CARE AGENCY,"3,006.22",PHY LTS 65+,HOMECARE - SPOT,2102779251,1000079032
09.02.2018,ADULT SOCIAL CARE,PROFAD CARE AGENCY,382.67,PHY LTS 65+,HOMECARE - SPOT,2102779252,1000079032
09.02.2018,ADULT SOCIAL CARE,PROFAD CARE AGENCY,386.12,PHY LTS 65+,HOMECARE - SPOT,2102779254,1000079032
09.02.2018,ADULT SOCIAL CARE,PROFAD CARE AGENCY,813.61,PHY LTS 65+,HOMECARE - SPOT,2102779255,1000079032
09.02.2018,ADULT SOCIAL CARE,PROFAD CARE AGENCY,"1,737.54",PHY LTS 65+,HOMECARE - SPOT,2102779259,1000079032
09.02.2018,ADULT SOCIAL CARE,PROFAD CARE AGENCY,"1,737.54",PHY LTS 65+,HOMECARE - C&V,2102779261,1000079032
09.02.2018,ADULT SOCIAL CARE,PROFAD CARE AGENCY,841.19,PHY LTS 65+,HOMECARE - SPOT,2102779266,1000079032
09.02.2018,ADULT SOCIAL CARE,PROFAD CARE AGENCY,592.97,PHY LTS 65+,HOMECARE - SPOT,2102779267,1000079032
09.02.2018,ADULT SOCIAL CARE,PROFAD CARE AGENCY,"3,157.91",PHY LTS 65+,HOMECARE - SPOT,2102779273,1000079032
09.02.2018,ADULT SOCIAL CARE,PROFAD CARE AGENCY,634.34,PHY LTS 65+,HOMECARE - SPOT,2102779275,1000079032
09.02.2018,ADULT SOCIAL CARE,PROFAD CARE AGENCY,386.12,PHY LTS 65+,HOMECARE - SPOT,2102779276,1000079032
09.02.2018,ADULT SOCIAL CARE,PROFAD CARE AGENCY,606.76,PHY LTS 65+,HOMECARE - SPOT,2102779278,1000079032
09.02.2018,ADULT SOCIAL CARE,PROFAD CARE AGENCY,"1,461.74",PHY LTS 65+,HOMECARE - SPOT,2102779279,1000079032
09.02.2018,ADULT SOCIAL CARE,PROFAD CARE AGENCY,441.28,PHY LTS 65+,HOMECARE - SPOT,2102779280,1000079032
09.02.2018,ADULT SOCIAL CARE,PROFAD CARE AGENCY,868.77,PHY LTS 65+,HOMECARE - SPOT,2102779282,1000079032
09.02.2018,ADULT SOCIAL CARE,PROFAD CARE AGENCY,689.5,PHY LTS 65+,HOMECARE - SPOT,2102779283,1000079032
09.02.2018,ADULT SOCIAL CARE,PROFAD CARE AGENCY,482.65,PHY LTS 65+,HOMECARE - SPOT,2102779284,1000079032
09.02.2018,ADULT SOCIAL CARE,PROFAD CARE AGENCY,327.51,PHY LTS 65+,HOMECARE - C&V,2102779287,1000079032
09.02.2018,ADULT SOCIAL CARE,PROFAD CARE AGENCY,441.28,PHY LTS 65+,HOMECARE - SPOT,2102779290,1000079032
09.02.2018,ADULT SOCIAL CARE,PROFAD CARE AGENCY,330.96,PHY LTS 65+,HOMECARE - SPOT,2102779291,1000079032
09.02.2018,ADULT SOCIAL CARE,PROFAD CARE AGENCY,"1,930.60",PHY LTS 65+,HOMECARE - SPOT,2102779292,1000079032
09.02.2018,ADULT SOCIAL CARE,PROFAD CARE AGENCY,565.39,PHY LTS 65+,HOMECARE - SPOT,2102779293,1000079032
09.02.2018,ADULT SOCIAL CARE,PROFAD CARE AGENCY,758.45,SEN LTS 65+,HOMECARE - SPOT,2102779268,1000079032
09.02.2018,ADULT SOCIAL CARE,PROFAD CARE AGENCY,303.38,SOCIAL ISOLATION,HOMECARE - SPOT,2102779277,1000079032
09.02.2018,ADULT SOCIAL CARE,BRESLIN CONSTRUCTION LTD,"1,380.00",SUPPORTED LIVING COSTS,BUILDING R&M,5902289130,1000078031
09.02.2018,ADULT SOCIAL CARE,CONTACT PROFESSIONALS,"1,311.00",TRANSITION 14 - 18 YEARS,SECTION 17 PAYMENTS TO AGENCIES/CARERS,5902289084,1000057263
09.02.2018,ASSET MANAGEMENT,HOPKIN MURRAY BESKINE LTD,"20,000.00",DISREPAIR,LEGAL FEES & COURT COSTS,2102779394,1000076236
09.02.2018,ASSET MANAGEMENT,MLA SOLICITORS,"3,620.60",DISREPAIR,LEGAL FEES & COURT COSTS,2102779424,1000079716
09.02.2018,ASSET MANAGEMENT,BUREAU VERITAS UK,"1,190.00",HEALTH AND SAFETY,CONSULTANTS SERVICES,5902289233,1000052275
09.02.2018,ASSET MANAGEMENT,CALFORD SEADEN LLP,670,HIP MAJOR WORKS,PLANNED MAINTENANCE,5902289114,1061592
09.02.2018,CENTRAL FUNCTIONS,NETWORK RAIL INFRASTRUCTURE LTD,"5,043.00",COMMERCIAL PROPERTIES,PROPERTY INSURANCE COSTS,2102779032,1000061958
09.02.2018,CENTRAL FUNCTIONS,REDACTED PERSONAL DATA,364.29,COMMERCIAL PROPERTIES,PROPERTY INSURANCE COSTS,REDACTED,REDACTED
09.02.2018,CENTRAL FUNCTIONS,CALFORD SEADEN LLP,"5,748.68",LEDBURY ESTATE,OTHER R&M,5902289209,1061592
09.02.2018,CHILDREN AND ADULT,KEEGANS LTD,"-13,456.00",CAPITAL PS (EDUCATION),CONSTRUCTION FEES - QUANTITY SURVEYOR,5902288751,1000039674
09.02.2018,CHILDREN AND ADULT,KEEGANS LTD,"-16,887.00",CAPITAL PS (EDUCATION),CONSTRUCTION FEES - QUANTITY SURVEYOR,5902288751,1000039674
09.02.2018,CHILDREN AND ADULT,KEEGANS LTD,"3,065.00",CAPITAL PS (EDUCATION),CONSTRUCTION FEES - QUANTITY SURVEYOR,5902289101,1000039674
09.02.2018,CHILDREN AND ADULT,KEEGANS LTD,"1,737.00",CAPITAL PS (EDUCATION),CONSTRUCTION FEES - QUANTITY SURVEYOR,5902289104,1000039674
09.02.2018,CHILDREN AND ADULT,KEEGANS LTD,"1,446.00",CAPITAL PS (EDUCATION),CONSTRUCTION FEES - QUANTITY SURVEYOR,5902289105,1000039674
09.02.2018,CHILDREN AND ADULT,KEEGANS LTD,"2,366.00",CAPITAL PS (EDUCATION),CONSTRUCTION FEES - QUANTITY SURVEYOR,5902289118,1000039674
09.02.2018,CHILDREN AND ADULT,KEEGANS LTD,"1,794.00",CAPITAL PS (EDUCATION),CONSTRUCTION FEES - QUANTITY SURVEYOR,5902289119,1000039674
09.02.2018,CHILDREN AND ADULT,KEEGANS LTD,"4,503.00",CAPITAL PS (EDUCATION),CONSTRUCTION FEES - QUANTITY SURVEYOR,5902289122,1000039674
09.02.2018,CHILDREN AND ADULT,KEEGANS LTD,"1,446.00",CAPITAL PS (EDUCATION),CONSTRUCTION FEES - QUANTITY SURVEYOR,5902289123,1000039674
09.02.2018,CHILDREN AND ADULT,KEEGANS LTD,"4,503.00",CAPITAL PS (EDUCATION),CONSTRUCTION FEES - QUANTITY SURVEYOR,5902289129,1000039674
09.02.2018,CHILDREN AND ADULT,KEEGANS LTD,"1,737.00",CAPITAL PS (EDUCATION),CONSTRUCTION FEES - QUANTITY SURVEYOR,5902289136,1000039674
09.02.2018,CHILDREN AND ADULT,KEEGANS LTD,"2,603.00",CAPITAL PS (EDUCATION),CONSTRUCTION FEES - QUANTITY SURVEYOR,5902289139,1000039674
09.02.2018,CHILDREN AND ADULT,KEEGANS LTD,"3,065.00",CAPITAL PS (EDUCATION),CONSTRUCTION FEES - QUANTITY SURVEYOR,5902289150,1000039674
09.02.2018,CHILDREN AND ADULT,KEEGANS LTD,"2,603.00",CAPITAL PS (EDUCATION),CONSTRUCTION FEES - QUANTITY SURVEYOR,5902289155,1000039674
09.02.2018,CHILDREN AND ADULT,KEEGANS LTD,"2,366.00",CAPITAL PS (EDUCATION),CONSTRUCTION FEES - QUANTITY SURVEYOR,5902289158,1000039674
09.02.2018,CHILDREN AND ADULT,KEEGANS LTD,"1,794.00",CAPITAL PS (EDUCATION),CONSTRUCTION FEES - QUANTITY SURVEYOR,5902289159,1000039674
09.02.2018,CHILDREN AND ADULT,MIKE AYRES DESIGN LTD,"-4,000.00",CAPITAL PS (SOC SERV),FURNITURE & FITTINGS ACQUISITION,5902289358,1000079608
09.02.2018,CHILDREN AND ADULT,MIKE AYRES DESIGN LTD,"4,000.00",CAPITAL PS (SOC SERV),FURNITURE & FITTINGS ACQUISITION,5902289361,1000079608
09.02.2018,CHILDREN'S SERVICES,BARNARDOS SERVICES LTD,"8,750.00",ADMIN TEAM SAFEGUARDING,EXTERNAL AGENCIES AND BODIES,5902289316,1000063730
09.02.2018,CHILDREN'S SERVICES,REDACTED PERSONAL DATA,500,ADOPTION PLACEMENTS & INTER AGENCY,PAYMENTS TO CARERS,REDACTED,REDACTED
09.02.2018,CHILDREN'S SERVICES,SOUTH LONDON & MAUDSLEY HOSPITAL,"4,950.00",ADOPTION REFORM GRANT (PART B),EXTERNAL AGENCIES AND BODIES,5902289212,1000013096
09.02.2018,CHILDREN'S SERVICES,HEATH FARM FAMILY SOLUTION (FOSTERING),"4,714.20",AGENCY FOSTERING,EXTERNAL AGENCIES AND BODIES,2102779142,11271268
09.02.2018,CHILDREN'S SERVICES,HEATH FARM FAMILY SOLUTION (FOSTERING),"4,871.34",AGENCY FOSTERING,EXTERNAL AGENCIES AND BODIES,2102779144,11271268
09.02.2018,CHILDREN'S SERVICES,HEATH FARM FAMILY SOLUTION (FOSTERING),"4,871.34",AGENCY FOSTERING,EXTERNAL AGENCIES AND BODIES,2102779152,11271268
09.02.2018,CHILDREN'S SERVICES,CORE ASSETS FOSTERING LTD,"3,211.60",AGENCY FOSTERING,EXTERNAL AGENCIES AND BODIES,2102779146,11288002
09.02.2018,CHILDREN'S SERVICES,CORE ASSETS FOSTERING LTD,"3,211.60",AGENCY FOSTERING,EXTERNAL AGENCIES AND BODIES,2102779155,11288002
09.02.2018,CHILDREN'S SERVICES,TACT,"3,351.10",AGENCY FOSTERING,EXTERNAL AGENCIES AND BODIES,2102779123,1000012941
09.02.2018,CHILDREN'S SERVICES,TACT,"3,003.90",AGENCY FOSTERING,EXTERNAL AGENCIES AND BODIES,2102779128,1000012941
09.02.2018,CHILDREN'S SERVICES,TACT,"3,162.00",AGENCY FOSTERING,EXTERNAL AGENCIES AND BODIES,2102779132,1000012941
09.02.2018,CHILDREN'S SERVICES,TACT,"3,351.10",AGENCY FOSTERING,EXTERNAL AGENCIES AND BODIES,2102779136,1000012941
09.02.2018,CHILDREN'S SERVICES,TACT,"3,162.00",AGENCY FOSTERING,EXTERNAL AGENCIES AND BODIES,2102779145,1000012941
09.02.2018,CHILDREN'S SERVICES,GREATER LONDON FOSTERING,"3,286.00",AGENCY FOSTERING,EXTERNAL AGENCIES AND BODIES,2102779134,1000029184
09.02.2018,CHILDREN'S SERVICES,GREATER LONDON FOSTERING,"3,286.00",AGENCY FOSTERING,EXTERNAL AGENCIES AND BODIES,2102779137,1000029184
09.02.2018,CHILDREN'S SERVICES,GREATER LONDON FOSTERING,742,AGENCY FOSTERING,EXTERNAL AGENCIES AND BODIES,2102779140,1000029184
09.02.2018,CHILDREN'S SERVICES,GREATER LONDON FOSTERING,"3,286.00",AGENCY FOSTERING,EXTERNAL AGENCIES AND BODIES,2102779141,1000029184
09.02.2018,CHILDREN'S SERVICES,GREATER LONDON FOSTERING,"4,424.01",AGENCY FOSTERING,EXTERNAL AGENCIES AND BODIES,2102779153,1000029184
09.02.2018,CHILDREN'S SERVICES,GREATER LONDON FOSTERING,"3,220.28",AGENCY FOSTERING,EXTERNAL AGENCIES AND BODIES,2102779157,1000029184
09.02.2018,CHILDREN'S SERVICES,GREATER LONDON FOSTERING,"3,188.35",AGENCY FOSTERING,EXTERNAL AGENCIES AND BODIES,2102779162,1000029184
09.02.2018,CHILDREN'S SERVICES,SYNERGY FOSTERING LTD,"3,671.28",AGENCY FOSTERING,EXTERNAL AGENCIES AND BODIES,2102779129,1000031559
09.02.2018,CHILDREN'S SERVICES,NATIONAL FOSTERING AGENCY,"4,406.34",AGENCY FOSTERING,EXTERNAL AGENCIES AND BODIES,2102779120,1000038868
09.02.2018,CHILDREN'S SERVICES,NATIONAL FOSTERING AGENCY,"4,406.34",AGENCY FOSTERING,EXTERNAL AGENCIES AND BODIES,2102779121,1000038868
09.02.2018,CHILDREN'S SERVICES,NATIONAL FOSTERING AGENCY,"4,406.34",AGENCY FOSTERING,EXTERNAL AGENCIES AND BODIES,2102779124,1000038868
09.02.2018,CHILDREN'S SERVICES,NATIONAL FOSTERING AGENCY,"4,406.34",AGENCY FOSTERING,EXTERNAL AGENCIES AND BODIES,2102779126,1000038868
09.02.2018,CHILDREN'S SERVICES,NATIONAL FOSTERING AGENCY,"4,406.34",AGENCY FOSTERING,EXTERNAL AGENCIES AND BODIES,2102779135,1000038868
09.02.2018,CHILDREN'S SERVICES,NATIONAL FOSTERING AGENCY,"5,212.34",AGENCY FOSTERING,EXTERNAL AGENCIES AND BODIES,2102779139,1000038868
09.02.2018,CHILDREN'S SERVICES,NATIONAL FOSTERING AGENCY,"4,406.34",AGENCY FOSTERING,EXTERNAL AGENCIES AND BODIES,2102779143,1000038868
09.02.2018,CHILDREN'S SERVICES,NATIONAL FOSTERING AGENCY,"3,520.67",AGENCY FOSTERING,EXTERNAL AGENCIES AND BODIES,2102779148,1000038868
09.02.2018,CHILDREN'S SERVICES,NATIONAL FOSTERING AGENCY,"4,627.68",AGENCY FOSTERING,EXTERNAL AGENCIES AND BODIES,2102779151,1000038868
09.02.2018,CHILDREN'S SERVICES,NATIONAL FOSTERING AGENCY,"4,406.34",AGENCY FOSTERING,EXTERNAL AGENCIES AND BODIES,2102779158,1000038868
09.02.2018,CHILDREN'S SERVICES,NATIONAL FOSTERING AGENCY,"4,406.34",AGENCY FOSTERING,EXTERNAL AGENCIES AND BODIES,2102779160,1000038868
09.02.2018,CHILDREN'S SERVICES,NATIONAL FOSTERING AGENCY,"2,700.66",AGENCY FOSTERING,EXTERNAL AGENCIES AND BODIES,2102779161,1000038868
09.02.2018,CHILDREN'S SERVICES,ACTION FOR CHILDREN,"3,892.67",AGENCY FOSTERING,EXTERNAL AGENCIES AND BODIES,2102779127,1000049964
09.02.2018,CHILDREN'S SERVICES,DIVERSE CARE (UK) LTD,"4,490.04",AGENCY FOSTERING,EXTERNAL AGENCIES AND BODIES,2102779147,1000055636
09.02.2018,CHILDREN'S SERVICES,SWIIS FOSTER CARE LTD,697.97,AGENCY FOSTERING,EXTERNAL AGENCIES AND BODIES,2102779154,1000069633
09.02.2018,CHILDREN'S SERVICES,HORIZON FOSTERING SERVICES LTD,"3,255.00",AGENCY FOSTERING,EXTERNAL AGENCIES AND BODIES,2102779130,1000075679
09.02.2018,CHILDREN'S SERVICES,HORIZON FOSTERING SERVICES LTD,"3,092.25",AGENCY FOSTERING,EXTERNAL AGENCIES AND BODIES,2102779149,1000075679
09.02.2018,CHILDREN'S SERVICES,HORIZON FOSTERING SERVICES LTD,"3,255.00",AGENCY FOSTERING,EXTERNAL AGENCIES AND BODIES,2102779156,1000075679
09.02.2018,CHILDREN'S SERVICES,HORIZON FOSTERING SERVICES LTD,"3,092.25",AGENCY FOSTERING,EXTERNAL AGENCIES AND BODIES,2102779159,1000075679
09.02.2018,CHILDREN'S SERVICES,HELP ME GROW FOSTERING SERVICES LTD,"4,319.70",AGENCY FOSTERING,EXTERNAL AGENCIES AND BODIES,2102779138,1000079302
09.02.2018,CHILDREN'S SERVICES,FOSTERING FOR YOU LTD,"3,443.39",AGENCY FOSTERING,EXTERNAL AGENCIES AND BODIES,2102779131,1000080380
09.02.2018,CHILDREN'S SERVICES,FOSTERING FOR YOU LTD,"3,443.39",AGENCY FOSTERING,EXTERNAL AGENCIES AND BODIES,2102779150,1000080380
09.02.2018,CHILDREN'S SERVICES,UK FOSTERING LTD,"5,314.33",AGENCY FOSTERING,EXTERNAL AGENCIES AND BODIES,2102779122,1000080478
09.02.2018,CHILDREN'S SERVICES,FAMILY FIRST FOSTERING LTD,"6,864.28",AGENCY FOSTERING,EXTERNAL AGENCIES AND BODIES,2102779133,1000080631
09.02.2018,CHILDREN'S SERVICES,DECUS LTD,"5,500.00",ASSISSTANT DIRECTOR (CHILDREN),PROFESSIONAL FEES,5902289072,1000080190
09.02.2018,CHILDREN'S SERVICES,HALO PSYCHOLOGY LTD,"4,346.00",ASSISSTANT DIRECTOR (CHILDREN),EXTERNAL AGENCIES AND BODIES,5902289082,1000080619
09.02.2018,CHILDREN'S SERVICES,BELLENDEN PRIMARY SCHOOL,"135,000.00",BELLENDEN JMI,EARLY YEARS - 3 AND 4 YEAR OLDS,2102779404,5001000007
09.02.2018,CHILDREN'S SERVICES,REVIVAL,495,CENTRAL SUPPORT,OTHER PAYMENTS FOR CLIENTS,5902289091,1000027424
09.02.2018,CHILDREN'S SERVICES,DULWICH VILLAGE CE INFANTS SCHOOL,"15,500.00",DULWICH VILLAGE I,HIGH NEEDS - TOP UP FUNDING,2102779411,5001000027
09.02.2018,CHILDREN'S SERVICES,RIVERSIDE PRIMARY SCHOOL,"4,873.00",FREE FRUIT,SCHOOLS CAPITATION,2102779410,5001000056
09.02.2018,CHILDREN'S SERVICES,RIVERSIDE PRIMARY SCHOOL,"26,374.00",FREE HEALTHY SCHOOL,SCHOOLS CAPITATION,2102779409,5001000056
09.02.2018,CHILDREN'S SERVICES,THE CAMDEN SOCIETY (CATERING),262.9,GOVERNOR TRAINING,REFRESHMENTS FOR MEETINGS,5902289112,1000075365
09.02.2018,CHILDREN'S SERVICES,GRANGE PRIMARY SCHOOL,"6,000.00",GRANGE JMI,HIGH NEEDS - TOP UP FUNDING,2102779412,5001000029
09.02.2018,CHILDREN'S SERVICES,HEALTHCARE & TRANSPORT SERVICES,"49,497.75",HOME 2 SCHOOL TRANSPORT,CAB FARES,5902289160,1000042743
09.02.2018,CHILDREN'S SERVICES,ALFRED SALTER PRIMARY SCHOOL,"10,343.00",MATERNITY COVER,SCHOOLS CAPITATION,2102779419,5001000005
09.02.2018,CHILDREN'S SERVICES,CHARLES DICKENS PRIMARY SCHOOL,"5,888.00",MATERNITY COVER,SCHOOLS CAPITATION,2102779416,5001000015
09.02.2018,CHILDREN'S SERVICES,CHARLES DICKENS PRIMARY SCHOOL,"8,621.00",MATERNITY COVER,SCHOOLS CAPITATION,2102779417,5001000015
09.02.2018,CHILDREN'S SERVICES,ST JOSEPHS CATHOLIC INFANTS SCHOOL,"14,971.00",MATERNITY COVER,SCHOOLS CAPITATION,2102779418,5001000018
09.02.2018,CHILDREN'S SERVICES,ENGLISH MARTYRS RC PRIMARY SCHOOL,"12,731.00",MATERNITY COVER,SCHOOLS CAPITATION,2102779415,5001000030
09.02.2018,CHILDREN'S SERVICES,BESSEMER GRANGE PRIMARY SCHOOL,"9,120.00",NURSERY ED GRANT 2 Y Y O,GRANTS,2102779395,5001000009
09.02.2018,CHILDREN'S SERVICES,CHARLES DICKENS PRIMARY SCHOOL,"1,140.00",NURSERY ED GRANT 2 Y Y O,GRANTS,2102779398,5001000015
09.02.2018,CHILDREN'S SERVICES,RYE OAK PRIMARY SCHOOL,"7,980.00",NURSERY ED GRANT 2 Y Y O,GRANTS,2102779397,5001000059
09.02.2018,CHILDREN'S SERVICES,ST JAMES CE SCHOOL,"6,840.00",NURSERY ED GRANT 2 Y Y O,GRANTS,2102779396,5001000070
09.02.2018,CHILDREN'S SERVICES,SURREY SQUARE JUNIOR SCHOOL,"3,420.00",NURSERY ED GRANT 2 Y Y O,GRANTS,2102779399,5001000087
09.02.2018,CHILDREN'S SERVICES,NELL GWYNN NURSERY SCHOOL,615,NURSERY ED GRANT 3 Y Y.0.,HIGH NEEDS - TOP UP FUNDING,2102779402,5001000049
09.02.2018,CHILDREN'S SERVICES,NELL GWYNN NURSERY SCHOOL,615,NURSERY ED GRANT 3 Y Y.0.,HIGH NEEDS - TOP UP FUNDING,2102779403,5001000049
09.02.2018,CHILDREN'S SERVICES,AMEGREEN CHILDRENS SERVICES LTD,"10,000.00",RESIDENTIAL,RESIDENTIAL CARE,2102779043,1000064206
09.02.2018,CHILDREN'S SERVICES,ESLAND SOUTH LTD,"1,642.85",RESIDENTIAL,RESIDENTIAL CARE,5902289314,1000074184
09.02.2018,CHILDREN'S SERVICES,CREATING CARE CHOICES LTD,"15,500.00",RESIDENTIAL,RESIDENTIAL CARE,2102779040,1000076738
09.02.2018,CHILDREN'S SERVICES,CREATING CARE CHOICES LTD,"18,600.00",RESIDENTIAL,RESIDENTIAL CARE,2102779041,1000076738
09.02.2018,CHILDREN'S SERVICES,CREATING CARE CHOICES LTD,"11,060.00",RESIDENTIAL,RESIDENTIAL CARE,2102779042,1000076738
09.02.2018,CHILDREN'S SERVICES,OASIS AQUILA HOUSING,"1,074.68",S24 CLA,EXTERNAL AGENCIES AND BODIES,5902289317,1000002184
09.02.2018,CHILDREN'S SERVICES,HOLMDENE HOUSING LTD,"1,880.00",S24 CLA,EXTERNAL AGENCIES AND BODIES,2102779093,1000032598
09.02.2018,CHILDREN'S SERVICES,HOLMDENE HOUSING LTD,"1,480.00",S24 CLA,EXTERNAL AGENCIES AND BODIES,2102779119,1000032598
09.02.2018,CHILDREN'S SERVICES,STEP AHEAD SERVICES LTD,"1,682.99",S24 CLA,EXTERNAL AGENCIES AND BODIES,2102779092,1000036544
09.02.2018,CHILDREN'S SERVICES,STEP AHEAD SERVICES LTD,"2,081.43",S24 CLA,EXTERNAL AGENCIES AND BODIES,2102779099,1000036544
09.02.2018,CHILDREN'S SERVICES,STEP AHEAD SERVICES LTD,"1,682.99",S24 CLA,EXTERNAL AGENCIES AND BODIES,2102779108,1000036544
09.02.2018,CHILDREN'S SERVICES,STEP AHEAD SERVICES LTD,"1,682.99",S24 CLA,EXTERNAL AGENCIES AND BODIES,2102779113,1000036544
09.02.2018,CHILDREN'S SERVICES,THE ARTEMIS TEAM LTD,"3,919.29",S24 CLA,EXTERNAL AGENCIES AND BODIES,2102779097,1000057937
09.02.2018,CHILDREN'S SERVICES,FUTURE FOUNDATIONS LTD,"1,722.71",S24 CLA,EXTERNAL AGENCIES AND BODIES,2102779102,1000063272
09.02.2018,CHILDREN'S SERVICES,FUTURE FOUNDATIONS LTD,"2,896.28",S24 CLA,EXTERNAL AGENCIES AND BODIES,2102779105,1000063272
09.02.2018,CHILDREN'S SERVICES,FUTURE FOUNDATIONS LTD,"1,722.71",S24 CLA,EXTERNAL AGENCIES AND BODIES,2102779107,1000063272
09.02.2018,CHILDREN'S SERVICES,FUTURE FOUNDATIONS LTD,"1,926.42",S24 CLA,EXTERNAL AGENCIES AND BODIES,2102779109,1000063272
09.02.2018,CHILDREN'S SERVICES,NETPEX LTD CORPORATE SERVICES,"4,760.98",S24 CLA,EXTERNAL AGENCIES AND BODIES,2102779104,1000076073
09.02.2018,CHILDREN'S SERVICES,NETPEX LTD CORPORATE SERVICES,"3,963.66",S24 CLA,EXTERNAL AGENCIES AND BODIES,2102779112,1000076073
09.02.2018,CHILDREN'S SERVICES,NETPEX LTD CORPORATE SERVICES,"5,646.65",S24 CLA,EXTERNAL AGENCIES AND BODIES,2102779115,1000076073
09.02.2018,CHILDREN'S SERVICES,LIBERTY CARE HOMES LTD,"3,566.85",S24 CLA,EXTERNAL AGENCIES AND BODIES,2102779106,1000078210
09.02.2018,CHILDREN'S SERVICES,SANCTUARY CARE SERVICES LTD,"2,550.00",S24 CLA,EXTERNAL AGENCIES AND BODIES,2102779103,1000078444
09.02.2018,CHILDREN'S SERVICES,CHARLOTTE  SHARMAN PRIMARY SCHOOL,"5,181.82",SCHOOLS DIRECT SALARY FUNDING,SCHOOLS CAPITATION,2102779401,5001000016
09.02.2018,CHILDREN'S SERVICES,CHARLOTTE  SHARMAN PRIMARY SCHOOL,"5,181.81",SCHOOLS DIRECT SALARY FUNDING,SCHOOLS CAPITATION,2102779406,5001000016
09.02.2018,CHILDREN'S SERVICES,ST JAMES CE SCHOOL,"3,109.09",SCHOOLS DIRECT SALARY FUNDING,SCHOOLS CAPITATION,2102779400,5001000070
09.02.2018,CHILDREN'S SERVICES,ST JAMES CE SCHOOL,"3,109.09",SCHOOLS DIRECT SALARY FUNDING,SCHOOLS CAPITATION,2102779405,5001000070
09.02.2018,CHILDREN'S SERVICES,BELLENDEN PRIMARY SCHOOL,"26,000.00",SCHOOLS IN FINANCIAL DIFFICULTY,SCHOOLS CAPITATION,2102779414,5001000007
09.02.2018,CHILDREN'S SERVICES,HOLMDENE HOUSING LTD,"4,280.00",SEMI INDEPENDENT,EXTERNAL AGENCIES AND BODIES,2102779048,1000032598
09.02.2018,CHILDREN'S SERVICES,STEP AHEAD SERVICES LTD,275,SEMI INDEPENDENT,OTHER PAYMENTS FOR CLIENTS,2102779044,1000036544
09.02.2018,CHILDREN'S SERVICES,STEP AHEAD SERVICES LTD,"1,682.99",SEMI INDEPENDENT,EXTERNAL AGENCIES AND BODIES,2102779053,1000036544
09.02.2018,CHILDREN'S SERVICES,STEP AHEAD SERVICES LTD,"2,081.43",SEMI INDEPENDENT,EXTERNAL AGENCIES AND BODIES,2102779074,1000036544
09.02.2018,CHILDREN'S SERVICES,STEP AHEAD SERVICES LTD,"2,081.34",SEMI INDEPENDENT,EXTERNAL AGENCIES AND BODIES,2102779075,1000036544
09.02.2018,CHILDREN'S SERVICES,CONTACT PROFESSIONALS,475,SEMI INDEPENDENT,EXTERNAL AGENCIES AND BODIES,2102779046,1000057263
09.02.2018,CHILDREN'S SERVICES,CONTACT PROFESSIONALS,475,SEMI INDEPENDENT,EXTERNAL AGENCIES AND BODIES,2102779047,1000057263
09.02.2018,CHILDREN'S SERVICES,CONTACT PROFESSIONALS,324.96,SEMI INDEPENDENT,OTHER PAYMENTS FOR CLIENTS,2102779052,1000057263
09.02.2018,CHILDREN'S SERVICES,CONTACT PROFESSIONALS,475,SEMI INDEPENDENT,EXTERNAL AGENCIES AND BODIES,2102779076,1000057263
09.02.2018,CHILDREN'S SERVICES,FUTURE FOUNDATIONS LTD,"4,419.71",SEMI INDEPENDENT,EXTERNAL AGENCIES AND BODIES,2102779060,1000063272
09.02.2018,CHILDREN'S SERVICES,FUTURE FOUNDATIONS LTD,265.71,SEMI INDEPENDENT,OTHER PAYMENTS FOR CLIENTS,2102779061,1000063272
09.02.2018,CHILDREN'S SERVICES,FUTURE FOUNDATIONS LTD,"4,419.71",SEMI INDEPENDENT,EXTERNAL AGENCIES AND BODIES,2102779062,1000063272
09.02.2018,CHILDREN'S SERVICES,FUTURE FOUNDATIONS LTD,265.71,SEMI INDEPENDENT,OTHER PAYMENTS FOR CLIENTS,2102779063,1000063272
09.02.2018,CHILDREN'S SERVICES,FUTURE FOUNDATIONS LTD,"4,419.71",SEMI INDEPENDENT,EXTERNAL AGENCIES AND BODIES,2102779082,1000063272
09.02.2018,CHILDREN'S SERVICES,FUTURE FOUNDATIONS LTD,"4,419.71",SEMI INDEPENDENT,EXTERNAL AGENCIES AND BODIES,2102779083,1000063272
09.02.2018,CHILDREN'S SERVICES,HOLIBROOK HOUSE LTD,"3,614.29",SEMI INDEPENDENT,EXTERNAL AGENCIES AND BODIES,2102779078,1000067873
09.02.2018,CHILDREN'S SERVICES,HOLIBROOK HOUSE LTD,"6,120.00",SEMI INDEPENDENT,EXTERNAL AGENCIES AND BODIES,2102779089,1000067873
09.02.2018,CHILDREN'S SERVICES,NETPEX LTD CORPORATE SERVICES,289.5,SEMI INDEPENDENT,OTHER PAYMENTS FOR CLIENTS,2102779045,1000076073
09.02.2018,CHILDREN'S SERVICES,NETPEX LTD CORPORATE SERVICES,"3,875.00",SEMI INDEPENDENT,EXTERNAL AGENCIES AND BODIES,2102779068,1000076073
09.02.2018,CHILDREN'S SERVICES,NETPEX LTD CORPORATE SERVICES,300,SEMI INDEPENDENT,OTHER PAYMENTS FOR CLIENTS,2102779071,1000076073
09.02.2018,CHILDREN'S SERVICES,NETPEX LTD CORPORATE SERVICES,"4,472.99",SEMI INDEPENDENT,EXTERNAL AGENCIES AND BODIES,2102779085,1000076073
09.02.2018,CHILDREN'S SERVICES,NETPEX LTD CORPORATE SERVICES,"4,418.40",SEMI INDEPENDENT,EXTERNAL AGENCIES AND BODIES,2102779086,1000076073
09.02.2018,CHILDREN'S SERVICES,DALEY BREAD LTD,"4,650.00",SEMI INDEPENDENT,EXTERNAL AGENCIES AND BODIES,2102779049,1000080141
09.02.2018,CHILDREN'S SERVICES,DALEY BREAD LTD,"4,680.01",SEMI INDEPENDENT,EXTERNAL AGENCIES AND BODIES,2102779051,1000080141
09.02.2018,CHILDREN'S SERVICES,DALEY BREAD LTD,"4,285.67",SEMI INDEPENDENT,EXTERNAL AGENCIES AND BODIES,2102779079,1000080141
09.02.2018,CHILDREN'S SERVICES,REDACTED PERSONAL DATA,"3,206.99",SEMI INDEPENDENT,EXTERNAL AGENCIES AND BODIES,REDACTED,REDACTED
09.02.2018,CHILDREN'S SERVICES,REDACTED PERSONAL DATA,"2,586.29",SEMI INDEPENDENT,EXTERNAL AGENCIES AND BODIES,REDACTED,REDACTED
09.02.2018,CHILDREN'S SERVICES,REDACTED PERSONAL DATA,"1,050.00",SEN INCLUSION TEAM  (202),PROFESSIONAL FEES,REDACTED,REDACTED
09.02.2018,CHILDREN'S SERVICES,SPA SCHOOL,"65,833.00",SPA SCHOOL,HIGH NEEDS - BASE FUNDING,2102779407,5001000063
09.02.2018,CHILDREN'S SERVICES,SPA SCHOOL,"56,666.00",SPA SCHOOL,HIGH NEEDS - BASE FUNDING,2102779408,5001000063
09.02.2018,CHILDREN'S SERVICES,TUKE SCHOOL,"50,000.00",SPECIAL SCHOOL IN YEAR TOP UP CONTINGENC,HIGH NEEDS - TOP UP FUNDING,2102779413,5001000097
09.02.2018,CHILDREN'S SERVICES,NATIONAL FOSTERING AGENCY,"1,860.00",STAYING PUT,EXTERNAL AGENCIES AND BODIES,2102779090,1000038868
09.02.2018,CHILDREN'S SERVICES,NATIONAL FOSTERING AGENCY,"1,860.00",STAYING PUT,EXTERNAL AGENCIES AND BODIES,2102779095,1000038868
09.02.2018,CHILDREN'S SERVICES,NATIONAL FOSTERING AGENCY,"1,860.00",STAYING PUT,EXTERNAL AGENCIES AND BODIES,2102779114,1000038868
09.02.2018,CHILDREN'S SERVICES,NATIONAL FOSTERING AGENCY,"1,860.00",STAYING PUT,EXTERNAL AGENCIES AND BODIES,2102779116,1000038868
09.02.2018,CHILDREN'S SERVICES,SALTCO LTD T/A KELLY EXECUTIVE,"3,040.00",SUMMERHOUSE - EX416 - 5015232,HIRED VEHICLES,5902289085,1000000548
09.02.2018,CHILDREN'S SERVICES,SALTCO LTD T/A KELLY EXECUTIVE,"2,720.00",SUMMERHOUSE - EX416 - 5015232,HIRED VEHICLES,5902289087,1000000548
09.02.2018,CHILDREN'S SERVICES,SALTCO LTD T/A KELLY EXECUTIVE,"2,720.00",SUMMERHOUSE - EX416 - 5015232,HIRED VEHICLES,5902289092,1000000548
09.02.2018,CHILDREN'S SERVICES,RICOH UK LTD,609.11,SUMMERHOUSE - EX416 - 5015232,PRINTING,5902289083,1000001712
09.02.2018,CHILDREN'S SERVICES,SINEAD JOYCE,"1,440.00",SUMMERHOUSE - EX416 - 5015232,CONSULTANTS SERVICES,5902289077,1000056695
09.02.2018,CHILDREN'S SERVICES,HOLMDENE HOUSING LTD,740,UASC SECTION 24,EXTERNAL AGENCIES AND BODIES,2102779091,1000032598
09.02.2018,CHILDREN'S SERVICES,HOLMDENE HOUSING LTD,"2,240.00",UASC SECTION 24,EXTERNAL AGENCIES AND BODIES,2102779094,1000032598
09.02.2018,CHILDREN'S SERVICES,HOLMDENE HOUSING LTD,"1,480.00",UASC SECTION 24,EXTERNAL AGENCIES AND BODIES,2102779096,1000032598
09.02.2018,CHILDREN'S SERVICES,HOLMDENE HOUSING LTD,"1,480.00",UASC SECTION 24,EXTERNAL AGENCIES AND BODIES,2102779098,1000032598
09.02.2018,CHILDREN'S SERVICES,HOLMDENE HOUSING LTD,780,UASC SECTION 24,EXTERNAL AGENCIES AND BODIES,2102779101,1000032598
09.02.2018,CHILDREN'S SERVICES,HOLMDENE HOUSING LTD,"1,480.00",UASC SECTION 24,EXTERNAL AGENCIES AND BODIES,2102779110,1000032598
09.02.2018,CHILDREN'S SERVICES,HOLMDENE HOUSING LTD,"1,480.00",UASC SECTION 24,EXTERNAL AGENCIES AND BODIES,2102779111,1000032598
09.02.2018,CHILDREN'S SERVICES,HOLMDENE HOUSING LTD,"1,480.00",UASC SECTION 24,EXTERNAL AGENCIES AND BODIES,2102779118,1000032598
09.02.2018,CHILDREN'S SERVICES,HOLMDENE HOUSING LTD,"1,480.00",UNACCOMPANIED ASYLUM CHILDREN 16-17,EXTERNAL AGENCIES AND BODIES,2102779077,1000032598
09.02.2018,CHILDREN'S SERVICES,FUTURE FOUNDATIONS LTD,"4,419.71",UNACCOMPANIED ASYLUM CHILDREN 16-17,EXTERNAL AGENCIES AND BODIES,2102779056,1000063272
09.02.2018,CHILDREN'S SERVICES,FUTURE FOUNDATIONS LTD,"3,279.14",UNACCOMPANIED ASYLUM CHILDREN 16-17,EXTERNAL AGENCIES AND BODIES,2102779065,1000063272
09.02.2018,COMMUNITIES,HOMELY HOUSING LETS LTD,"54,042.56",NO RECOURSE TO PUBLIC FUNDS,ACCOMMODATION CHARGES,5902289217,1000050013
09.02.2018,COMMUNITIES,HOMELY HOUSING LETS LTD,"5,622.46",NO RECOURSE TO PUBLIC FUNDS,OTHER PAYMENTS FOR CLIENTS,5902289220,1000050013
09.02.2018,COMMUNITIES,HOMELY HOUSING LETS LTD,"3,254.30",NO RECOURSE TO PUBLIC FUNDS,OTHER PAYMENTS FOR CLIENTS,5902289224,1000050013
